Workbook

Sheet Contents
F2: =Workbook.Title -> mmWave fixed links clearance cost model
A4: Information
A6: Title | B6: mmWave fixed links clearance cost model
A7: Project | B7: Enabling mmWave spectrum for new uses
A8: Objective | B8: Estimate the cost of moving fixed links out of the 26GHz and 40 GHz bands
A9: Status | B9: Consultation model
A10: Confidentiality | B10: Approved for release
A15: Contents
A17: Section | B17: Worksheet | C17: Description
A18: Inputs | B18: Spectrum cost inputs | C18: Input data assumptions for spectrum equipement and site costs
B19: MCT CostTrends | C19: Input data for cost trends
A20: Calculations | B20: Cost Trend Calc | C20: Estimates the increase in cost input assumptions since 2015 publication of plum report
B21: Cost calculations | C21: Estimates opex and capex for different equipment & site assumptions
B22: Discounted cost_7years | C22: Estimates the overall present costs for replacing equipment and adding hop assuming a 7 year economic lifetime
B23: Discounted cost_15years | C23: Estimates the overall present costs for replacing equipment and adding hop assuming a 15 year economic lifetime
B24: Cost_SiteRural | C24: Estimates the annualised capex cost for a new rural site
B25: Cost_SiteUrban | C25: Estimates the annualised capex cost for a new urban site
B26: Composite cost scenarios | C26: Estimates overall costs for 4 different cost scenarios
B27: Costs By HDA grouping | C27: Determines final costs for different high density area options, dependent on existing fixed links
A28: Outputs | B28: FinalOutputTables | C28: Outputs rearranged into tables for consultation annex
A32: Terms and conditions
B33: mmWave fixed links clearance cost model
A34: The terms and conditions on which OFCOM is making the model available are set out below.
A35: The mmWave fixed links clearance cost model provided has been developed to help understand the potential cost of revoking fixed link licences in the 26 GHz And 40 GHz spectrum band as part of Ofcom's consultation on Enabling mmWave spectrum for new uses.
A36: All right, title and interest in the provided model (the ‘Model’) constructed in Excel to understand the cost to licensees of clearance of fixed links are owned by OFCOM. Such title and interest is protected by United Kingdom intellectual property laws and international treaty provisions. While you may freely use the Model for the purposes for which it is provided, as set out in the accompanying model documentation, OFCOM notes that any other use of the Model may not result in the correct functioning of the Model. No representation or warranty is given as to the accuracy, completeness or correctness of the provided Model and it is provided 'as is'. It is provided without any representation or endorsement made and without warranty of any kind, whether express or implied, including but not limited to the implied warranties of satisfactory quality, fitness for a particular purpose, non-infringement, compatibility, security and accuracy.
A37: OFCOM does not accept any responsibility for any loss, disruption or damage to your data or your computer system which may occur whilst using the Model or material derived from the Model. OFCOM does not warrant that the functions contained in the Model will be uninterrupted or error free. Also, OFCOM does not warrant that defects will be corrected, or that the Model provided is free of viruses. In no event will OFCOM be liable for any loss or damage including, without limitation, indirect or consequential loss or damage, or any loss or damages whatsoever arising from use or loss of use of, data or profits arising out of or in connection with the use or otherwise of the provided Model. By using this Model, you agree to the above.

Sheet Styles
H2: Style Guidelines
A5: Styles
B8: Input data | C8: 100 | E8: Input data (e.g. RFS data, inflation, etc)
B10: Input assumption or parameter | C10: 100 | E10: Input assumptions or parameters (e.g. for a scenario or control sheet)
B12: Feed internal | C12: 100 | E12: Feed cell from within this workbook
B14: Feed external | C14: 100 | E14: Feed cell from a different workbook
B16: Confidential | C16: 100 | E16: Confidential data, to be removed or randomized before publication
B18: Randomized | C18: 100 | E18: Randomized data
B20: Calculation | C20: 100 | E20: Intermediate calculation (not final output)
B22: Model logic | C22: 100 | E22: Cells required for model logic (e.g. year counters)
B24: Intentionally blank | E24: Cells left intentionally blank
B26: Output | C26: 100 | E26: A key result from this part of the model (in particular one that will be used elsewhere in the model)
B28: Highlight | C28: 100 | E28: A cell that is highlighted for uncertainty
B30: QA highlight | C30: 100 | E30: A cell that is highlighted for quality assurance
B32: Check pass | C32: TRUE | E32: A side calculation intended solely to cross check a result (and which therefore should not be referenced anywhere else in the model)
B33: Check fail | C33: FALSE
B35: Note or source | C35: Text | E35: Note/source
B37: Named range | E37: Cells which are part of a named range
B39: Name | C39: named_range_1 | E39: An Excel Name applying to one or more adjacent cells (use Insert Name Create to actually create the Excel Names)
B41: Un-format | E41: Going back to default Excel formatting

Sheet Inputs --->

Sheet Spectrum cost inputs
A1: Cost inputs
B3: Input parameters based on Plum model | C3: Link to Plum report.
F4: Plum report page numder
B5: Site sharing - Rural sites | C5: Site occupants | D5: 3 | F5: 113
B6: Site sharing - Urban sites | C6: Site occupants | D6: 1 | F6: 113
B8: Equipment costs | C8: £ / link | D8: 7000 | F8: 113
B10: Site construction - Rural | C10: £ / site | D10: 100000 | F10: 114
B11: Site construction - Urban | C11: £ / site | D11: 10000 | F11: 114
B13: Site rental - Rural | C13: £ / site / pa | D13: 1000 | F13: 114
B14: Site rental - Urban | C14: £ / site / pa | D14: 5000 | F14: 114
B16: Installation and commissioning | C16: % of annual capital costs | D16: 0.5 | F16: 114
B17: Accommodation and power | C17: % of annual capital costs | D17: 0.5 | F17: 115
B18: Maintenance | C18: % of total capital costs | D18: 0.12 | F18: 115
B20: Lifetime of new equipment | C20: Years | D20: 7 | F20: 117
B21: Lifetime of structures | C21: Years | D21: 20 | F21: 117

Sheet MCT Cost Trends
A1: Source: 2021 MCT model
A2: https://www.ofcom.org.uk/consultations-and-statements/category-2/2021-26-wholesale-voice-markets-review
A3: https://www.ofcom.org.uk/__data/assets/file/0028/216793/mct-model-2021-26-wholesale-voice-markets-review.zip
A4: Cost model, "Unit investment Worksheet"
H7: 1990/91 | I7: 1991/92 | J7: 1992/93 | K7: 1993/94 | L7: 1994/95 | M7: 1995/96 | N7: 1996/97 | O7: 1997/98 | P7: 1998/99 | Q7: 1999/00 | R7: 2000/01 | S7: 2001/02 | T7: 2002/03 | U7: 2003/04 | V7: 2004/05 | W7: 2005/06 | X7: 2006/07 | Y7: 2007/08 | Z7: 2008/09 | AA7: 2009/10 | AB7: 2010/11 | AC7: 2011/12 | AD7: 2012/13 | AE7: 2013/14 | AF7: 2014/15 | AG7: 2015/16 | AH7: 2016/17 | AI7: 2017/18 | AJ7: 2018/19 | AK7: 2019/20 | AL7: 2020/21 | AM7: 2021/22 | AN7: 2022/23 | AO7: 2023/24 | AP7: 2024/25 | AQ7: 2025/26 | AR7: 2026/27 | AS7: 2027/28 | AT7: 2028/29 | AU7: 2029/30 | AV7: 2030/31 | AW7: 2031/32 | AX7: 2032/33 | AY7: 2033/34 | AZ7: 2034/35 | BA7: 2035/36 | BB7: 2036/37 | BC7: 2037/38 | BD7: 2038/39 | BE7: 2039/40
H8: 1990 | I8: 1991 | J8: 1992 | K8: 1993 | L8: 1994 | M8: 1995 | N8: 1996 | O8: 1997 | P8: 1998 | Q8: 1999 | R8: 2000 | S8: 2001 | T8: 2002 | U8: 2003 | V8: 2004 | W8: 2005 | X8: 2006 | Y8: 2007 | Z8: 2008 | AA8: 2009 | AB8: 2010 | AC8: 2011 | AD8: 2012 | AE8: 2013 | AF8: 2014 | AG8: 2015 | AH8: 2016 | AI8: 2017 | AJ8: 2018 | AK8: 2019 | AL8: 2020 | AM8: 2021 | AN8: 2022 | AO8: 2023 | AP8: 2024 | AQ8: 2025 | AR8: 2026 | AS8: 2027 | AT8: 2028 | AU8: 2029 | AV8: 2030 | AW8: 2031 | AX8: 2032 | AY8: 2033 | AZ8: 2034 | BA8: 2035 | BB8: 2036 | BC8: 2037 | BD8: 2038 | BE8: 2039
A9: Base MEA investment price trend (excluding capacity changes or RAN/Site sharing adjustments) | H9: Source: Retained from 2011 MCT model | AA9: Source: Orange and blue cells below indicate amendments based on s135 responses | AF9: Source: Long-term values out to 2020/21 extended to 2026/27
A10: 1 | B10: spare | C10: spare | E10: %
A11: 2 | B11: Cell sites | C11: Macrocell: site acquisition and preparation and lease | E11: % | H11: 0 | I11: 0 | J11: 0 | K11: 0 | L11: 0 | M11: 0 | N11: 0 | O11: 0 | P11: 0 | Q11: 0 | R11: 0 | S11: 0 | T11: 0 | U11: 0 | V11: 0 | W11: 0 | X11: 0 | Y11: 0 | Z11: 0.01 | AA11: -0.15 | AB11: -0.15 | AC11: -0.15 | AD11: 0.007 | AE11: 0.007 | AF11: 0.02 | AG11: 0.005 | AH11: 0.005 | AI11: 0.005 | AJ11: 0 | AK11: 0 | AL11: 0 | AM11: 0 | AN11: 0 | AO11: 0 | AP11: 0 | AQ11: 0 | AR11: 0 | AS11: 0 | AT11: 0 | AU11: 0 | AV11: 0 | AW11: 0 | AX11: 0 | AY11: 0 | AZ11: 0 | BA11: 0 | BB11: 0 | BC11: 0 | BD11: 0 | BE11: 0
A12: 3 | B12: 2G cell site equipment | C12: Macrocell: equipment (omni sector) | E12: % | H12: -0.05 | I12: -0.05 | J12: -0.05 | K12: -0.05 | L12: -0.05 | M12: -0.05 | N12: -0.05 | O12: -0.05 | P12: -0.0772 | Q12: -0.0669 | R12: -0.07 | S12: -0.06 | T12: -0.05 | U12: -0.05 | V12: -0.05 | W12: -0.25 | X12: -0.2 | Y12: -0.2 | Z12: -0.15 | AA12: -0.4208 | AB12: -0.4208 | AC12: -0.4208 | AD12: -0.04 | AE12: -0.04 | AF12: -0.04 | AG12: -0.04 | AH12: -0.04 | AI12: -0.04 | AJ12: -0.04 | AK12: -0.04 | AL12: -0.02 | AM12: -0.01 | AN12: -0.005 | AO12: -0.0025 | AP12: -0.00125 | AQ12: -0.000625 | AR12: -0.0003125 | AS12: 0 | AT12: 0 | AU12: 0 | AV12: 0 | AW12: 0 | AX12: 0 | AY12: 0 | AZ12: 0 | BA12: 0 | BB12: 0 | BC12: 0 | BD12: 0 | BE12: 0
A13: 4 | B13: spare | C13: spare | E13: %
A14: 5 | B14: 2G cell site equipment | C14: Macrocell: equipment (2 sector) | E14: % | H14: -0.05 | I14: -0.05 | J14: -0.05 | K14: -0.05 | L14: -0.05 | M14: -0.05 | N14: -0.05 | O14: -0.05 | P14: -0.0772 | Q14: -0.0669 | R14: -0.07 | S14: -0.06 | T14: -0.05 | U14: -0.05 | V14: -0.05 | W14: -0.25 | X14: -0.2 | Y14: -0.2 | Z14: -0.15 | AA14: -0.4 | AB14: -0.4 | AC14: -0.4 | AD14: -0.057 | AE14: -0.057 | AF14: -0.04 | AG14: -0.04 | AH14: -0.04 | AI14: -0.04 | AJ14: -0.04 | AK14: -0.04 | AL14: -0.02 | AM14: -0.01 | AN14: -0.005 | AO14: -0.0025 | AP14: -0.00125 | AQ14: -0.000625 | AR14: -0.0003125 | AS14: 0 | AT14: 0 | AU14: 0 | AV14: 0 | AW14: 0 | AX14: 0 | AY14: 0 | AZ14: 0 | BA14: 0 | BB14: 0 | BC14: 0 | BD14: 0 | BE14: 0
A15: 6 | B15: spare | C15: spare | E15: %
A16: 7 | B16: 2G cell site equipment | C16: Macrocell: equipment (3 sector) | E16: % | H16: -0.05 | I16: -0.05 | J16: -0.05 | K16: -0.05 | L16: -0.05 | M16: -0.05 | N16: -0.05 | O16: -0.05 | P16: -0.0772 | Q16: -0.0669 | R16: -0.07 | S16: -0.06 | T16: -0.05 | U16: -0.05 | V16: -0.05 | W16: -0.25 | X16: -0.2 | Y16: -0.2 | Z16: -0.15 | AA16: -0.3201 | AB16: -0.3201 | AC16: -0.3201 | AD16: -0.034 | AE16: -0.034 | AF16: -0.04 | AG16: -0.04 | AH16: -0.04 | AI16: -0.04 | AJ16: -0.04 | AK16: -0.04 | AL16: -0.02 | AM16: -0.01 | AN16: -0.005 | AO16: -0.0025 | AP16: -0.00125 | AQ16: -0.000625 | AR16: -0.0003125 | AS16: 0 | AT16: 0 | AU16: 0 | AV16: 0 | AW16: 0 | AX16: 0 | AY16: 0 | AZ16: 0 | BA16: 0 | BB16: 0 | BC16: 0 | BD16: 0 | BE16: 0
A17: 8 | B17: Cell sites | C17: Microcell: site acquisition and preparation and lease | E17: % | H17: 0 | I17: 0 | J17: 0 | K17: 0 | L17: 0 | M17: 0 | N17: 0 | O17: 0 | P17: 0 | Q17: 0 | R17: 0 | S17: 0 | T17: 0 | U17: 0 | V17: 0 | W17: 0 | X17: 0 | Y17: 0 | Z17: 0.01 | AA17: -0.15 | AB17: -0.15 | AC17: -0.15 | AD17: 0.007 | AE17: 0.007 | AF17: 0.02 | AG17: 0.005 | AH17: 0.005 | AI17: 0.005 | AJ17: 0 | AK17: 0 | AL17: 0 | AM17: 0 | AN17: 0 | AO17: 0 | AP17: 0 | AQ17: 0 | AR17: 0 | AS17: 0 | AT17: 0 | AU17: 0 | AV17: 0 | AW17: 0 | AX17: 0 | AY17: 0 | AZ17: 0 | BA17: 0 | BB17: 0 | BC17: 0 | BD17: 0 | BE17: 0
A18: 9 | B18: 2G cell site equipment | C18: Microcell: equipment | E18: % | H18: -0.05 | I18: -0.05 | J18: -0.05 | K18: -0.05 | L18: -0.05 | M18: -0.05 | N18: -0.05 | O18: -0.05 | P18: -0.0772 | Q18: -0.0669 | R18: -0.07 | S18: -0.06 | T18: -0.05 | U18: -0.05 | V18: -0.05 | W18: -0.25 | X18: -0.2 | Y18: -0.2 | Z18: -0.15 | AA18: -0.2456 | AB18: -0.2456 | AC18: -0.2456 | AD18: 0.041 | AE18: 0.041 | AF18: -0.04 | AG18: -0.04 | AH18: -0.04 | AI18: -0.04 | AJ18: -0.04 | AK18: -0.04 | AL18: -0.02 | AM18: -0.01 | AN18: -0.005 | AO18: -0.0025 | AP18: -0.00125 | AQ18: -0.000625 | AR18: -0.0003125 | AS18: 0 | AT18: 0 | AU18: 0 | AV18: 0 | AW18: 0 | AX18: 0 | AY18: 0 | AZ18: 0 | BA18: 0 | BB18: 0 | BC18: 0 | BD18: 0 | BE18: 0
A19: 10 | B19: Cell sites | C19: Picocell: site acquisition and preparation and lease | E19: % | H19: 0 | I19: 0 | J19: 0 | K19: 0 | L19: 0 | M19: 0 | N19: 0 | O19: 0 | P19: 0 | Q19: 0 | R19: 0 | S19: 0 | T19: 0 | U19: 0 | V19: 0 | W19: 0 | X19: 0 | Y19: 0 | Z19: 0.01 | AA19: -0.15 | AB19: -0.15 | AC19: -0.15 | AD19: 0.007 | AE19: 0.007 | AF19: 0.02 | AG19: 0.005 | AH19: 0.005 | AI19: 0.005 | AJ19: 0 | AK19: 0 | AL19: 0 | AM19: 0 | AN19: 0 | AO19: 0 | AP19: 0 | AQ19: 0 | AR19: 0 | AS19: 0 | AT19: 0 | AU19: 0 | AV19: 0 | AW19: 0 | AX19: 0 | AY19: 0 | AZ19: 0 | BA19: 0 | BB19: 0 | BC19: 0 | BD19: 0 | BE19: 0
A20: 11 | B20: 2G cell site equipment | C20: Picocell: equipment | E20: % | H20: -0.05 | I20: -0.05 | J20: -0.05 | K20: -0.05 | L20: -0.05 | M20: -0.05 | N20: -0.05 | O20: -0.05 | P20: -0.0772 | Q20: -0.0669 | R20: -0.07 | S20: -0.06 | T20: -0.05 | U20: -0.05 | V20: -0.05 | W20: -0.25 | X20: -0.2 | Y20: -0.2 | Z20: -0.15 | AA20: -0.4208 | AB20: -0.4208 | AC20: -0.4208 | AD20: -0.04 | AE20: -0.04 | AF20: -0.04 | AG20: -0.04 | AH20: -0.04 | AI20: -0.04 | AJ20: -0.04 | AK20: -0.04 | AL20: -0.02 | AM20: -0.01 | AN20: -0.005 | AO20: -0.0025 | AP20: -0.00125 | AQ20: -0.000625 | AR20: -0.0003125 | AS20: 0 | AT20: 0 | AU20: 0 | AV20: 0 | AW20: 0 | AX20: 0 | AY20: 0 | AZ20: 0 | BA20: 0 | BB20: 0 | BC20: 0 | BD20: 0 | BE20: 0
A21: 12 | B21: 2G TRXs | C21: Macrocell: additional TRXs | E21: % | H21: 0 | I21: 0 | J21: 0 | K21: -0.05 | L21: -0.05 | M21: -0.05 | N21: -0.1 | O21: -0.1 | P21: -0.3 | Q21: -0.3 | R21: -0.15 | S21: -0.1 | T21: -0.05 | U21: -0.05 | V21: -0.05 | W21: -0.25 | X21: -0.2 | Y21: -0.2 | Z21: -0.15 | AA21: -0.0562 | AB21: -0.0562 | AC21: -0.0562 | AD21: -0.008 | AE21: -0.008 | AF21: -0.015 | AG21: -0.015 | AH21: -0.015 | AI21: -0.015 | AJ21: -0.015 | AK21: -0.015 | AL21: 0 | AM21: 0 | AN21: 0 | AO21: 0 | AP21: 0 | AQ21: 0 | AR21: 0 | AS21: 0 | AT21: 0 | AU21: 0 | AV21: 0 | AW21: 0 | AX21: 0 | AY21: 0 | AZ21: 0 | BA21: 0 | BB21: 0 | BC21: 0 | BD21: 0 | BE21: 0
A22: 13 | B22: 2G TRXs | C22: Microcell: additional TRXs | E22: % | H22: 0 | I22: 0 | J22: 0 | K22: -0.05 | L22: -0.05 | M22: -0.05 | N22: -0.1 | O22: -0.1 | P22: -0.3 | Q22: -0.3 | R22: -0.15 | S22: -0.1 | T22: -0.05 | U22: -0.05 | V22: -0.05 | W22: -0.25 | X22: -0.2 | Y22: -0.2 | Z22: -0.15 | AA22: -0.0562 | AB22: -0.0562 | AC22: -0.0562 | AD22: -0.008 | AE22: -0.008 | AF22: -0.015 | AG22: -0.015 | AH22: -0.015 | AI22: -0.015 | AJ22: -0.015 | AK22: -0.015 | AL22: 0 | AM22: 0 | AN22: 0 | AO22: 0 | AP22: 0 | AQ22: 0 | AR22: 0 | AS22: 0 | AT22: 0 | AU22: 0 | AV22: 0 | AW22: 0 | AX22: 0 | AY22: 0 | AZ22: 0 | BA22: 0 | BB22: 0 | BC22: 0 | BD22: 0 | BE22: 0
A23: 14 | B23: 2G TRXs | C23: Picocell: additional TRXs | E23: % | H23: 0 | I23: 0 | J23: 0 | K23: -0.05 | L23: -0.05 | M23: -0.05 | N23: -0.1 | O23: -0.1 | P23: -0.3 | Q23: -0.3 | R23: -0.15 | S23: -0.1 | T23: -0.05 | U23: -0.05 | V23: -0.05 | W23: -0.25 | X23: -0.2 | Y23: -0.2 | Z23: -0.15 | AA23: -0.0562 | AB23: -0.0562 | AC23: -0.0562 | AD23: -0.008 | AE23: -0.008 | AF23: -0.015 | AG23: -0.015 | AH23: -0.015 | AI23: -0.015 | AJ23: -0.015 | AK23: -0.015 | AL23: 0 | AM23: 0 | AN23: 0 | AO23: 0 | AP23: 0 | AQ23: 0 | AR23: 0 | AS23: 0 | AT23: 0 | AU23: 0 | AV23: 0 | AW23: 0 | AX23: 0 | AY23: 0 | AZ23: 0 | BA23: 0 | BB23: 0 | BC23: 0 | BD23: 0 | BE23: 0
A24: 15 | B24: 2G BSCs | C24: BSC: base unit | E24: % | H24: -0.05 | I24: -0.05 | J24: -0.05 | K24: -0.05 | L24: -0.05 | M24: -0.05 | N24: -0.1 | O24: -0.1 | P24: -0.16 | Q24: -0.12 | R24: -0.1 | S24: -0.09 | T24: -0.07 | U24: -0.06 | V24: -0.04 | W24: -0.4 | X24: -0.4 | Y24: -0.4 | Z24: -0.4 | AA24: 0.055 | AB24: 0.055 | AC24: 0.055 | AD24: -0.266 | AE24: -0.266 | AF24: -0.01 | AG24: -0.01 | AH24: -0.01 | AI24: -0.01 | AJ24: -0.01 | AK24: -0.01 | AL24: -0.005 | AM24: -0.0025 | AN24: -0.00125 | AO24: -0.000625 | AP24: -0.0003125 | AQ24: -0.00015625 | AR24: -7.8125e-05 | AS24: 0 | AT24: 0 | AU24: 0 | AV24: 0 | AW24: 0 | AX24: 0 | AY24: 0 | AZ24: 0 | BA24: 0 | BB24: 0 | BC24: 0 | BD24: 0 | BE24: 0
A25: 16 | B25: 2G BSCs | C25: BSC: BS-facing port increment | E25: % | H25: -0.05 | I25: -0.05 | J25: -0.05 | K25: -0.05 | L25: -0.05 | M25: -0.05 | N25: -0.1 | O25: -0.1 | P25: -0.16 | Q25: -0.12 | R25: -0.1 | S25: -0.09 | T25: -0.07 | U25: -0.06 | V25: -0.04 | W25: -0.4 | X25: -0.4 | Y25: -0.4 | Z25: -0.4 | AA25: 0.055 | AB25: 0.055 | AC25: 0.055 | AD25: -0.266 | AE25: -0.266 | AF25: -0.01 | AG25: -0.01 | AH25: -0.01 | AI25: -0.01 | AJ25: -0.01 | AK25: -0.01 | AL25: -0.005 | AM25: -0.0025 | AN25: -0.00125 | AO25: -0.000625 | AP25: -0.0003125 | AQ25: -0.00015625 | AR25: -7.8125e-05 | AS25: 0 | AT25: 0 | AU25: 0 | AV25: 0 | AW25: 0 | AX25: 0 | AY25: 0 | AZ25: 0 | BA25: 0 | BB25: 0 | BC25: 0 | BD25: 0 | BE25: 0
A26: 17 | B26: 2G BSCs | C26: BSC: Core-facing port increment | E26: % | H26: -0.05 | I26: -0.05 | J26: -0.05 | K26: -0.05 | L26: -0.05 | M26: -0.05 | N26: -0.1 | O26: -0.1 | P26: -0.16 | Q26: -0.12 | R26: -0.1 | S26: -0.09 | T26: -0.07 | U26: -0.06 | V26: -0.04 | W26: -0.4 | X26: -0.4 | Y26: -0.4 | Z26: -0.4 | AA26: 0.055 | AB26: 0.055 | AC26: 0.055 | AD26: -0.266 | AE26: -0.266 | AF26: -0.01 | AG26: -0.01 | AH26: -0.01 | AI26: -0.01 | AJ26: -0.01 | AK26: -0.01 | AL26: -0.005 | AM26: -0.0025 | AN26: -0.00125 | AO26: -0.000625 | AP26: -0.0003125 | AQ26: -0.00015625 | AR26: -7.8125e-05 | AS26: 0 | AT26: 0 | AU26: 0 | AV26: 0 | AW26: 0 | AX26: 0 | AY26: 0 | AZ26: 0 | BA26: 0 | BB26: 0 | BC26: 0 | BD26: 0 | BE26: 0
A27: 18 | B27: 2G BSCs | C27: Packet control units | E27: % | H27: -0.05 | I27: -0.05 | J27: -0.05 | K27: -0.05 | L27: -0.05 | M27: -0.05 | N27: -0.1 | O27: -0.1 | P27: -0.16 | Q27: -0.12 | R27: -0.1 | S27: -0.09 | T27: -0.07 | U27: -0.06 | V27: -0.04 | W27: -0.4 | X27: -0.4 | Y27: -0.4 | Z27: -0.4 | AA27: 0.055 | AB27: 0.055 | AC27: 0.055 | AD27: -0.266 | AE27: -0.266 | AF27: -0.01 | AG27: -0.01 | AH27: -0.01 | AI27: -0.01 | AJ27: -0.01 | AK27: -0.01 | AL27: -0.005 | AM27: -0.0025 | AN27: -0.00125 | AO27: -0.000625 | AP27: -0.0003125 | AQ27: -0.00015625 | AR27: -7.8125e-05 | AS27: 0 | AT27: 0 | AU27: 0 | AV27: 0 | AW27: 0 | AX27: 0 | AY27: 0 | AZ27: 0 | BA27: 0 | BB27: 0 | BC27: 0 | BD27: 0 | BE27: 0
A28: 19 | B28: 2G MSCs | C28: MSC: processor | E28: % | H28: -0.05 | I28: -0.05 | J28: -0.05 | K28: -0.05 | L28: -0.05 | M28: -0.05 | N28: -0.1 | O28: -0.1 | P28: -0.16 | Q28: -0.12 | R28: -0.1 | S28: -0.09 | T28: -0.07 | U28: -0.06 | V28: -0.04 | W28: -0.04 | X28: -0.04 | Y28: -0.04 | Z28: -0.04 | AA28: -0.03333333333 | AB28: -0.02666666667 | AC28: -0.02 | AD28: -0.02 | AE28: -0.02 | AF28: -0.02 | AG28: -0.02 | AH28: -0.02 | AI28: -0.02 | AJ28: -0.02 | AK28: -0.02 | AL28: -0.01 | AM28: -0.01 | AN28: -0.01 | AO28: -0.01 | AP28: -0.01 | AQ28: -0.01 | AR28: -0.01 | AS28: 0 | AT28: 0 | AU28: 0 | AV28: 0 | AW28: 0 | AX28: 0 | AY28: 0 | AZ28: 0 | BA28: 0 | BB28: 0 | BC28: 0 | BD28: 0 | BE28: 0
A29: 20 | B29: 2G MSCs | C29: Software | E29: % | H29: -0.05 | I29: -0.05 | J29: -0.05 | K29: -0.05 | L29: -0.05 | M29: -0.05 | N29: -0.05 | O29: -0.05 | P29: -0.05 | Q29: -0.05 | R29: -0.05 | S29: -0.05 | T29: -0.05 | U29: -0.05 | V29: -0.05 | W29: -0.05 | X29: -0.05 | Y29: -0.05 | Z29: -0.05 | AA29: -0.04166666667 | AB29: -0.03333333333 | AC29: -0.025 | AD29: -0.025 | AE29: -0.025 | AF29: -0.025 | AG29: -0.025 | AH29: -0.025 | AI29: -0.025 | AJ29: -0.025 | AK29: -0.025 | AL29: -0.0125 | AM29: -0.0125 | AN29: -0.0125 | AO29: -0.0125 | AP29: -0.0125 | AQ29: -0.0125 | AR29: -0.0125 | AS29: 0 | AT29: 0 | AU29: 0 | AV29: 0 | AW29: 0 | AX29: 0 | AY29: 0 | AZ29: 0 | BA29: 0 | BB29: 0 | BC29: 0 | BD29: 0 | BE29: 0
A30: 21 | B30: 2G MSCs | C30: Interconnect interface | E30: % | H30: -0.05 | I30: -0.05 | J30: -0.05 | K30: -0.05 | L30: -0.05 | M30: -0.05 | N30: -0.05 | O30: -0.05 | P30: -0.05 | Q30: -0.05 | R30: -0.05 | S30: -0.05 | T30: -0.05 | U30: -0.05 | V30: -0.05 | W30: -0.05 | X30: -0.05 | Y30: -0.05 | Z30: -0.05 | AA30: -0.04166666667 | AB30: -0.03333333333 | AC30: -0.025 | AD30: -0.025 | AE30: -0.025 | AF30: -0.025 | AG30: -0.025 | AH30: -0.025 | AI30: -0.025 | AJ30: -0.025 | AK30: -0.025 | AL30: -0.0125 | AM30: -0.0125 | AN30: -0.0125 | AO30: -0.0125 | AP30: -0.0125 | AQ30: -0.0125 | AR30: -0.0125 | AS30: 0 | AT30: 0 | AU30: 0 | AV30: 0 | AW30: 0 | AX30: 0 | AY30: 0 | AZ30: 0 | BA30: 0 | BB30: 0 | BC30: 0 | BD30: 0 | BE30: 0
A31: 22 | B31: 2G MSCs | C31: Switching Support Plant | E31: % | H31: -0.05 | I31: -0.05 | J31: -0.05 | K31: -0.05 | L31: -0.05 | M31: -0.05 | N31: -0.05 | O31: -0.05 | P31: -0.05 | Q31: -0.05 | R31: -0.05 | S31: -0.05 | T31: -0.05 | U31: -0.05 | V31: -0.05 | W31: -0.05 | X31: -0.05 | Y31: -0.05 | Z31: -0.05 | AA31: -0.04166666667 | AB31: -0.03333333333 | AC31: -0.025 | AD31: -0.025 | AE31: -0.025 | AF31: -0.025 | AG31: -0.025 | AH31: -0.025 | AI31: -0.025 | AJ31: -0.025 | AK31: -0.025 | AL31: -0.0125 | AM31: -0.0125 | AN31: -0.0125 | AO31: -0.0125 | AP31: -0.0125 | AQ31: -0.0125 | AR31: -0.0125 | AS31: 0 | AT31: 0 | AU31: 0 | AV31: 0 | AW31: 0 | AX31: 0 | AY31: 0 | AZ31: 0 | BA31: 0 | BB31: 0 | BC31: 0 | BD31: 0 | BE31: 0
A32: 23 | B32: Main switch sites | C32: Buildings (switch building preparation) | E32: % | H32: 0 | I32: 0 | J32: 0 | K32: 0 | L32: 0 | M32: 0 | N32: 0 | O32: 0 | P32: 0 | Q32: 0 | R32: 0 | S32: 0 | T32: 0 | U32: 0 | V32: 0 | W32: 0 | X32: 0 | Y32: 0 | Z32: 0.01 | AA32: -0.15 | AB32: -0.15 | AC32: -0.15 | AD32: 0.007 | AE32: 0.007 | AF32: 0.02 | AG32: 0.005 | AH32: 0.005 | AI32: 0.005 | AJ32: 0 | AK32: 0 | AL32: 0 | AM32: 0 | AN32: 0 | AO32: 0 | AP32: 0 | AQ32: 0 | AR32: 0 | AS32: 0 | AT32: 0 | AU32: 0 | AV32: 0 | AW32: 0 | AX32: 0 | AY32: 0 | AZ32: 0 | BA32: 0 | BB32: 0 | BC32: 0 | BD32: 0 | BE32: 0
A33: 24 | B33: Main switch sites | C33: Site lease | E33: % | H33: 0 | I33: 0 | J33: 0 | K33: 0 | L33: 0 | M33: 0 | N33: 0 | O33: 0 | P33: 0 | Q33: 0 | R33: 0 | S33: 0 | T33: 0 | U33: 0 | V33: 0 | W33: 0 | X33: 0 | Y33: 0 | Z33: 0.01 | AA33: -0.15 | AB33: -0.15 | AC33: -0.15 | AD33: 0.007 | AE33: 0.007 | AF33: 0.02 | AG33: 0.005 | AH33: 0.005 | AI33: 0.005 | AJ33: 0 | AK33: 0 | AL33: 0 | AM33: 0 | AN33: 0 | AO33: 0 | AP33: 0 | AQ33: 0 | AR33: 0 | AS33: 0 | AT33: 0 | AU33: 0 | AV33: 0 | AW33: 0 | AX33: 0 | AY33: 0 | AZ33: 0 | BA33: 0 | BB33: 0 | BC33: 0 | BD33: 0 | BE33: 0
A34: 25 | B34: 2G MSC ports - BSC-facing | C34: MSC: BSC-facing port increment | E34: % | H34: -0.05 | I34: -0.05 | J34: -0.05 | K34: -0.05 | L34: -0.05 | M34: -0.05 | N34: -0.1 | O34: -0.1 | P34: -0.16 | Q34: -0.12 | R34: -0.1 | S34: -0.09 | T34: -0.07 | U34: -0.06 | V34: -0.04 | W34: -0.04 | X34: -0.04 | Y34: -0.04 | Z34: -0.04 | AA34: -0.03333333333 | AB34: -0.02666666667 | AC34: -0.02 | AD34: -0.02 | AE34: -0.02 | AF34: -0.02 | AG34: -0.02 | AH34: -0.02 | AI34: -0.02 | AJ34: -0.02 | AK34: -0.02 | AL34: -0.01 | AM34: -0.01 | AN34: -0.01 | AO34: -0.01 | AP34: -0.01 | AQ34: -0.01 | AR34: -0.01 | AS34: 0 | AT34: 0 | AU34: 0 | AV34: 0 | AW34: 0 | AX34: 0 | AY34: 0 | AZ34: 0 | BA34: 0 | BB34: 0 | BC34: 0 | BD34: 0 | BE34: 0
A35: 26 | B35: 2G MSC ports - Interconnect facing | C35: MSC: interconnect-facing port increment | E35: % | H35: -0.05 | I35: -0.05 | J35: -0.05 | K35: -0.05 | L35: -0.05 | M35: -0.05 | N35: -0.1 | O35: -0.1 | P35: -0.16 | Q35: -0.12 | R35: -0.1 | S35: -0.09 | T35: -0.07 | U35: -0.06 | V35: -0.04 | W35: -0.04 | X35: -0.04 | Y35: -0.04 | Z35: -0.04 | AA35: -0.03333333333 | AB35: -0.02666666667 | AC35: -0.02 | AD35: -0.02 | AE35: -0.02 | AF35: -0.02 | AG35: -0.02 | AH35: -0.02 | AI35: -0.02 | AJ35: -0.02 | AK35: -0.02 | AL35: -0.01 | AM35: -0.01 | AN35: -0.01 | AO35: -0.01 | AP35: -0.01 | AQ35: -0.01 | AR35: -0.01 | AS35: 0 | AT35: 0 | AU35: 0 | AV35: 0 | AW35: 0 | AX35: 0 | AY35: 0 | AZ35: 0 | BA35: 0 | BB35: 0 | BC35: 0 | BD35: 0 | BE35: 0
A36: 27 | B36: 2G MSC ports - Interswitch facing | C36: MSC: switch-facing port increment | E36: % | H36: -0.05 | I36: -0.05 | J36: -0.05 | K36: -0.05 | L36: -0.05 | M36: -0.05 | N36: -0.1 | O36: -0.1 | P36: -0.16 | Q36: -0.12 | R36: -0.1 | S36: -0.09 | T36: -0.07 | U36: -0.06 | V36: -0.04 | W36: -0.04 | X36: -0.04 | Y36: -0.04 | Z36: -0.04 | AA36: -0.03333333333 | AB36: -0.02666666667 | AC36: -0.02 | AD36: -0.02 | AE36: -0.02 | AF36: -0.02 | AG36: -0.02 | AH36: -0.02 | AI36: -0.02 | AJ36: -0.02 | AK36: -0.02 | AL36: -0.01 | AM36: -0.01 | AN36: -0.01 | AO36: -0.01 | AP36: -0.01 | AQ36: -0.01 | AR36: -0.01 | AS36: 0 | AT36: 0 | AU36: 0 | AV36: 0 | AW36: 0 | AX36: 0 | AY36: 0 | AZ36: 0 | BA36: 0 | BB36: 0 | BC36: 0 | BD36: 0 | BE36: 0
A37: 28 | B37: Core transmission | C37: Core transmission in 2Mbit/s circuits | E37: % | H37: 0 | I37: 0 | J37: 0 | K37: 0 | L37: 0 | M37: 0 | N37: 0 | O37: 0 | P37: 0 | Q37: 0 | R37: 0 | S37: 0 | T37: 0 | U37: 0 | V37: 0 | W37: 0 | X37: 0 | Y37: 0 | Z37: 0 | AA37: 0 | AB37: 0 | AC37: 0 | AD37: 0 | AE37: 0 | AF37: 0 | AG37: 0 | AH37: 0 | AI37: 0 | AJ37: 0 | AK37: 0 | AL37: 0 | AM37: 0 | AN37: 0 | AO37: 0 | AP37: 0 | AQ37: 0 | AR37: 0 | AS37: 0 | AT37: 0 | AU37: 0 | AV37: 0 | AW37: 0 | AX37: 0 | AY37: 0 | AZ37: 0 | BA37: 0 | BB37: 0 | BC37: 0 | BD37: 0 | BE37: 0
A38: 29 | B38: HLRs | C38: HLR | E38: % | H38: -0.05 | I38: -0.05 | J38: -0.05 | K38: -0.05 | L38: -0.05 | M38: -0.05 | N38: -0.1 | O38: -0.1 | P38: -0.16 | Q38: -0.12 | R38: -0.1 | S38: -0.09 | T38: -0.07 | U38: -0.06 | V38: -0.04 | W38: -0.04 | X38: -0.04 | Y38: -0.04 | Z38: -0.04 | AA38: -0.03333333333 | AB38: -0.02666666667 | AC38: -0.02 | AD38: -0.02 | AE38: -0.02 | AF38: -0.02 | AG38: -0.02 | AH38: -0.02 | AI38: -0.02 | AJ38: -0.02 | AK38: -0.02 | AL38: -0.01 | AM38: -0.01 | AN38: -0.01 | AO38: -0.01 | AP38: -0.01 | AQ38: -0.01 | AR38: -0.01 | AS38: 0 | AT38: 0 | AU38: 0 | AV38: 0 | AW38: 0 | AX38: 0 | AY38: 0 | AZ38: 0 | BA38: 0 | BB38: 0 | BC38: 0 | BD38: 0 | BE38: 0
A39: 30 | B39: Transit switches | C39: Transit switches | E39: % | H39: -0.05 | I39: -0.05 | J39: -0.05 | K39: -0.05 | L39: -0.05 | M39: -0.05 | N39: -0.1 | O39: -0.1 | P39: -0.16 | Q39: -0.12 | R39: -0.1 | S39: -0.09 | T39: -0.07 | U39: -0.06 | V39: -0.04 | W39: -0.04 | X39: -0.04 | Y39: -0.04 | Z39: -0.04 | AA39: -0.03333333333 | AB39: -0.02666666667 | AC39: -0.02 | AD39: -0.02 | AE39: -0.02 | AF39: -0.02 | AG39: -0.02 | AH39: -0.02 | AI39: -0.02 | AJ39: -0.02 | AK39: -0.02 | AL39: -0.01 | AM39: -0.01 | AN39: -0.01 | AO39: -0.01 | AP39: -0.01 | AQ39: -0.01 | AR39: -0.01 | AS39: 0 | AT39: 0 | AU39: 0 | AV39: 0 | AW39: 0 | AX39: 0 | AY39: 0 | AZ39: 0 | BA39: 0 | BB39: 0 | BC39: 0 | BD39: 0 | BE39: 0
A40: 31 | B40: spare | C40: spare | E40: %
A41: 32 | B41: 2G Licence fees | C41: Annual GSM licence fee | E41: % | H41: 0 | I41: 0 | J41: 0 | K41: 0 | L41: 0 | M41: 0 | N41: 0 | O41: 0 | P41: 0 | Q41: 0 | R41: 0 | S41: 0 | T41: 0 | U41: 0 | V41: 0 | W41: 0 | X41: 0 | Y41: 0 | Z41: 0 | AA41: 0 | AB41: 0 | AC41: 0 | AD41: 0 | AE41: 0 | AF41: 0 | AG41: 0 | AH41: 0 | AI41: 0 | AJ41: 0 | AK41: 0 | AL41: 0 | AM41: 0 | AN41: 0 | AO41: 0 | AP41: 0 | AQ41: 0 | AR41: 0 | AS41: 0 | AT41: 0 | AU41: 0 | AV41: 0 | AW41: 0 | AX41: 0 | AY41: 0 | AZ41: 0 | BA41: 0 | BB41: 0 | BC41: 0 | BD41: 0 | BE41: 0
A42: 33 | B42: 2G NMS | C42: Network management | E42: % | H42: -0.05 | I42: -0.05 | J42: -0.05 | K42: -0.05 | L42: -0.05 | M42: -0.05 | N42: -0.05 | O42: -0.05 | P42: -0.05 | Q42: -0.05 | R42: -0.05 | S42: -0.05 | T42: -0.05 | U42: -0.05 | V42: -0.05 | W42: -0.05 | X42: -0.05 | Y42: -0.05 | Z42: -0.05 | AA42: -0.04166666667 | AB42: -0.03333333333 | AC42: -0.025 | AD42: -0.025 | AE42: -0.025 | AF42: -0.025 | AG42: -0.025 | AH42: -0.025 | AI42: -0.025 | AJ42: -0.025 | AK42: -0.025 | AL42: -0.0125 | AM42: -0.0125 | AN42: -0.0125 | AO42: -0.0125 | AP42: -0.0125 | AQ42: -0.0125 | AR42: -0.0125 | AS42: 0 | AT42: 0 | AU42: 0 | AV42: 0 | AW42: 0 | AX42: 0 | AY42: 0 | AZ42: 0 | BA42: 0 | BB42: 0 | BC42: 0 | BD42: 0 | BE42: 0
A43: 34 | B43: 2G GSN | C43: 2G SGSN | E43: % | H43: -0.05 | I43: -0.05 | J43: -0.05 | K43: -0.05 | L43: -0.05 | M43: -0.05 | N43: -0.1 | O43: -0.1 | P43: -0.16 | Q43: -0.12 | R43: -0.1 | S43: -0.09 | T43: -0.07 | U43: -0.06 | V43: -0.04 | W43: -0.04 | X43: -0.04 | Y43: -0.04 | Z43: -0.04 | AA43: -0.03333333333 | AB43: -0.02666666667 | AC43: -0.02 | AD43: -0.02 | AE43: -0.02 | AF43: -0.02 | AG43: -0.02 | AH43: -0.02 | AI43: -0.02 | AJ43: -0.02 | AK43: -0.02 | AL43: -0.01 | AM43: -0.01 | AN43: -0.01 | AO43: -0.01 | AP43: -0.01 | AQ43: -0.01 | AR43: -0.01 | AS43: 0 | AT43: 0 | AU43: 0 | AV43: 0 | AW43: 0 | AX43: 0 | AY43: 0 | AZ43: 0 | BA43: 0 | BB43: 0 | BC43: 0 | BD43: 0 | BE43: 0
A44: 35 | B44: 2G GSN | C44: 2G GGSN | E44: % | H44: -0.05 | I44: -0.05 | J44: -0.05 | K44: -0.05 | L44: -0.05 | M44: -0.05 | N44: -0.1 | O44: -0.1 | P44: -0.16 | Q44: -0.12 | R44: -0.1 | S44: -0.09 | T44: -0.07 | U44: -0.06 | V44: -0.04 | W44: -0.04 | X44: -0.04 | Y44: -0.04 | Z44: -0.04 | AA44: -0.03333333333 | AB44: -0.02666666667 | AC44: -0.02 | AD44: -0.02 | AE44: -0.02 | AF44: -0.02 | AG44: -0.02 | AH44: -0.02 | AI44: -0.02 | AJ44: -0.02 | AK44: -0.02 | AL44: -0.01 | AM44: -0.01 | AN44: -0.01 | AO44: -0.01 | AP44: -0.01 | AQ44: -0.01 | AR44: -0.01 | AS44: 0 | AT44: 0 | AU44: 0 | AV44: 0 | AW44: 0 | AX44: 0 | AY44: 0 | AZ44: 0 | BA44: 0 | BB44: 0 | BC44: 0 | BD44: 0 | BE44: 0
A45: 36 | B45: SMSC | C45: SMSC | E45: % | H45: -0.05 | I45: -0.05 | J45: -0.05 | K45: -0.05 | L45: -0.05 | M45: -0.05 | N45: -0.1 | O45: -0.1 | P45: -0.16 | Q45: -0.12 | R45: -0.1 | S45: -0.09 | T45: -0.07 | U45: -0.06 | V45: -0.04 | W45: -0.04 | X45: -0.04 | Y45: -0.04 | Z45: -0.04 | AA45: -0.03333333333 | AB45: -0.2 | AC45: -0.2 | AD45: -0.2 | AE45: -0.2 | AF45: -0.02 | AG45: -0.02 | AH45: -0.02 | AI45: -0.02 | AJ45: -0.02 | AK45: -0.02 | AL45: -0.01 | AM45: -0.01 | AN45: -0.01 | AO45: -0.01 | AP45: -0.01 | AQ45: -0.01 | AR45: -0.01 | AS45: 0 | AT45: 0 | AU45: 0 | AV45: 0 | AW45: 0 | AX45: 0 | AY45: 0 | AZ45: 0 | BA45: 0 | BB45: 0 | BC45: 0 | BD45: 0 | BE45: 0
A46: 37 | B46: Backhaul | C46: 2 Mbit/s microwave link | E46: % | H46: -0.05 | I46: -0.05 | J46: -0.05 | K46: -0.05 | L46: -0.05 | M46: -0.05 | N46: -0.02 | O46: -0.02 | P46: -0.02 | Q46: -0.02 | R46: -0.02 | S46: -0.02 | T46: -0.02 | U46: -0.02 | V46: -0.02 | W46: -0.02 | X46: -0.02 | Y46: -0.02 | Z46: -0.02 | AA46: -0.02 | AB46: -0.05 | AC46: -0.05 | AD46: -0.05 | AE46: -0.05 | AF46: -0.025 | AG46: -0.025 | AH46: -0.025 | AI46: -0.025 | AJ46: -0.025 | AK46: -0.025 | AL46: -0.01 | AM46: -0.01 | AN46: -0.01 | AO46: -0.01 | AP46: -0.01 | AQ46: -0.01 | AR46: -0.01 | AS46: 0 | AT46: 0 | AU46: 0 | AV46: 0 | AW46: 0 | AX46: 0 | AY46: 0 | AZ46: 0 | BA46: 0 | BB46: 0 | BC46: 0 | BD46: 0 | BE46: 0
A47: 38 | B47: Backhaul | C47: 8 Mbit/s microwave link | E47: % | H47: -0.05 | I47: -0.05 | J47: -0.05 | K47: -0.05 | L47: -0.05 | M47: -0.05 | N47: -0.02 | O47: -0.02 | P47: -0.02 | Q47: -0.02 | R47: -0.02 | S47: -0.02 | T47: -0.02 | U47: -0.02 | V47: -0.02 | W47: -0.02 | X47: -0.02 | Y47: -0.02 | Z47: -0.02 | AA47: -0.02 | AB47: -0.05 | AC47: -0.05 | AD47: -0.05 | AE47: -0.05 | AF47: -0.025 | AG47: -0.025 | AH47: -0.025 | AI47: -0.025 | AJ47: -0.025 | AK47: -0.025 | AL47: -0.01 | AM47: -0.01 | AN47: -0.01 | AO47: -0.01 | AP47: -0.01 | AQ47: -0.01 | AR47: -0.01 | AS47: 0 | AT47: 0 | AU47: 0 | AV47: 0 | AW47: 0 | AX47: 0 | AY47: 0 | AZ47: 0 | BA47: 0 | BB47: 0 | BC47: 0 | BD47: 0 | BE47: 0
A48: 39 | B48: Backhaul | C48: 16 Mbit/s microwave link | E48: % | H48: -0.05 | I48: -0.05 | J48: -0.05 | K48: -0.05 | L48: -0.05 | M48: -0.05 | N48: -0.02 | O48: -0.02 | P48: -0.02 | Q48: -0.02 | R48: -0.02 | S48: -0.02 | T48: -0.02 | U48: -0.02 | V48: -0.02 | W48: -0.02 | X48: -0.02 | Y48: -0.02 | Z48: -0.02 | AA48: -0.02 | AB48: -0.05 | AC48: -0.05 | AD48: -0.05 | AE48: -0.05 | AF48: -0.025 | AG48: -0.025 | AH48: -0.025 | AI48: -0.025 | AJ48: -0.025 | AK48: -0.025 | AL48: -0.01 | AM48: -0.01 | AN48: -0.01 | AO48: -0.01 | AP48: -0.01 | AQ48: -0.01 | AR48: -0.01 | AS48: 0 | AT48: 0 | AU48: 0 | AV48: 0 | AW48: 0 | AX48: 0 | AY48: 0 | AZ48: 0 | BA48: 0 | BB48: 0 | BC48: 0 | BD48: 0 | BE48: 0
A49: 40 | B49: Backhaul | C49: 32 Mbit/s microwave link | E49: % | H49: -0.05 | I49: -0.05 | J49: -0.05 | K49: -0.05 | L49: -0.05 | M49: -0.05 | N49: -0.02 | O49: -0.02 | P49: -0.02 | Q49: -0.02 | R49: -0.02 | S49: -0.02 | T49: -0.02 | U49: -0.02 | V49: -0.02 | W49: -0.02 | X49: -0.02 | Y49: -0.02 | Z49: -0.02 | AA49: -0.02 | AB49: -0.05 | AC49: -0.05 | AD49: -0.05 | AE49: -0.05 | AF49: -0.025 | AG49: -0.025 | AH49: -0.025 | AI49: -0.025 | AJ49: -0.025 | AK49: -0.025 | AL49: -0.01 | AM49: -0.01 | AN49: -0.01 | AO49: -0.01 | AP49: -0.01 | AQ49: -0.01 | AR49: -0.01 | AS49: 0 | AT49: 0 | AU49: 0 | AV49: 0 | AW49: 0 | AX49: 0 | AY49: 0 | AZ49: 0 | BA49: 0 | BB49: 0 | BC49: 0 | BD49: 0 | BE49: 0
A50: 41 | B50: spare | C50: spare | E50: %
A51: 42 | B51: 3G cell site equipment | C51: Macrocell equipment | E51: % | H51: -0.05 | I51: -0.05 | J51: -0.05 | K51: -0.05 | L51: -0.05 | M51: -0.05 | N51: -0.05 | O51: -0.05 | P51: -0.05 | Q51: -0.05 | R51: -0.05 | S51: -0.05 | T51: -0.05 | U51: -0.05 | V51: -0.05 | W51: -0.25 | X51: -0.2 | Y51: -0.2 | Z51: -0.15 | AA51: -0.3882 | AB51: -0.3882 | AC51: -0.3882 | AD51: -0.069 | AE51: -0.069 | AF51: -0.025 | AG51: -0.025 | AH51: -0.025 | AI51: -0.025 | AJ51: -0.025 | AK51: -0.025 | AL51: -0.01 | AM51: -0.01 | AN51: -0.01 | AO51: -0.01 | AP51: -0.01 | AQ51: -0.01 | AR51: -0.01 | AS51: 0 | AT51: 0 | AU51: 0 | AV51: 0 | AW51: 0 | AX51: 0 | AY51: 0 | AZ51: 0 | BA51: 0 | BB51: 0 | BC51: 0 | BD51: 0 | BE51: 0
A52: 43 | B52: 3G cell site equipment | C52: Microcell equipment | E52: % | H52: -0.05 | I52: -0.05 | J52: -0.05 | K52: -0.05 | L52: -0.05 | M52: -0.05 | N52: -0.05 | O52: -0.05 | P52: -0.05 | Q52: -0.05 | R52: -0.05 | S52: -0.05 | T52: -0.05 | U52: -0.05 | V52: -0.05 | W52: -0.25 | X52: -0.2 | Y52: -0.2 | Z52: -0.15 | AA52: -0.3882 | AB52: -0.3882 | AC52: -0.3882 | AD52: -0.069 | AE52: -0.069 | AF52: -0.025 | AG52: -0.025 | AH52: -0.025 | AI52: -0.025 | AJ52: -0.025 | AK52: -0.025 | AL52: -0.01 | AM52: -0.01 | AN52: -0.01 | AO52: -0.01 | AP52: -0.01 | AQ52: -0.01 | AR52: -0.01 | AS52: 0 | AT52: 0 | AU52: 0 | AV52: 0 | AW52: 0 | AX52: 0 | AY52: 0 | AZ52: 0 | BA52: 0 | BB52: 0 | BC52: 0 | BD52: 0 | BE52: 0
A53: 44 | B53: 3G cell site equipment | C53: Picocell equipment | E53: % | H53: -0.05 | I53: -0.05 | J53: -0.05 | K53: -0.05 | L53: -0.05 | M53: -0.05 | N53: -0.05 | O53: -0.05 | P53: -0.05 | Q53: -0.05 | R53: -0.05 | S53: -0.05 | T53: -0.05 | U53: -0.05 | V53: -0.05 | W53: -0.25 | X53: -0.2 | Y53: -0.2 | Z53: -0.15 | AA53: -0.3882 | AB53: -0.3882 | AC53: -0.3882 | AD53: -0.069 | AE53: -0.069 | AF53: -0.025 | AG53: -0.025 | AH53: -0.025 | AI53: -0.025 | AJ53: -0.025 | AK53: -0.025 | AL53: -0.01 | AM53: -0.01 | AN53: -0.01 | AO53: -0.01 | AP53: -0.01 | AQ53: -0.01 | AR53: -0.01 | AS53: 0 | AT53: 0 | AU53: 0 | AV53: 0 | AW53: 0 | AX53: 0 | AY53: 0 | AZ53: 0 | BA53: 0 | BB53: 0 | BC53: 0 | BD53: 0 | BE53: 0
A54: 45 | B54: 3G site upgrade | C54: Macro site upgrade | E54: % | H54: 0 | I54: 0 | J54: 0 | K54: 0 | L54: 0 | M54: 0 | N54: 0 | O54: 0 | P54: 0 | Q54: 0 | R54: 0 | S54: 0 | T54: 0 | U54: 0 | V54: 0 | W54: 0 | X54: 0 | Y54: 0 | Z54: 0.01 | AA54: -0.0982 | AB54: -0.0982 | AC54: -0.0982 | AD54: -0.033 | AE54: -0.033 | AF54: 0.02 | AG54: 0.005 | AH54: 0.005 | AI54: 0.005 | AJ54: 0 | AK54: 0 | AL54: 0 | AM54: 0 | AN54: 0 | AO54: 0 | AP54: 0 | AQ54: 0 | AR54: 0 | AS54: 0 | AT54: 0 | AU54: 0 | AV54: 0 | AW54: 0 | AX54: 0 | AY54: 0 | AZ54: 0 | BA54: 0 | BB54: 0 | BC54: 0 | BD54: 0 | BE54: 0
A55: 46 | B55: 3G site upgrade | C55: Micro site upgrade | E55: % | H55: 0 | I55: 0 | J55: 0 | K55: 0 | L55: 0 | M55: 0 | N55: 0 | O55: 0 | P55: 0 | Q55: 0 | R55: 0 | S55: 0 | T55: 0 | U55: 0 | V55: 0 | W55: 0 | X55: 0 | Y55: 0 | Z55: 0.01 | AA55: -0.268 | AB55: -0.268 | AC55: -0.268 | AD55: -0.007 | AE55: -0.007 | AF55: 0.02 | AG55: 0.005 | AH55: 0.005 | AI55: 0.005 | AJ55: 0 | AK55: 0 | AL55: 0 | AM55: 0 | AN55: 0 | AO55: 0 | AP55: 0 | AQ55: 0 | AR55: 0 | AS55: 0 | AT55: 0 | AU55: 0 | AV55: 0 | AW55: 0 | AX55: 0 | AY55: 0 | AZ55: 0 | BA55: 0 | BB55: 0 | BC55: 0 | BD55: 0 | BE55: 0
A56: 47 | B56: 3G site upgrade | C56: Pico site upgrade | E56: % | H56: 0 | I56: 0 | J56: 0 | K56: 0 | L56: 0 | M56: 0 | N56: 0 | O56: 0 | P56: 0 | Q56: 0 | R56: 0 | S56: 0 | T56: 0 | U56: 0 | V56: 0 | W56: 0 | X56: 0 | Y56: 0 | Z56: 0.01 | AA56: -0.15 | AB56: -0.15 | AC56: -0.15 | AD56: 0.007 | AE56: 0.007 | AF56: 0.02 | AG56: 0.005 | AH56: 0.005 | AI56: 0.005 | AJ56: 0 | AK56: 0 | AL56: 0 | AM56: 0 | AN56: 0 | AO56: 0 | AP56: 0 | AQ56: 0 | AR56: 0 | AS56: 0 | AT56: 0 | AU56: 0 | AV56: 0 | AW56: 0 | AX56: 0 | AY56: 0 | AZ56: 0 | BA56: 0 | BB56: 0 | BC56: 0 | BD56: 0 | BE56: 0
A57: 48 | B57: 3G cell site equipment | C57: Macrocell: additional carriers | E57: % | H57: 0 | I57: 0 | J57: 0 | K57: 0 | L57: 0 | M57: 0 | N57: 0 | O57: 0 | P57: 0 | Q57: 0 | R57: 0 | S57: 0 | T57: -0.05 | U57: -0.05 | V57: -0.05 | W57: -0.05 | X57: -0.05 | Y57: -0.05 | Z57: -0.05 | AA57: 0.1158 | AB57: 0.1158 | AC57: 0.1158 | AD57: -0.059 | AE57: -0.059 | AF57: -0.025 | AG57: -0.025 | AH57: -0.025 | AI57: -0.025 | AJ57: -0.025 | AK57: -0.025 | AL57: -0.01 | AM57: -0.01 | AN57: -0.01 | AO57: -0.01 | AP57: -0.01 | AQ57: -0.01 | AR57: -0.01 | AS57: 0 | AT57: 0 | AU57: 0 | AV57: 0 | AW57: 0 | AX57: 0 | AY57: 0 | AZ57: 0 | BA57: 0 | BB57: 0 | BC57: 0 | BD57: 0 | BE57: 0
A58: 49 | B58: 3G cell site equipment | C58: Microcell: additional carriers | E58: % | H58: 0 | I58: 0 | J58: 0 | K58: 0 | L58: 0 | M58: 0 | N58: 0 | O58: 0 | P58: 0 | Q58: 0 | R58: 0 | S58: 0 | T58: -0.05 | U58: -0.05 | V58: -0.05 | W58: -0.05 | X58: -0.05 | Y58: -0.05 | Z58: -0.05 | AA58: 0.1158 | AB58: 0.1158 | AC58: 0.1158 | AD58: -0.059 | AE58: -0.059 | AF58: -0.025 | AG58: -0.025 | AH58: -0.025 | AI58: -0.025 | AJ58: -0.025 | AK58: -0.025 | AL58: -0.01 | AM58: -0.01 | AN58: -0.01 | AO58: -0.01 | AP58: -0.01 | AQ58: -0.01 | AR58: -0.01 | AS58: 0 | AT58: 0 | AU58: 0 | AV58: 0 | AW58: 0 | AX58: 0 | AY58: 0 | AZ58: 0 | BA58: 0 | BB58: 0 | BC58: 0 | BD58: 0 | BE58: 0
A59: 50 | B59: 3G cell site equipment | C59: Picocell: additional carriers | E59: % | H59: 0 | I59: 0 | J59: 0 | K59: 0 | L59: 0 | M59: 0 | N59: 0 | O59: 0 | P59: 0 | Q59: 0 | R59: 0 | S59: 0 | T59: -0.05 | U59: -0.05 | V59: -0.05 | W59: -0.05 | X59: -0.05 | Y59: -0.05 | Z59: -0.05 | AA59: 0.1158 | AB59: 0.1158 | AC59: 0.1158 | AD59: -0.059 | AE59: -0.059 | AF59: -0.025 | AG59: -0.025 | AH59: -0.025 | AI59: -0.025 | AJ59: -0.025 | AK59: -0.025 | AL59: -0.01 | AM59: -0.01 | AN59: -0.01 | AO59: -0.01 | AP59: -0.01 | AQ59: -0.01 | AR59: -0.01 | AS59: 0 | AT59: 0 | AU59: 0 | AV59: 0 | AW59: 0 | AX59: 0 | AY59: 0 | AZ59: 0 | BA59: 0 | BB59: 0 | BC59: 0 | BD59: 0 | BE59: 0
A60: 51 | B60: 3G cell site equipment | C60: Macrocell: additional sectors | E60: % | H60: 0 | I60: 0 | J60: 0 | K60: 0 | L60: 0 | M60: 0 | N60: 0 | O60: 0 | P60: 0 | Q60: 0 | R60: 0 | S60: 0 | T60: -0.05 | U60: -0.05 | V60: -0.05 | W60: -0.05 | X60: -0.05 | Y60: -0.05 | Z60: -0.05 | AA60: -0.1314 | AB60: -0.1314 | AC60: -0.1314 | AD60: -0.059 | AE60: -0.059 | AF60: -0.025 | AG60: -0.025 | AH60: -0.025 | AI60: -0.025 | AJ60: -0.025 | AK60: -0.025 | AL60: -0.01 | AM60: -0.01 | AN60: -0.01 | AO60: -0.01 | AP60: -0.01 | AQ60: -0.01 | AR60: -0.01 | AS60: 0 | AT60: 0 | AU60: 0 | AV60: 0 | AW60: 0 | AX60: 0 | AY60: 0 | AZ60: 0 | BA60: 0 | BB60: 0 | BC60: 0 | BD60: 0 | BE60: 0
A61: 52 | B61: 3G cell site equipment | C61: Microcell: additional sectors | E61: % | H61: 0 | I61: 0 | J61: 0 | K61: 0 | L61: 0 | M61: 0 | N61: 0 | O61: 0 | P61: 0 | Q61: 0 | R61: 0 | S61: 0 | T61: -0.05 | U61: -0.05 | V61: -0.05 | W61: -0.05 | X61: -0.05 | Y61: -0.05 | Z61: -0.05 | AA61: -0.1314 | AB61: -0.1314 | AC61: -0.1314 | AD61: -0.059 | AE61: -0.059 | AF61: -0.025 | AG61: -0.025 | AH61: -0.025 | AI61: -0.025 | AJ61: -0.025 | AK61: -0.025 | AL61: -0.01 | AM61: -0.01 | AN61: -0.01 | AO61: -0.01 | AP61: -0.01 | AQ61: -0.01 | AR61: -0.01 | AS61: 0 | AT61: 0 | AU61: 0 | AV61: 0 | AW61: 0 | AX61: 0 | AY61: 0 | AZ61: 0 | BA61: 0 | BB61: 0 | BC61: 0 | BD61: 0 | BE61: 0
A62: 53 | B62: 3G cell site equipment | C62: Picocell: additional sectors | E62: % | H62: 0 | I62: 0 | J62: 0 | K62: 0 | L62: 0 | M62: 0 | N62: 0 | O62: 0 | P62: 0 | Q62: 0 | R62: 0 | S62: 0 | T62: -0.05 | U62: -0.05 | V62: -0.05 | W62: -0.05 | X62: -0.05 | Y62: -0.05 | Z62: -0.05 | AA62: -0.1314 | AB62: -0.1314 | AC62: -0.1314 | AD62: -0.059 | AE62: -0.059 | AF62: -0.025 | AG62: -0.025 | AH62: -0.025 | AI62: -0.025 | AJ62: -0.025 | AK62: -0.025 | AL62: -0.01 | AM62: -0.01 | AN62: -0.01 | AO62: -0.01 | AP62: -0.01 | AQ62: -0.01 | AR62: -0.01 | AS62: 0 | AT62: 0 | AU62: 0 | AV62: 0 | AW62: 0 | AX62: 0 | AY62: 0 | AZ62: 0 | BA62: 0 | BB62: 0 | BC62: 0 | BD62: 0 | BE62: 0
A63: 54 | B63: 3G RNCs | C63: RNC: base unit | E63: % | H63: 0 | I63: 0 | J63: 0 | K63: 0 | L63: 0 | M63: 0 | N63: 0 | O63: 0 | P63: 0 | Q63: 0 | R63: 0 | S63: 0 | T63: -0.05 | U63: -0.05 | V63: -0.05 | W63: -0.35 | X63: -0.35 | Y63: -0.4 | Z63: -0.4 | AA63: -0.055 | AB63: -0.055 | AC63: -0.055 | AD63: -0.055 | AE63: -0.055 | AF63: -0.025 | AG63: -0.025 | AH63: -0.025 | AI63: -0.025 | AJ63: -0.025 | AK63: -0.025 | AL63: -0.01 | AM63: -0.01 | AN63: -0.01 | AO63: -0.01 | AP63: -0.01 | AQ63: -0.01 | AR63: -0.01 | AS63: 0 | AT63: 0 | AU63: 0 | AV63: 0 | AW63: 0 | AX63: 0 | AY63: 0 | AZ63: 0 | BA63: 0 | BB63: 0 | BC63: 0 | BD63: 0 | BE63: 0
A64: 55 | B64: 3G RNCs | C64: RNC: NodeB-facing port increment | E64: % | H64: 0 | I64: 0 | J64: 0 | K64: 0 | L64: 0 | M64: 0 | N64: 0 | O64: 0 | P64: 0 | Q64: 0 | R64: 0 | S64: 0 | T64: -0.05 | U64: -0.05 | V64: -0.05 | W64: -0.35 | X64: -0.35 | Y64: -0.4 | Z64: -0.4 | AA64: -0.055 | AB64: -0.055 | AC64: -0.055 | AD64: -0.055 | AE64: -0.055 | AF64: -0.025 | AG64: -0.025 | AH64: -0.025 | AI64: -0.025 | AJ64: -0.025 | AK64: -0.025 | AL64: -0.01 | AM64: -0.01 | AN64: -0.01 | AO64: -0.01 | AP64: -0.01 | AQ64: -0.01 | AR64: -0.01 | AS64: 0 | AT64: 0 | AU64: 0 | AV64: 0 | AW64: 0 | AX64: 0 | AY64: 0 | AZ64: 0 | BA64: 0 | BB64: 0 | BC64: 0 | BD64: 0 | BE64: 0
A65: 56 | B65: 3G RNCs | C65: RNC: Core-facing port increment | E65: % | H65: 0 | I65: 0 | J65: 0 | K65: 0 | L65: 0 | M65: 0 | N65: 0 | O65: 0 | P65: 0 | Q65: 0 | R65: 0 | S65: 0 | T65: -0.05 | U65: -0.05 | V65: -0.05 | W65: -0.35 | X65: -0.35 | Y65: -0.4 | Z65: -0.4 | AA65: -0.055 | AB65: -0.055 | AC65: -0.055 | AD65: -0.055 | AE65: -0.055 | AF65: -0.025 | AG65: -0.025 | AH65: -0.025 | AI65: -0.025 | AJ65: -0.025 | AK65: -0.025 | AL65: -0.01 | AM65: -0.01 | AN65: -0.01 | AO65: -0.01 | AP65: -0.01 | AQ65: -0.01 | AR65: -0.01 | AS65: 0 | AT65: 0 | AU65: 0 | AV65: 0 | AW65: 0 | AX65: 0 | AY65: 0 | AZ65: 0 | BA65: 0 | BB65: 0 | BC65: 0 | BD65: 0 | BE65: 0
A66: 57 | B66: 2G/3G layered core nodes | C66: MSC server | E66: % | H66: 0 | I66: 0 | J66: 0 | K66: 0 | L66: 0 | M66: 0 | N66: 0 | O66: 0 | P66: 0 | Q66: 0 | R66: 0 | S66: 0 | T66: -0.05 | U66: -0.05 | V66: -0.05 | W66: -0.05 | X66: -0.05 | Y66: -0.05 | Z66: -0.05 | AA66: -0.05 | AB66: -0.05 | AC66: -0.05 | AD66: -0.05 | AE66: -0.05 | AF66: -0.025 | AG66: -0.025 | AH66: -0.025 | AI66: -0.025 | AJ66: -0.025 | AK66: -0.025 | AL66: -0.01 | AM66: -0.01 | AN66: -0.01 | AO66: -0.01 | AP66: -0.01 | AQ66: -0.01 | AR66: -0.01 | AS66: 0 | AT66: 0 | AU66: 0 | AV66: 0 | AW66: 0 | AX66: 0 | AY66: 0 | AZ66: 0 | BA66: 0 | BB66: 0 | BC66: 0 | BD66: 0 | BE66: 0
A67: 58 | B67: 2G/3G layered core nodes | C67: Media gateway | E67: % | H67: 0 | I67: 0 | J67: 0 | K67: 0 | L67: 0 | M67: 0 | N67: 0 | O67: 0 | P67: 0 | Q67: 0 | R67: 0 | S67: 0 | T67: -0.05 | U67: -0.05 | V67: -0.05 | W67: -0.05 | X67: -0.05 | Y67: -0.05 | Z67: -0.05 | AA67: -0.05 | AB67: -0.05 | AC67: -0.05 | AD67: -0.05 | AE67: -0.05 | AF67: -0.025 | AG67: -0.025 | AH67: -0.025 | AI67: -0.025 | AJ67: -0.025 | AK67: -0.025 | AL67: -0.01 | AM67: -0.01 | AN67: -0.01 | AO67: -0.01 | AP67: -0.01 | AQ67: -0.01 | AR67: -0.01 | AS67: 0 | AT67: 0 | AU67: 0 | AV67: 0 | AW67: 0 | AX67: 0 | AY67: 0 | AZ67: 0 | BA67: 0 | BB67: 0 | BC67: 0 | BD67: 0 | BE67: 0
A68: 59 | B68: 3G MSCs | C68: Interconnect interface | E68: % | H68: 0 | I68: 0 | J68: 0 | K68: 0 | L68: 0 | M68: 0 | N68: 0 | O68: 0 | P68: 0 | Q68: 0 | R68: 0 | S68: 0 | T68: -0.05 | U68: -0.05 | V68: -0.05 | W68: -0.05 | X68: -0.05 | Y68: -0.05 | Z68: -0.05 | AA68: -0.05 | AB68: -0.05 | AC68: -0.05 | AD68: -0.05 | AE68: -0.05 | AF68: -0.025 | AG68: -0.025 | AH68: -0.025 | AI68: -0.025 | AJ68: -0.025 | AK68: -0.025 | AL68: -0.01 | AM68: -0.01 | AN68: -0.01 | AO68: -0.01 | AP68: -0.01 | AQ68: -0.01 | AR68: -0.01 | AS68: 0 | AT68: 0 | AU68: 0 | AV68: 0 | AW68: 0 | AX68: 0 | AY68: 0 | AZ68: 0 | BA68: 0 | BB68: 0 | BC68: 0 | BD68: 0 | BE68: 0
A69: 60 | B69: 3G MSCs | C69: Switching Support Plant | E69: % | H69: 0 | I69: 0 | J69: 0 | K69: 0 | L69: 0 | M69: 0 | N69: 0 | O69: 0 | P69: 0 | Q69: 0 | R69: 0 | S69: 0 | T69: -0.05 | U69: -0.05 | V69: -0.05 | W69: -0.05 | X69: -0.05 | Y69: -0.05 | Z69: -0.05 | AA69: -0.05 | AB69: -0.05 | AC69: -0.05 | AD69: -0.05 | AE69: -0.05 | AF69: -0.025 | AG69: -0.025 | AH69: -0.025 | AI69: -0.025 | AJ69: -0.025 | AK69: -0.025 | AL69: -0.01 | AM69: -0.01 | AN69: -0.01 | AO69: -0.01 | AP69: -0.01 | AQ69: -0.01 | AR69: -0.01 | AS69: 0 | AT69: 0 | AU69: 0 | AV69: 0 | AW69: 0 | AX69: 0 | AY69: 0 | AZ69: 0 | BA69: 0 | BB69: 0 | BC69: 0 | BD69: 0 | BE69: 0
A70: 61 | B70: 3G MSC ports - RNC-facing | C70: MSC: BSC-facing port increment | E70: % | H70: 0 | I70: 0 | J70: 0 | K70: 0 | L70: 0 | M70: 0 | N70: 0 | O70: 0 | P70: 0 | Q70: 0 | R70: 0 | S70: 0 | T70: -0.05 | U70: -0.05 | V70: -0.05 | W70: -0.05 | X70: -0.05 | Y70: -0.05 | Z70: -0.05 | AA70: -0.05 | AB70: -0.05 | AC70: -0.05 | AD70: -0.05 | AE70: -0.05 | AF70: -0.025 | AG70: -0.025 | AH70: -0.025 | AI70: -0.025 | AJ70: -0.025 | AK70: -0.025 | AL70: -0.01 | AM70: -0.01 | AN70: -0.01 | AO70: -0.01 | AP70: -0.01 | AQ70: -0.01 | AR70: -0.01 | AS70: 0 | AT70: 0 | AU70: 0 | AV70: 0 | AW70: 0 | AX70: 0 | AY70: 0 | AZ70: 0 | BA70: 0 | BB70: 0 | BC70: 0 | BD70: 0 | BE70: 0
A71: 62 | B71: 3G MSC ports - Interconnect facing | C71: MSC: interconnect-facing port increment | E71: % | H71: 0 | I71: 0 | J71: 0 | K71: 0 | L71: 0 | M71: 0 | N71: 0 | O71: 0 | P71: 0 | Q71: 0 | R71: 0 | S71: 0 | T71: -0.05 | U71: -0.05 | V71: -0.05 | W71: -0.05 | X71: -0.05 | Y71: -0.05 | Z71: -0.05 | AA71: -0.05 | AB71: -0.05 | AC71: -0.05 | AD71: -0.05 | AE71: -0.05 | AF71: -0.025 | AG71: -0.025 | AH71: -0.025 | AI71: -0.025 | AJ71: -0.025 | AK71: -0.025 | AL71: -0.01 | AM71: -0.01 | AN71: -0.01 | AO71: -0.01 | AP71: -0.01 | AQ71: -0.01 | AR71: -0.01 | AS71: 0 | AT71: 0 | AU71: 0 | AV71: 0 | AW71: 0 | AX71: 0 | AY71: 0 | AZ71: 0 | BA71: 0 | BB71: 0 | BC71: 0 | BD71: 0 | BE71: 0
A72: 63 | B72: 3G MSC ports - Interswitch facing | C72: MSC: switch-facing port increment | E72: % | H72: 0 | I72: 0 | J72: 0 | K72: 0 | L72: 0 | M72: 0 | N72: 0 | O72: 0 | P72: 0 | Q72: 0 | R72: 0 | S72: 0 | T72: -0.05 | U72: -0.05 | V72: -0.05 | W72: -0.05 | X72: -0.05 | Y72: -0.05 | Z72: -0.05 | AA72: -0.05 | AB72: -0.05 | AC72: -0.05 | AD72: -0.05 | AE72: -0.05 | AF72: -0.025 | AG72: -0.025 | AH72: -0.025 | AI72: -0.025 | AJ72: -0.025 | AK72: -0.025 | AL72: -0.01 | AM72: -0.01 | AN72: -0.01 | AO72: -0.01 | AP72: -0.01 | AQ72: -0.01 | AR72: -0.01 | AS72: 0 | AT72: 0 | AU72: 0 | AV72: 0 | AW72: 0 | AX72: 0 | AY72: 0 | AZ72: 0 | BA72: 0 | BB72: 0 | BC72: 0 | BD72: 0 | BE72: 0
A73: 64 | B73: 3G NMS | C73: Network management | E73: % | H73: 0 | I73: 0 | J73: 0 | K73: 0 | L73: 0 | M73: 0 | N73: 0 | O73: 0 | P73: 0 | Q73: 0 | R73: 0 | S73: 0 | T73: -0.05 | U73: -0.05 | V73: -0.05 | W73: -0.05 | X73: -0.05 | Y73: -0.05 | Z73: -0.05 | AA73: -0.05 | AB73: -0.05 | AC73: -0.05 | AD73: -0.05 | AE73: -0.05 | AF73: -0.025 | AG73: -0.025 | AH73: -0.025 | AI73: -0.025 | AJ73: -0.025 | AK73: -0.025 | AL73: -0.01 | AM73: -0.01 | AN73: -0.01 | AO73: -0.01 | AP73: -0.01 | AQ73: -0.01 | AR73: -0.01 | AS73: 0 | AT73: 0 | AU73: 0 | AV73: 0 | AW73: 0 | AX73: 0 | AY73: 0 | AZ73: 0 | BA73: 0 | BB73: 0 | BC73: 0 | BD73: 0 | BE73: 0
A74: 65 | B74: 3G GSN | C74: 3G SGSN | E74: % | H74: -0.05 | I74: -0.05 | J74: -0.05 | K74: -0.05 | L74: -0.05 | M74: -0.05 | N74: -0.1 | O74: -0.1 | P74: -0.16 | Q74: -0.12 | R74: -0.1 | S74: -0.09 | T74: -0.07 | U74: -0.06 | V74: -0.04 | W74: -0.04 | X74: -0.04 | Y74: -0.04 | Z74: -0.04 | AA74: -0.03333333333 | AB74: -0.02666666667 | AC74: -0.02 | AD74: -0.02 | AE74: -0.02 | AF74: -0.02 | AG74: -0.02 | AH74: -0.02 | AI74: -0.02 | AJ74: -0.02 | AK74: -0.02 | AL74: -0.01 | AM74: -0.01 | AN74: -0.01 | AO74: -0.01 | AP74: -0.01 | AQ74: -0.01 | AR74: -0.01 | AS74: 0 | AT74: 0 | AU74: 0 | AV74: 0 | AW74: 0 | AX74: 0 | AY74: 0 | AZ74: 0 | BA74: 0 | BB74: 0 | BC74: 0 | BD74: 0 | BE74: 0
A75: 66 | B75: 3G GSN | C75: 3G GGSN | E75: % | H75: -0.05 | I75: -0.05 | J75: -0.05 | K75: -0.05 | L75: -0.05 | M75: -0.05 | N75: -0.1 | O75: -0.1 | P75: -0.16 | Q75: -0.12 | R75: -0.1 | S75: -0.09 | T75: -0.07 | U75: -0.06 | V75: -0.04 | W75: -0.04 | X75: -0.04 | Y75: -0.04 | Z75: -0.04 | AA75: -0.03333333333 | AB75: -0.02666666667 | AC75: -0.02 | AD75: -0.02 | AE75: -0.02 | AF75: -0.02 | AG75: -0.02 | AH75: -0.02 | AI75: -0.02 | AJ75: -0.02 | AK75: -0.02 | AL75: -0.01 | AM75: -0.01 | AN75: -0.01 | AO75: -0.01 | AP75: -0.01 | AQ75: -0.01 | AR75: -0.01 | AS75: 0 | AT75: 0 | AU75: 0 | AV75: 0 | AW75: 0 | AX75: 0 | AY75: 0 | AZ75: 0 | BA75: 0 | BB75: 0 | BC75: 0 | BD75: 0 | BE75: 0
A76: 67 | B76: spare | C76: spare | E76: %
A77: 68 | B77: Backhaul | C77: Base unit | E77: % | H77: -0.05 | I77: -0.05 | J77: -0.05 | K77: -0.05 | L77: -0.05 | M77: -0.05 | N77: -0.1 | O77: -0.1 | P77: -0.1 | Q77: -0.1 | R77: -0.1 | S77: -0.1 | T77: -0.1 | U77: -0.1 | V77: -0.1 | W77: -0.1 | X77: -0.1 | Y77: -0.05 | Z77: -0.05 | AA77: -0.05 | AB77: -0.05 | AC77: -0.05 | AD77: -0.05 | AE77: -0.05 | AF77: -0.025 | AG77: -0.05 | AH77: -0.05 | AI77: -0.05 | AJ77: -0.05 | AK77: -0.03 | AL77: -0.01 | AM77: -0.01 | AN77: -0.01 | AO77: -0.01 | AP77: -0.01 | AQ77: -0.01 | AR77: -0.01 | AS77: 0 | AT77: 0 | AU77: 0 | AV77: 0 | AW77: 0 | AX77: 0 | AY77: 0 | AZ77: 0 | BA77: 0 | BB77: 0 | BC77: 0 | BD77: 0 | BE77: 0
A78: 69 | B78: Remote switching sites | C78: Remote switching sites (BSC and RNC) | E78: % | H78: 0 | I78: 0 | J78: 0 | K78: 0 | L78: 0 | M78: 0 | N78: 0 | O78: 0 | P78: 0 | Q78: 0 | R78: 0.01 | S78: 0.01 | T78: 0.01 | U78: 0.01 | V78: 0.01 | W78: 0.01 | X78: 0.01 | Y78: 0.01 | Z78: 0.01 | AA78: 0.01 | AB78: 0.01 | AC78: 0.01 | AD78: 0.01 | AE78: 0.01 | AF78: 0.01 | AG78: 0.01 | AH78: 0.01 | AI78: 0.01 | AJ78: 0.01 | AK78: 0.01 | AL78: 0.01 | AM78: 0.01 | AN78: 0.01 | AO78: 0.01 | AP78: 0.01 | AQ78: 0.01 | AR78: 0.01 | AS78: 0 | AT78: 0 | AU78: 0 | AV78: 0 | AW78: 0 | AX78: 0 | AY78: 0 | AZ78: 0 | BA78: 0 | BB78: 0 | BC78: 0 | BD78: 0 | BE78: 0
A79: 70 | B79: 3G Licence fees | C79: UMTS licence fee in 2004/05 | E79: %
A80: 71 | B80: 3G Licence fees | C80: UMTS licence fee in 2012/13 | E80: %
A81: 72 | B81: spare | C81: spare | E81: %
A82: 73 | B82: spare | C82: spare | E82: %
A83: 74 | B83: Cell sites | C83: Transformation sites | E83: % | H83: 0 | I83: 0 | J83: 0 | K83: 0 | L83: 0 | M83: 0 | N83: 0 | O83: 0 | P83: 0 | Q83: 0 | R83: 0 | S83: 0 | T83: 0 | U83: 0 | V83: 0 | W83: 0 | X83: 0 | Y83: 0 | Z83: 0.01 | AA83: -0.15 | AB83: -0.15 | AC83: -0.15 | AD83: 0.007 | AE83: 0.007 | AF83: 0.02 | AG83: 0.005 | AH83: 0.005 | AI83: 0.005 | AJ83: 0 | AK83: 0 | AL83: 0 | AM83: 0 | AN83: 0 | AO83: 0 | AP83: 0 | AQ83: 0 | AR83: 0 | AS83: 0 | AT83: 0 | AU83: 0 | AV83: 0 | AW83: 0 | AX83: 0 | AY83: 0 | AZ83: 0 | BA83: 0 | BB83: 0 | BC83: 0 | BD83: 0 | BE83: 0
A84: 75 | B84: spare | C84: spare | E84: %
A85: 76 | B85: HSPA 3.6 upgrade | C85: HSPA 3.6 site upgrade | E85: % | H85: 0 | I85: 0 | J85: 0 | K85: 0 | L85: 0 | M85: 0 | N85: 0 | O85: 0 | P85: 0 | Q85: 0 | R85: 0 | S85: 0 | T85: 0 | U85: 0 | V85: 0 | W85: 0 | X85: 0 | Y85: -0.05 | Z85: -0.05 | AA85: -0.05 | AB85: -0.05 | AC85: -0.05 | AD85: -0.05 | AE85: -0.05 | AF85: -0.05 | AG85: -0.05 | AH85: -0.05 | AI85: -0.05 | AJ85: -0.05 | AK85: -0.03 | AL85: -0.01 | AM85: -0.01 | AN85: -0.01 | AO85: -0.01 | AP85: -0.01 | AQ85: -0.01 | AR85: -0.01 | AS85: 0 | AT85: 0 | AU85: 0 | AV85: 0 | AW85: 0 | AX85: 0 | AY85: 0 | AZ85: 0 | BA85: 0 | BB85: 0 | BC85: 0 | BD85: 0 | BE85: 0
A86: 77 | B86: HSPA 7.2 upgrade | C86: HSPA 7.2 site upgrade | E86: % | H86: 0 | I86: 0 | J86: 0 | K86: 0 | L86: 0 | M86: 0 | N86: 0 | O86: 0 | P86: 0 | Q86: 0 | R86: 0 | S86: 0 | T86: 0 | U86: 0 | V86: 0 | W86: 0 | X86: 0 | Y86: -0.05 | Z86: -0.05 | AA86: -0.05 | AB86: -0.05 | AC86: -0.05 | AD86: -0.05 | AE86: -0.05 | AF86: -0.05 | AG86: -0.05 | AH86: -0.05 | AI86: -0.05 | AJ86: -0.05 | AK86: -0.03 | AL86: -0.01 | AM86: -0.01 | AN86: -0.01 | AO86: -0.01 | AP86: -0.01 | AQ86: -0.01 | AR86: -0.01 | AS86: 0 | AT86: 0 | AU86: 0 | AV86: 0 | AW86: 0 | AX86: 0 | AY86: 0 | AZ86: 0 | BA86: 0 | BB86: 0 | BC86: 0 | BD86: 0 | BE86: 0
A87: 78 | B87: HSPA 14.4 upgrade | C87: HSPA 14.4 site upgrade | E87: % | H87: 0 | I87: 0 | J87: 0 | K87: 0 | L87: 0 | M87: 0 | N87: 0 | O87: 0 | P87: 0 | Q87: 0 | R87: 0 | S87: 0 | T87: 0 | U87: 0 | V87: 0 | W87: 0 | X87: 0 | Y87: -0.05 | Z87: -0.05 | AA87: -0.05 | AB87: -0.05 | AC87: -0.05 | AD87: -0.05 | AE87: -0.05 | AF87: -0.05 | AG87: -0.05 | AH87: -0.05 | AI87: -0.05 | AJ87: -0.05 | AK87: -0.03 | AL87: -0.01 | AM87: -0.01 | AN87: -0.01 | AO87: -0.01 | AP87: -0.01 | AQ87: -0.01 | AR87: -0.01 | AS87: 0 | AT87: 0 | AU87: 0 | AV87: 0 | AW87: 0 | AX87: 0 | AY87: 0 | AZ87: 0 | BA87: 0 | BB87: 0 | BC87: 0 | BD87: 0 | BE87: 0
A88: 79 | B88: HSPA 21 upgrade | C88: HSPA 21 site upgrade | E88: % | AD88: -0.05 | AE88: -0.05 | AF88: -0.05 | AG88: -0.05 | AH88: -0.05 | AI88: -0.05 | AJ88: -0.05 | AK88: -0.03 | AL88: -0.01 | AM88: -0.01 | AN88: -0.01 | AO88: -0.01 | AP88: -0.01 | AQ88: -0.01 | AR88: -0.01 | AS88: 0 | AT88: 0 | AU88: 0 | AV88: 0 | AW88: 0 | AX88: 0 | AY88: 0 | AZ88: 0 | BA88: 0 | BB88: 0 | BC88: 0 | BD88: 0 | BE88: 0
A89: 80 | B89: HSPA 42 upgrade | C89: HSPA 42 site upgrade | E89: % | AD89: -0.05 | AE89: -0.05 | AF89: -0.05 | AG89: -0.05 | AH89: -0.05 | AI89: -0.05 | AJ89: -0.05 | AK89: -0.03 | AL89: -0.01 | AM89: -0.01 | AN89: -0.01 | AO89: -0.01 | AP89: -0.01 | AQ89: -0.01 | AR89: -0.01 | AS89: 0 | AT89: 0 | AU89: 0 | AV89: 0 | AW89: 0 | AX89: 0 | AY89: 0 | AZ89: 0 | BA89: 0 | BB89: 0 | BC89: 0 | BD89: 0 | BE89: 0
A90: 81 | B90: HSPA 84 upgrade | C90: HSPA 84 site upgrade | E90: % | H90: 0 | I90: 0 | J90: 0 | K90: 0 | L90: 0 | M90: 0 | N90: 0 | O90: 0 | P90: 0 | Q90: 0 | R90: 0 | S90: 0 | T90: 0 | U90: 0 | V90: 0 | W90: 0 | X90: 0 | Y90: -0.05 | Z90: -0.05 | AA90: -0.05 | AB90: -0.05 | AC90: -0.05 | AD90: -0.05 | AE90: -0.05 | AF90: -0.05 | AG90: -0.05 | AH90: -0.05 | AI90: -0.05 | AJ90: -0.05 | AK90: -0.03 | AL90: -0.01 | AM90: -0.01 | AN90: -0.01 | AO90: -0.01 | AP90: -0.01 | AQ90: -0.01 | AR90: -0.01 | AS90: 0 | AT90: 0 | AU90: 0 | AV90: 0 | AW90: 0 | AX90: 0 | AY90: 0 | AZ90: 0 | BA90: 0 | BB90: 0 | BC90: 0 | BD90: 0 | BE90: 0
A91: 82 | B91: 3G cell site equipment | C91: HSPA site upgrade spare | E91: % | H91: 0 | I91: 0 | J91: 0 | K91: 0 | L91: 0 | M91: 0 | N91: 0 | O91: 0 | P91: 0 | Q91: 0 | R91: 0 | S91: 0 | T91: 0 | U91: 0 | V91: 0 | W91: 0 | X91: 0 | Y91: -0.05 | Z91: -0.05 | AA91: -0.05 | AB91: -0.05 | AC91: -0.05 | AD91: -0.05 | AE91: -0.05 | AF91: -0.05 | AG91: -0.05 | AH91: -0.05 | AI91: -0.05 | AJ91: -0.05 | AK91: -0.03 | AL91: -0.01 | AM91: -0.01 | AN91: -0.01 | AO91: -0.01 | AP91: -0.01 | AQ91: -0.01 | AR91: -0.01 | AS91: 0 | AT91: 0 | AU91: 0 | AV91: 0 | AW91: 0 | AX91: 0 | AY91: 0 | AZ91: 0 | BA91: 0 | BB91: 0 | BC91: 0 | BD91: 0 | BE91: 0
A92: 83 | B92: Backhaul | C92: Leased Ethernet (100Mbit/s) | E92: % | AC92: -0.02 | AD92: -0.02 | AE92: -0.02 | AF92: -0.02 | AG92: -0.02 | AH92: -0.02 | AI92: -0.02 | AJ92: -0.02 | AK92: -0.02 | AL92: -0.02 | AM92: -0.02 | AN92: -0.02 | AO92: -0.02 | AP92: -0.02 | AQ92: -0.02 | AR92: -0.02 | AS92: 0 | AT92: 0 | AU92: 0 | AV92: 0 | AW92: 0 | AX92: 0 | AY92: 0 | AZ92: 0 | BA92: 0 | BB92: 0 | BC92: 0 | BD92: 0 | BE92: 0
A93: 84 | B93: Backhaul | C93: Leased Ethernet (300Mbit/s) | E93: % | AC93: -0.02 | AD93: -0.02 | AE93: -0.02 | AF93: -0.02 | AG93: -0.02 | AH93: -0.02 | AI93: -0.02 | AJ93: -0.02 | AK93: -0.02 | AL93: -0.02 | AM93: -0.02 | AN93: -0.02 | AO93: -0.02 | AP93: -0.02 | AQ93: -0.02 | AR93: -0.02 | AS93: 0 | AT93: 0 | AU93: 0 | AV93: 0 | AW93: 0 | AX93: 0 | AY93: 0 | AZ93: 0 | BA93: 0 | BB93: 0 | BC93: 0 | BD93: 0 | BE93: 0
A94: 85 | B94: Backhaul | C94: Owned microwave (100Mbit/s) | E94: % | AC94: -0.05 | AD94: -0.078 | AE94: -0.078 | AF94: -0.025 | AG94: -0.025 | AH94: -0.025 | AI94: -0.025 | AJ94: -0.025 | AK94: -0.025 | AL94: -0.01 | AM94: -0.01 | AN94: -0.01 | AO94: -0.01 | AP94: -0.01 | AQ94: -0.01 | AR94: -0.01 | AS94: 0 | AT94: 0 | AU94: 0 | AV94: 0 | AW94: 0 | AX94: 0 | AY94: 0 | AZ94: 0 | BA94: 0 | BB94: 0 | BC94: 0 | BD94: 0 | BE94: 0
A95: 86 | B95: Backhaul | C95: Owned microwave (300Mbit/s) | E95: % | AC95: -0.05 | AD95: -0.078 | AE95: -0.078 | AF95: -0.025 | AG95: -0.025 | AH95: -0.025 | AI95: -0.025 | AJ95: -0.025 | AK95: -0.025 | AL95: -0.01 | AM95: -0.01 | AN95: -0.01 | AO95: -0.01 | AP95: -0.01 | AQ95: -0.01 | AR95: -0.01 | AS95: 0 | AT95: 0 | AU95: 0 | AV95: 0 | AW95: 0 | AX95: 0 | AY95: 0 | AZ95: 0 | BA95: 0 | BB95: 0 | BC95: 0 | BD95: 0 | BE95: 0
A96: 87 | B96: Cell sites | C96: Shared sites | E96: % | H96: 0 | I96: 0 | J96: 0 | K96: 0 | L96: 0 | M96: 0 | N96: 0 | O96: 0 | P96: 0 | Q96: 0 | R96: 0 | S96: 0 | T96: 0 | U96: 0 | V96: 0 | W96: 0 | X96: 0 | Y96: 0 | Z96: 0.01 | AA96: -0.15 | AB96: -0.15 | AC96: -0.15 | AD96: 0.007 | AE96: 0.007 | AF96: 0.02 | AG96: 0.005 | AH96: 0.005 | AI96: 0.005 | AJ96: 0 | AK96: 0 | AL96: 0 | AM96: 0 | AN96: 0 | AO96: 0 | AP96: 0 | AQ96: 0 | AR96: 0 | AS96: 0 | AT96: 0 | AU96: 0 | AV96: 0 | AW96: 0 | AX96: 0 | AY96: 0 | AZ96: 0 | BA96: 0 | BB96: 0 | BC96: 0 | BD96: 0 | BE96: 0
A97: 88 | B97: spare | C97: spare | E97: %
A98: 89 | B98: Backhaul | C98: Ethernet microwave link (defunct) | E98: % | H98: 0 | I98: 0 | J98: 0 | K98: 0 | L98: 0 | M98: 0 | N98: 0 | O98: 0 | P98: 0 | Q98: 0 | R98: 0 | S98: 0 | T98: 0 | U98: 0 | V98: 0 | W98: 0 | X98: 0 | Y98: 0 | Z98: 0 | AA98: 0 | AB98: -0.02 | AC98: -0.02 | AD98: -0.02 | AE98: -0.02 | AF98: -0.02 | AG98: -0.02 | AH98: -0.02 | AI98: -0.02 | AJ98: -0.02 | AK98: -0.02 | AL98: -0.02 | AM98: -0.02 | AN98: -0.02 | AO98: -0.02 | AP98: -0.02 | AQ98: -0.02 | AR98: -0.02 | AS98: 0 | AT98: 0 | AU98: 0 | AV98: 0 | AW98: 0 | AX98: 0 | AY98: 0 | AZ98: 0 | BA98: 0 | BB98: 0 | BC98: 0 | BD98: 0 | BE98: 0
A99: 90 | B99: spare | C99: spare | E99: %
A100: 91 | B100: VMS | C100: VMS Platform | E100: % | H100: -0.05 | I100: -0.05 | J100: -0.05 | K100: -0.05 | L100: -0.05 | M100: -0.05 | N100: -0.05 | O100: -0.05 | P100: -0.05 | Q100: -0.05 | R100: -0.05 | S100: -0.05 | T100: -0.05 | U100: -0.05 | V100: -0.05 | W100: -0.05 | X100: -0.05 | Y100: -0.05 | Z100: -0.05 | AA100: -0.05 | AB100: -0.05 | AC100: -0.05 | AD100: -0.05 | AE100: -0.05 | AF100: -0.05 | AG100: -0.05 | AH100: -0.05 | AI100: -0.05 | AJ100: -0.05 | AK100: -0.05 | AL100: -0.05 | AM100: -0.05 | AN100: -0.05 | AO100: -0.05 | AP100: -0.05 | AQ100: -0.05 | AR100: -0.05 | AS100: 0 | AT100: 0 | AU100: 0 | AV100: 0 | AW100: 0 | AX100: 0 | AY100: 0 | AZ100: 0 | BA100: 0 | BB100: 0 | BC100: 0 | BD100: 0 | BE100: 0
A101: 92 | B101: Backhaul | C101: High-speed backhaul hub | E101: % | AC101: -0.02 | AD101: -0.041 | AE101: -0.041 | AF101: -0.02 | AG101: -0.02 | AH101: -0.02 | AI101: -0.02 | AJ101: -0.02 | AK101: -0.02 | AL101: -0.02 | AM101: -0.02 | AN101: -0.02 | AO101: -0.02 | AP101: -0.02 | AQ101: -0.02 | AR101: -0.02 | AS101: 0 | AT101: 0 | AU101: 0 | AV101: 0 | AW101: 0 | AX101: 0 | AY101: 0 | AZ101: 0 | BA101: 0 | BB101: 0 | BC101: 0 | BD101: 0 | BE101: 0
A102: 93 | B102: Backhaul | C102: High-speed leased backhaul link (1000Mbit/s) | E102: % | AC102: -0.02 | AD102: -0.12 | AE102: -0.12 | AF102: -0.02 | AG102: -0.02 | AH102: -0.02 | AI102: -0.02 | AJ102: -0.02 | AK102: -0.02 | AL102: -0.02 | AM102: -0.02 | AN102: -0.02 | AO102: -0.02 | AP102: -0.02 | AQ102: -0.02 | AR102: -0.02 | AS102: 0 | AT102: 0 | AU102: 0 | AV102: 0 | AW102: 0 | AX102: 0 | AY102: 0 | AZ102: 0 | BA102: 0 | BB102: 0 | BC102: 0 | BD102: 0 | BE102: 0
A103: 94 | B103: spare | C103: spare | E103: %
A104: 95 | B104: spare | C104: spare | E104: %
A105: 96 | B105: spare | C105: spare | E105: %
A106: 97 | B106: Main switch sites (allocated to voice) | C106: Buildings (switch building preparation) - allocated to voice services | E106: % | F106: TRUE | H106: 0 | I106: 0 | J106: 0 | K106: 0 | L106: 0 | M106: 0 | N106: 0 | O106: 0 | P106: 0 | Q106: 0 | R106: 0 | S106: 0 | T106: 0 | U106: 0 | V106: 0 | W106: 0 | X106: 0 | Y106: 0 | Z106: 0 | AA106: 0 | AB106: 0 | AC106: 0 | AD106: 0 | AE106: 0 | AF106: 0 | AG106: 0 | AH106: 0 | AI106: 0 | AJ106: 0 | AK106: 0 | AL106: 0 | AM106: 0 | AN106: 0 | AO106: 0 | AP106: 0 | AQ106: 0 | AR106: 0 | AS106: 0 | AT106: 0 | AU106: 0 | AV106: 0 | AW106: 0 | AX106: 0 | AY106: 0 | AZ106: 0 | BA106: 0 | BB106: 0 | BC106: 0 | BD106: 0 | BE106: 0
A107: 98 | B107: Main switch sites (allocated to voice) | C107: Site lease - allocated to voice services | E107: % | H107: 0 | I107: 0 | J107: 0 | K107: 0 | L107: 0 | M107: 0 | N107: 0 | O107: 0 | P107: 0 | Q107: 0 | R107: 0 | S107: 0 | T107: 0 | U107: 0 | V107: 0 | W107: 0 | X107: 0 | Y107: 0 | Z107: 0 | AA107: 0 | AB107: 0 | AC107: 0 | AD107: 0 | AE107: 0 | AF107: 0 | AG107: 0 | AH107: 0 | AI107: 0 | AJ107: 0 | AK107: 0 | AL107: 0 | AM107: 0 | AN107: 0 | AO107: 0 | AP107: 0 | AQ107: 0 | AR107: 0 | AS107: 0 | AT107: 0 | AU107: 0 | AV107: 0 | AW107: 0 | AX107: 0 | AY107: 0 | AZ107: 0 | BA107: 0 | BB107: 0 | BC107: 0 | BD107: 0 | BE107: 0
A108: 99 | B108: Main switch sites (allocated to data) | C108: Buildings (switch building preparation) - allocated to data services | E108: % | H108: 0 | I108: 0 | J108: 0 | K108: 0 | L108: 0 | M108: 0 | N108: 0 | O108: 0 | P108: 0 | Q108: 0 | R108: 0 | S108: 0 | T108: 0 | U108: 0 | V108: 0 | W108: 0 | X108: 0 | Y108: 0 | Z108: 0 | AA108: 0 | AB108: 0 | AC108: 0 | AD108: 0 | AE108: 0 | AF108: 0 | AG108: 0 | AH108: 0 | AI108: 0 | AJ108: 0 | AK108: 0 | AL108: 0 | AM108: 0 | AN108: 0 | AO108: 0 | AP108: 0 | AQ108: 0 | AR108: 0 | AS108: 0 | AT108: 0 | AU108: 0 | AV108: 0 | AW108: 0 | AX108: 0 | AY108: 0 | AZ108: 0 | BA108: 0 | BB108: 0 | BC108: 0 | BD108: 0 | BE108: 0
A109: 100 | B109: Main switch sites (allocated to data) | C109: Site lease - allocated to data services | E109: % | H109: 0 | I109: 0 | J109: 0 | K109: 0 | L109: 0 | M109: 0 | N109: 0 | O109: 0 | P109: 0 | Q109: 0 | R109: 0 | S109: 0 | T109: 0 | U109: 0 | V109: 0 | W109: 0 | X109: 0 | Y109: 0 | Z109: 0 | AA109: 0 | AB109: 0 | AC109: 0 | AD109: 0 | AE109: 0 | AF109: 0 | AG109: 0 | AH109: 0 | AI109: 0 | AJ109: 0 | AK109: 0 | AL109: 0 | AM109: 0 | AN109: 0 | AO109: 0 | AP109: 0 | AQ109: 0 | AR109: 0 | AS109: 0 | AT109: 0 | AU109: 0 | AV109: 0 | AW109: 0 | AX109: 0 | AY109: 0 | AZ109: 0 | BA109: 0 | BB109: 0 | BC109: 0 | BD109: 0 | BE109: 0
A110: 101 | B110: 4G cell site equipment | C110: Macro eNodeB | E110: % | AD110: 0.032 | AE110: 0.032 | AF110: -0.025 | AG110: -0.025 | AH110: -0.025 | AI110: -0.025 | AJ110: -0.025 | AK110: -0.025 | AL110: -0.01 | AM110: -0.01 | AN110: -0.01 | AO110: -0.01 | AP110: -0.01 | AQ110: -0.01 | AR110: -0.01 | AS110: 0 | AT110: 0 | AU110: 0 | AV110: 0 | AW110: 0 | AX110: 0 | AY110: 0 | AZ110: 0 | BA110: 0 | BB110: 0 | BC110: 0 | BD110: 0 | BE110: 0
A111: 102 | B111: 4G cell site equipment | C111: Micro eNodeB | E111: % | AD111: 0.032 | AE111: 0.032 | AF111: -0.025 | AG111: -0.025 | AH111: -0.025 | AI111: -0.025 | AJ111: -0.025 | AK111: -0.025 | AL111: -0.01 | AM111: -0.01 | AN111: -0.01 | AO111: -0.01 | AP111: -0.01 | AQ111: -0.01 | AR111: -0.01 | AS111: 0 | AT111: 0 | AU111: 0 | AV111: 0 | AW111: 0 | AX111: 0 | AY111: 0 | AZ111: 0 | BA111: 0 | BB111: 0 | BC111: 0 | BD111: 0 | BE111: 0
A112: 103 | B112: 4G cell site equipment | C112: Pico eNodeB | E112: % | AD112: 0.032 | AE112: 0.032 | AF112: -0.025 | AG112: -0.025 | AH112: -0.025 | AI112: -0.025 | AJ112: -0.025 | AK112: -0.025 | AL112: -0.01 | AM112: -0.01 | AN112: -0.01 | AO112: -0.01 | AP112: -0.01 | AQ112: -0.01 | AR112: -0.01 | AS112: 0 | AT112: 0 | AU112: 0 | AV112: 0 | AW112: 0 | AX112: 0 | AY112: 0 | AZ112: 0 | BA112: 0 | BB112: 0 | BC112: 0 | BD112: 0 | BE112: 0
A113: 104 | B113: 4G cell site equipment | C113: 4G Macrocell: additional carriers | E113: % | AD113: -0.02 | AE113: -0.02 | AF113: -0.025 | AG113: -0.025 | AH113: -0.025 | AI113: -0.025 | AJ113: -0.025 | AK113: 0 | AL113: 0 | AM113: 0 | AN113: 0 | AO113: 0 | AP113: 0 | AQ113: 0 | AR113: 0 | AS113: 0 | AT113: 0 | AU113: 0 | AV113: 0 | AW113: 0 | AX113: 0 | AY113: 0 | AZ113: 0 | BA113: 0 | BB113: 0 | BC113: 0 | BD113: 0 | BE113: 0
A114: 105 | B114: 4G cell site equipment | C114: 4G Microcell: additional carriers | E114: % | AD114: -0.02 | AE114: -0.02 | AF114: -0.025 | AG114: -0.025 | AH114: -0.025 | AI114: -0.025 | AJ114: -0.025 | AK114: 0 | AL114: 0 | AM114: 0 | AN114: 0 | AO114: 0 | AP114: 0 | AQ114: 0 | AR114: 0 | AS114: 0 | AT114: 0 | AU114: 0 | AV114: 0 | AW114: 0 | AX114: 0 | AY114: 0 | AZ114: 0 | BA114: 0 | BB114: 0 | BC114: 0 | BD114: 0 | BE114: 0
A115: 106 | B115: 4G cell site equipment | C115: 4G Picocell: additional carriers | E115: % | AD115: -0.02 | AE115: -0.02 | AF115: -0.025 | AG115: -0.025 | AH115: -0.025 | AI115: -0.025 | AJ115: -0.025 | AK115: 0 | AL115: 0 | AM115: 0 | AN115: 0 | AO115: 0 | AP115: 0 | AQ115: 0 | AR115: 0 | AS115: 0 | AT115: 0 | AU115: 0 | AV115: 0 | AW115: 0 | AX115: 0 | AY115: 0 | AZ115: 0 | BA115: 0 | BB115: 0 | BC115: 0 | BD115: 0 | BE115: 0
A116: 107 | B116: 4G site upgrade | C116: Macro site upgrade | E116: % | AD116: -0.009 | AE116: -0.009 | AF116: 0.02 | AG116: 0.005 | AH116: 0.005 | AI116: 0.005 | AJ116: 0 | AK116: 0 | AL116: 0 | AM116: 0 | AN116: 0 | AO116: 0 | AP116: 0 | AQ116: 0 | AR116: 0 | AS116: 0 | AT116: 0 | AU116: 0 | AV116: 0 | AW116: 0 | AX116: 0 | AY116: 0 | AZ116: 0 | BA116: 0 | BB116: 0 | BC116: 0 | BD116: 0 | BE116: 0
A117: 108 | B117: 4G site upgrade | C117: Micro site upgrade | E117: % | AD117: -0.009 | AE117: -0.009 | AF117: 0.02 | AG117: 0.005 | AH117: 0.005 | AI117: 0.005 | AJ117: 0 | AK117: 0 | AL117: 0 | AM117: 0 | AN117: 0 | AO117: 0 | AP117: 0 | AQ117: 0 | AR117: 0 | AS117: 0 | AT117: 0 | AU117: 0 | AV117: 0 | AW117: 0 | AX117: 0 | AY117: 0 | AZ117: 0 | BA117: 0 | BB117: 0 | BC117: 0 | BD117: 0 | BE117: 0
A118: 109 | B118: 4G site upgrade | C118: Pico site upgrade | E118: % | AD118: -0.009 | AE118: -0.009 | AF118: 0.02 | AG118: 0.005 | AH118: 0.005 | AI118: 0.005 | AJ118: 0 | AK118: 0 | AL118: 0 | AM118: 0 | AN118: 0 | AO118: 0 | AP118: 0 | AQ118: 0 | AR118: 0 | AS118: 0 | AT118: 0 | AU118: 0 | AV118: 0 | AW118: 0 | AX118: 0 | AY118: 0 | AZ118: 0 | BA118: 0 | BB118: 0 | BC118: 0 | BD118: 0 | BE118: 0
A119: 110 | B119: Backhaul | C119: Leased Ethernet (500Mbit/s) | E119: % | AD119: -0.02 | AE119: -0.02 | AF119: -0.02 | AG119: -0.02 | AH119: -0.02 | AI119: -0.02 | AJ119: -0.02 | AK119: -0.02 | AL119: -0.02 | AM119: -0.02 | AN119: -0.02 | AO119: -0.02 | AP119: -0.02 | AQ119: -0.02 | AR119: -0.02 | AS119: 0 | AT119: 0 | AU119: 0 | AV119: 0 | AW119: 0 | AX119: 0 | AY119: 0 | AZ119: 0 | BA119: 0 | BB119: 0 | BC119: 0 | BD119: 0 | BE119: 0
A120: 111 | B120: Backhaul | C120: Owned microwave (500Mbit/s) | E120: % | AD120: -0.078 | AE120: -0.078 | AF120: -0.025 | AG120: -0.025 | AH120: -0.025 | AI120: -0.025 | AJ120: -0.025 | AK120: -0.025 | AL120: -0.01 | AM120: -0.01 | AN120: -0.01 | AO120: -0.01 | AP120: -0.01 | AQ120: -0.01 | AR120: -0.01 | AS120: 0 | AT120: 0 | AU120: 0 | AV120: 0 | AW120: 0 | AX120: 0 | AY120: 0 | AZ120: 0 | BA120: 0 | BB120: 0 | BC120: 0 | BD120: 0 | BE120: 0
A121: 112 | B121: Cell sites | C121: Infrastructure sharing macro site upgrade | E121: % | AD121: -0.178 | AE121: -0.178 | AF121: 0.02 | AG121: 0.005 | AH121: 0.005 | AI121: 0.005 | AJ121: 0 | AK121: 0 | AL121: 0 | AM121: 0 | AN121: 0 | AO121: 0 | AP121: 0 | AQ121: 0 | AR121: 0 | AS121: 0 | AT121: 0 | AU121: 0 | AV121: 0 | AW121: 0 | AX121: 0 | AY121: 0 | AZ121: 0 | BA121: 0 | BB121: 0 | BC121: 0 | BD121: 0 | BE121: 0
A122: 113 | B122: Cell sites | C122: Infrastructure sharing micro site upgrade | E122: % | AD122: -0.178 | AE122: -0.178 | AF122: 0.02 | AG122: 0.005 | AH122: 0.005 | AI122: 0.005 | AJ122: 0 | AK122: 0 | AL122: 0 | AM122: 0 | AN122: 0 | AO122: 0 | AP122: 0 | AQ122: 0 | AR122: 0 | AS122: 0 | AT122: 0 | AU122: 0 | AV122: 0 | AW122: 0 | AX122: 0 | AY122: 0 | AZ122: 0 | BA122: 0 | BB122: 0 | BC122: 0 | BD122: 0 | BE122: 0
A123: 114 | B123: Cell sites | C123: Infrastructure sharing pico site upgrade | E123: % | AD123: -0.178 | AE123: -0.178 | AF123: 0.02 | AG123: 0.005 | AH123: 0.005 | AI123: 0.005 | AJ123: 0 | AK123: 0 | AL123: 0 | AM123: 0 | AN123: 0 | AO123: 0 | AP123: 0 | AQ123: 0 | AR123: 0 | AS123: 0 | AT123: 0 | AU123: 0 | AV123: 0 | AW123: 0 | AX123: 0 | AY123: 0 | AZ123: 0 | BA123: 0 | BB123: 0 | BC123: 0 | BD123: 0 | BE123: 0
A124: 115 | B124: spare | C124: spare | E124: %
A125: 116 | B125: spare | C125: spare | E125: %
A126: 117 | B126: spare | C126: spare | E126: %
A127: 118 | B127: spare | C127: spare | E127: %
A128: 119 | B128: spare | C128: spare | E128: %
A129: 120 | B129: spare | C129: spare | E129: %
A130: 121 | B130: spare | C130: spare | E130: %
A131: 122 | B131: spare | C131: spare | E131: %
A132: 123 | B132: spare | C132: spare | E132: %
A133: 124 | B133: spare | C133: spare | E133: %
A134: 125 | B134: spare | C134: spare | E134: %
A135: 126 | B135: spare | C135: spare | E135: %
A136: 127 | B136: spare | C136: spare | E136: %
A137: 128 | B137: spare | C137: spare | E137: %
A138: 129 | B138: Core transmission | C138: Next-generation backbone links | E138: % | AC138: 0 | AD138: 0 | AE138: 0 | AF138: 0 | AG138: 0 | AH138: 0 | AI138: 0 | AJ138: 0 | AK138: 0 | AL138: 0 | AM138: 0 | AN138: 0 | AO138: 0 | AP138: 0 | AQ138: 0 | AR138: 0 | AS138: 0 | AT138: 0 | AU138: 0 | AV138: 0 | AW138: 0 | AX138: 0 | AY138: 0 | AZ138: 0 | BA138: 0 | BB138: 0 | BC138: 0 | BD138: 0 | BE138: 0
A139: 130 | B139: Core transmission | C139: Next-generation backbone km | E139: % | AC139: 0 | AD139: 0 | AE139: 0 | AF139: 0 | AG139: 0 | AH139: 0 | AI139: 0 | AJ139: 0 | AK139: 0 | AL139: 0 | AM139: 0 | AN139: 0 | AO139: 0 | AP139: 0 | AQ139: 0 | AR139: 0 | AS139: 0 | AT139: 0 | AU139: 0 | AV139: 0 | AW139: 0 | AX139: 0 | AY139: 0 | AZ139: 0 | BA139: 0 | BB139: 0 | BC139: 0 | BD139: 0 | BE139: 0
A140: 131 | B140: 4G core network | C140: MME | E140: % | AC140: 0 | AD140: 0 | AE140: 0 | AF140: 0 | AG140: 0 | AH140: 0 | AI140: 0 | AJ140: 0 | AK140: 0 | AL140: 0 | AM140: 0 | AN140: 0 | AO140: 0 | AP140: 0 | AQ140: 0 | AR140: 0 | AS140: 0 | AT140: 0 | AU140: 0 | AV140: 0 | AW140: 0 | AX140: 0 | AY140: 0 | AZ140: 0 | BA140: 0 | BB140: 0 | BC140: 0 | BD140: 0 | BE140: 0
A141: 132 | B141: 4G core network | C141: Serving Gateway (SGW) | E141: % | AC141: 0 | AD141: 0 | AE141: 0 | AF141: 0 | AG141: 0 | AH141: 0 | AI141: 0 | AJ141: 0 | AK141: 0 | AL141: 0 | AM141: 0 | AN141: 0 | AO141: 0 | AP141: 0 | AQ141: 0 | AR141: 0 | AS141: 0 | AT141: 0 | AU141: 0 | AV141: 0 | AW141: 0 | AX141: 0 | AY141: 0 | AZ141: 0 | BA141: 0 | BB141: 0 | BC141: 0 | BD141: 0 | BE141: 0
A142: 133 | B142: 4G core network | C142: MME software | E142: % | AC142: 0 | AD142: 0 | AE142: 0 | AF142: 0 | AG142: 0 | AH142: 0 | AI142: 0 | AJ142: 0 | AK142: 0 | AL142: 0 | AM142: 0 | AN142: 0 | AO142: 0 | AP142: 0 | AQ142: 0 | AR142: 0 | AS142: 0 | AT142: 0 | AU142: 0 | AV142: 0 | AW142: 0 | AX142: 0 | AY142: 0 | AZ142: 0 | BA142: 0 | BB142: 0 | BC142: 0 | BD142: 0 | BE142: 0
A143: 134 | B143: 4G core network | C143: Data traffic manager | E143: % | F143: TRUE | AC143: 0 | AD143: 0 | AE143: 0 | AF143: 0 | AG143: 0 | AH143: 0 | AI143: 0 | AJ143: 0 | AK143: 0 | AL143: 0 | AM143: 0 | AN143: 0 | AO143: 0 | AP143: 0 | AQ143: 0 | AR143: 0 | AS143: 0 | AT143: 0 | AU143: 0 | AV143: 0 | AW143: 0 | AX143: 0 | AY143: 0 | AZ143: 0 | BA143: 0 | BB143: 0 | BC143: 0 | BD143: 0 | BE143: 0
A144: 135 | B144: VoLTE network | C144: Call server hardware | E144: % | AC144: 0 | AD144: 0 | AE144: 0 | AF144: 0 | AG144: 0 | AH144: 0 | AI144: 0 | AJ144: 0 | AK144: 0 | AL144: 0 | AM144: 0 | AN144: 0 | AO144: 0 | AP144: 0 | AQ144: 0 | AR144: 0 | AS144: 0 | AT144: 0 | AU144: 0 | AV144: 0 | AW144: 0 | AX144: 0 | AY144: 0 | AZ144: 0 | BA144: 0 | BB144: 0 | BC144: 0 | BD144: 0 | BE144: 0
A145: 136 | B145: VoLTE network | C145: Call server software | E145: % | AC145: 0 | AD145: 0 | AE145: 0 | AF145: 0 | AG145: 0 | AH145: 0 | AI145: 0 | AJ145: 0 | AK145: 0 | AL145: 0 | AM145: 0 | AN145: 0 | AO145: 0 | AP145: 0 | AQ145: 0 | AR145: 0 | AS145: 0 | AT145: 0 | AU145: 0 | AV145: 0 | AW145: 0 | AX145: 0 | AY145: 0 | AZ145: 0 | BA145: 0 | BB145: 0 | BC145: 0 | BD145: 0 | BE145: 0
A146: 137 | B146: VoLTE network | C146: TAS | E146: % | AC146: 0 | AD146: 0 | AE146: 0 | AF146: 0 | AG146: 0 | AH146: 0 | AI146: 0 | AJ146: 0 | AK146: 0 | AL146: 0 | AM146: 0 | AN146: 0 | AO146: 0 | AP146: 0 | AQ146: 0 | AR146: 0 | AS146: 0 | AT146: 0 | AU146: 0 | AV146: 0 | AW146: 0 | AX146: 0 | AY146: 0 | AZ146: 0 | BA146: 0 | BB146: 0 | BC146: 0 | BD146: 0 | BE146: 0
A147: 138 | B147: VoLTE network | C147: SBC hardware | E147: % | AC147: 0 | AD147: 0 | AE147: 0 | AF147: 0 | AG147: 0 | AH147: 0 | AI147: 0 | AJ147: 0 | AK147: 0 | AL147: 0 | AM147: 0 | AN147: 0 | AO147: 0 | AP147: 0 | AQ147: 0 | AR147: 0 | AS147: 0 | AT147: 0 | AU147: 0 | AV147: 0 | AW147: 0 | AX147: 0 | AY147: 0 | AZ147: 0 | BA147: 0 | BB147: 0 | BC147: 0 | BD147: 0 | BE147: 0
A148: 139 | B148: VoLTE network | C148: SBC software | E148: % | AC148: 0 | AD148: 0 | AE148: 0 | AF148: 0 | AG148: 0 | AH148: 0 | AI148: 0 | AJ148: 0 | AK148: 0 | AL148: 0 | AM148: 0 | AN148: 0 | AO148: 0 | AP148: 0 | AQ148: 0 | AR148: 0 | AS148: 0 | AT148: 0 | AU148: 0 | AV148: 0 | AW148: 0 | AX148: 0 | AY148: 0 | AZ148: 0 | BA148: 0 | BB148: 0 | BC148: 0 | BD148: 0 | BE148: 0
A149: 140 | B149: VoLTE network | C149: VoLTE upgrades to HLR | E149: % | AC149: 0 | AD149: 0 | AE149: 0 | AF149: 0 | AG149: 0 | AH149: 0 | AI149: 0 | AJ149: 0 | AK149: 0 | AL149: 0 | AM149: 0 | AN149: 0 | AO149: 0 | AP149: 0 | AQ149: 0 | AR149: 0 | AS149: 0 | AT149: 0 | AU149: 0 | AV149: 0 | AW149: 0 | AX149: 0 | AY149: 0 | AZ149: 0 | BA149: 0 | BB149: 0 | BC149: 0 | BD149: 0 | BE149: 0
A150: 141 | B150: VoLTE network | C150: VoLTE upgrades to MSC-S | E150: % | AC150: 0 | AD150: 0 | AE150: 0 | AF150: 0 | AG150: 0 | AH150: 0 | AI150: 0 | AJ150: 0 | AK150: 0 | AL150: 0 | AM150: 0 | AN150: 0 | AO150: 0 | AP150: 0 | AQ150: 0 | AR150: 0 | AS150: 0 | AT150: 0 | AU150: 0 | AV150: 0 | AW150: 0 | AX150: 0 | AY150: 0 | AZ150: 0 | BA150: 0 | BB150: 0 | BC150: 0 | BD150: 0 | BE150: 0
A151: 142 | B151: VoLTE network | C151: VoLTE upgrades to NMS | E151: % | AC151: 0 | AD151: 0 | AE151: 0 | AF151: 0 | AG151: 0 | AH151: 0 | AI151: 0 | AJ151: 0 | AK151: 0 | AL151: 0 | AM151: 0 | AN151: 0 | AO151: 0 | AP151: 0 | AQ151: 0 | AR151: 0 | AS151: 0 | AT151: 0 | AU151: 0 | AV151: 0 | AW151: 0 | AX151: 0 | AY151: 0 | AZ151: 0 | BA151: 0 | BB151: 0 | BC151: 0 | BD151: 0 | BE151: 0
A152: 143 | B152: 4G core network | C152: NMS | E152: % | F152: TRUE | AC152: 0 | AD152: 0 | AE152: -0.05 | AF152: -0.025 | AG152: -0.025 | AH152: -0.025 | AI152: -0.025 | AJ152: -0.025 | AK152: -0.025 | AL152: -0.01 | AM152: -0.01 | AN152: -0.01 | AO152: -0.01 | AP152: -0.01 | AQ152: -0.01 | AR152: -0.01 | AS152: 0 | AT152: 0 | AU152: 0 | AV152: 0 | AW152: 0 | AX152: 0 | AY152: 0 | AZ152: 0 | BA152: 0 | BB152: 0 | BC152: 0 | BD152: 0 | BE152: 0
A153: 144 | B153: HLRs | C153: HSS | E153: % | AC153: 0 | AD153: 0 | AE153: 0 | AF153: 0 | AG153: 0 | AH153: 0 | AI153: 0 | AJ153: 0 | AK153: 0 | AL153: 0 | AM153: 0 | AN153: 0 | AO153: 0 | AP153: 0 | AQ153: 0 | AR153: 0 | AS153: 0 | AT153: 0 | AU153: 0 | AV153: 0 | AW153: 0 | AX153: 0 | AY153: 0 | AZ153: 0 | BA153: 0 | BB153: 0 | BC153: 0 | BD153: 0 | BE153: 0
A154: 145 | B154: 4G core network | C154: spare | E154: %
A155: 146 | B155: 4G core network | C155: spare | E155: %
A156: 147 | B156: 4G core network | C156: spare | E156: %
A157: 148 | B157: 4G core network | C157: spare | E157: %
A158: 149 | B158: 4G Licence fee | C158: 4G spectrum annual payments | E158: % | AC158: 0 | AD158: 0 | AE158: 0 | AF158: 0 | AG158: 0 | AH158: 0 | AI158: 0 | AJ158: 0 | AK158: 0 | AL158: 0 | AM158: 0 | AN158: 0 | AO158: 0 | AP158: 0 | AQ158: 0 | AR158: 0 | AS158: 0 | AT158: 0 | AU158: 0 | AV158: 0 | AW158: 0 | AX158: 0 | AY158: 0 | AZ158: 0 | BA158: 0 | BB158: 0 | BC158: 0 | BD158: 0 | BE158: 0
A159: 150 | B159: 4G Licence fee | C159: 4G auction payments | E159: % | AC159: 0 | AD159: 0 | AE159: 0 | AF159: 0 | AG159: 0 | AH159: 0 | AI159: 0 | AJ159: 0 | AK159: 0 | AL159: 0 | AM159: 0 | AN159: 0 | AO159: 0 | AP159: 0 | AQ159: 0 | AR159: 0 | AS159: 0 | AT159: 0 | AU159: 0 | AV159: 0 | AW159: 0 | AX159: 0 | AY159: 0 | AZ159: 0 | BA159: 0 | BB159: 0 | BC159: 0 | BD159: 0 | BE159: 0
A160: 148 | B160: 4G core network | C160: spare | E160: %
A161: 149 | B161: 4G Licence fee | C161: 4G spectrum annual payments | E161: % | H161: 0 | I161: 0 | J161: 0 | K161: 0 | L161: 0 | M161: 0 | N161: 0 | O161: 0 | P161: 0 | Q161: 0 | R161: 0 | S161: 0 | T161: 0 | U161: 0 | V161: 0 | W161: 0 | X161: 0 | Y161: 0 | Z161: 0 | AA161: 0 | AB161: 0 | AC161: 0 | AD161: 0 | AE161: 0 | AF161: -0.7561688535 | AG161: 0 | AH161: 0 | AI161: 0 | AJ161: 0 | AK161: 0 | AL161: 0 | AM161: 0 | AN161: 0 | AO161: 0 | AP161: 0 | AQ161: 0 | AR161: 0 | AS161: 0 | AT161: 0 | AU161: 0 | AV161: 0 | AW161: 0 | AX161: 0 | AY161: 0 | AZ161: 0 | BA161: 0 | BB161: 0 | BC161: 0 | BD161: 0 | BE161: 0
A162: 150 | B162: 4G Licence fee | C162: 4G auction payments | E162: %

Sheet Calculations --->

Sheet Cost Trend calc
A1: Cost trend calculation
F3: 2015 | G3: 2016 | H3: 2017 | I3: 2018 | J3: 2019 | K3: 2020 | L3: 2021 | M3: 2021 | N3: 2021 | O3: 2021 | P3: 2021 | Q3: 2021 | R3: 2021 | S3: 2021 | T3: 2021 | U3: 2021 | V3: 2021 | W3: 2021 | X3: 2021 | Y3: 2021 | Z3: 2021 | AA3: 2021 | AB3: 2021 | AC3: 2021 | AD3: 2021
C4: CPI input - Annual change | D4: CPI data Link | F4: 0 | G4: 0.7 | H4: 2.7 | I4: 2.5 | J4: 1.8 | K4: 0.9 | L4: 2.6
B6: Annual change | C6: Equipment (MCT model) | D6: E | F6: =AVERAGEIF($D$24:$D$172,$D$6,F$24:F$172) -> -0.0265 | G6: =AVERAGEIF($D$24:$D$172,$D$6,G$24:G$172) -> -0.0265 | H6: -0.0265 | I6: -0.0265 | J6: -0.0245 | K6: -0.012 | L6: -0.012 | M6: -0.012 | N6: -0.012 | O6: -0.012 | P6: -0.012 | Q6: -0.012 | R6: 0 | S6: 0 | T6: 0 | U6: 0 | V6: 0 | W6: 0 | X6: 0 | Y6: 0 | Z6: 0 | AA6: 0 | AB6: 0 | AC6: 0 | AD6: 0
C7: Site (MCT model) | D7: S | F7: =AVERAGEIF($D$24:$D$172,$D$7,F$24:F$172) -> 0.005 | G7: 0.005 | H7: 0.005 | I7: 0 | J7: 0 | K7: 0 | L7: 0 | M7: 0 | N7: 0 | O7: 0 | P7: 0 | Q7: 0 | R7: 0 | S7: 0 | T7: 0 | U7: 0 | V7: 0 | W7: 0 | X7: 0 | Y7: 0 | Z7: 0 | AA7: 0 | AB7: 0 | AC7: 0 | AD7: 0
C8: CPI | D8: CPI | F8: =F4/100 -> 0 | G8: 0.007 | H8: 0.027 | I8: 0.025 | J8: 0.018 | K8: 0.009 | L8: 0.026
B11: Index | C11: Equipment | E11: 1 | F11: =E11*(1+F6) -> 0.9735 | G11: =F11*(1+G6) -> 0.94770225 | H11: 0.9225881404 | I11: 0.8981395547 | J11: 0.8761351356 | K11: 0.8656215139 | L11: 0.8552340558
C12: Site | E12: 1 | F12: 1.005 | G12: 1.010025 | H12: 1.015075125 | I12: 1.015075125 | J12: 1.015075125 | K12: 1.015075125 | L12: 1.015075125
C13: CPI | E13: 1 | F13: 1 | G13: 1.007 | H13: 1.034189 | I13: 1.060043725 | J13: 1.079124512 | K13: 1.088836633 | L13: 1.117146385
C15: Combined increase over the period 2015-2022 for site costs
C16: Cost trend adjustment factor for site costs | L16: =L12*L13 -> 1.133987507
D20: Identification of fixed link costs, Equipment (E ) or Site (S)
E21: ='MCT Cost Trends'!AF8 -> 2014 | F21: ='MCT Cost Trends'!AG8 -> 2015 | G21: ='MCT Cost Trends'!AH8 -> 2016 | H21: ='MCT Cost Trends'!AI8 -> 2017 | I21: ='MCT Cost Trends'!AJ8 -> 2018 | J21: ='MCT Cost Trends'!AK8 -> 2019 | K21: ='MCT Cost Trends'!AL8 -> 2020 | L21: ='MCT Cost Trends'!AM8 -> 2021 | M21: ='MCT Cost Trends'!AN8 -> 2022 | N21: ='MCT Cost Trends'!AO8 -> 2023 | O21: ='MCT Cost Trends'!AP8 -> 2024 | P21: ='MCT Cost Trends'!AQ8 -> 2025 | Q21: ='MCT Cost Trends'!AR8 -> 2026 | R21: ='MCT Cost Trends'!AS8 -> 2027 | S21: ='MCT Cost Trends'!AT8 -> 2028 | T21: ='MCT Cost Trends'!AU8 -> 2029 | U21: ='MCT Cost Trends'!AV8 -> 2030 | V21: ='MCT Cost Trends'!AW8 -> 2031 | W21: ='MCT Cost Trends'!AX8 -> 2032 | X21: ='MCT Cost Trends'!AY8 -> 2033 | Y21: ='MCT Cost Trends'!AZ8 -> 2034 | Z21: ='MCT Cost Trends'!BA8 -> 2035 | AA21: ='MCT Cost Trends'!BB8 -> 2036 | AB21: ='MCT Cost Trends'!BC8 -> 2037 | AC21: ='MCT Cost Trends'!BD8 -> 2038 | AD21: ='MCT Cost Trends'!BE8 -> 2039
E22: ='MCT Cost Trends'!AF9 -> Source: Long-term values out to 2020/21 extended to 2026/27 | F22: ='MCT Cost Trends'!AG9 -> 0 | G22: ='MCT Cost Trends'!AH9 -> 0 | H22: ='MCT Cost Trends'!AI9 -> 0 | I22: ='MCT Cost Trends'!AJ9 -> 0 | J22: ='MCT Cost Trends'!AK9 -> 0 | K22: ='MCT Cost Trends'!AL9 -> 0 | L22: ='MCT Cost Trends'!AM9 -> 0 | M22: ='MCT Cost Trends'!AN9 -> 0 | N22: ='MCT Cost Trends'!AO9 -> 0 | O22: ='MCT Cost Trends'!AP9 -> 0 | P22: ='MCT Cost Trends'!AQ9 -> 0 | Q22: ='MCT Cost Trends'!AR9 -> 0 | R22: ='MCT Cost Trends'!AS9 -> 0 | S22: ='MCT Cost Trends'!AT9 -> 0 | T22: ='MCT Cost Trends'!AU9 -> 0 | U22: ='MCT Cost Trends'!AV9 -> 0 | V22: ='MCT Cost Trends'!AW9 -> 0 | W22: ='MCT Cost Trends'!AX9 -> 0 | X22: ='MCT Cost Trends'!AY9 -> 0 | Y22: ='MCT Cost Trends'!AZ9 -> 0 | Z22: ='MCT Cost Trends'!BA9 -> 0 | AA22: ='MCT Cost Trends'!BB9 -> 0 | AB22: ='MCT Cost Trends'!BC9 -> 0 | AC22: ='MCT Cost Trends'!BD9 -> 0 | AD22: ='MCT Cost Trends'!BE9 -> 0
A23: 1 | B23: spare | C23: spare
A24: 2 | B24: Cell sites | C24: Macrocell: site acquisition and preparation and lease | D24: S | E24: ='MCT Cost Trends'!AF11 -> 0.02 | F24: ='MCT Cost Trends'!AG11 -> 0.005 | G24: ='MCT Cost Trends'!AH11 -> 0.005 | H24: ='MCT Cost Trends'!AI11 -> 0.005 | I24: ='MCT Cost Trends'!AJ11 -> 0 | J24: ='MCT Cost Trends'!AK11 -> 0 | K24: ='MCT Cost Trends'!AL11 -> 0 | L24: ='MCT Cost Trends'!AM11 -> 0 | M24: ='MCT Cost Trends'!AN11 -> 0 | N24: ='MCT Cost Trends'!AO11 -> 0 | O24: ='MCT Cost Trends'!AP11 -> 0 | P24: ='MCT Cost Trends'!AQ11 -> 0 | Q24: ='MCT Cost Trends'!AR11 -> 0 | R24: ='MCT Cost Trends'!AS11 -> 0 | S24: ='MCT Cost Trends'!AT11 -> 0 | T24: ='MCT Cost Trends'!AU11 -> 0 | U24: ='MCT Cost Trends'!AV11 -> 0 | V24: ='MCT Cost Trends'!AW11 -> 0 | W24: ='MCT Cost Trends'!AX11 -> 0 | X24: ='MCT Cost Trends'!AY11 -> 0 | Y24: ='MCT Cost Trends'!AZ11 -> 0 | Z24: ='MCT Cost Trends'!BA11 -> 0 | AA24: ='MCT Cost Trends'!BB11 -> 0 | AB24: ='MCT Cost Trends'!BC11 -> 0 | AC24: ='MCT Cost Trends'!BD11 -> 0 | AD24: ='MCT Cost Trends'!BE11 -> 0
A25: 3 | B25: 2G cell site equipment | C25: Macrocell: equipment (omni sector)
A26: 4 | B26: spare | C26: spare
A27: 5 | B27: 2G cell site equipment | C27: Macrocell: equipment (2 sector)
A28: 6 | B28: spare | C28: spare
A29: 7 | B29: 2G cell site equipment | C29: Macrocell: equipment (3 sector)
A30: 8 | B30: Cell sites | C30: Microcell: site acquisition and preparation and lease | D30: S | E30: ='MCT Cost Trends'!AF17 -> 0.02 | F30: ='MCT Cost Trends'!AG17 -> 0.005 | G30: ='MCT Cost Trends'!AH17 -> 0.005 | H30: ='MCT Cost Trends'!AI17 -> 0.005 | I30: ='MCT Cost Trends'!AJ17 -> 0 | J30: ='MCT Cost Trends'!AK17 -> 0 | K30: ='MCT Cost Trends'!AL17 -> 0 | L30: ='MCT Cost Trends'!AM17 -> 0 | M30: ='MCT Cost Trends'!AN17 -> 0 | N30: ='MCT Cost Trends'!AO17 -> 0 | O30: ='MCT Cost Trends'!AP17 -> 0 | P30: ='MCT Cost Trends'!AQ17 -> 0 | Q30: ='MCT Cost Trends'!AR17 -> 0 | R30: ='MCT Cost Trends'!AS17 -> 0 | S30: ='MCT Cost Trends'!AT17 -> 0 | T30: ='MCT Cost Trends'!AU17 -> 0 | U30: ='MCT Cost Trends'!AV17 -> 0 | V30: ='MCT Cost Trends'!AW17 -> 0 | W30: ='MCT Cost Trends'!AX17 -> 0 | X30: ='MCT Cost Trends'!AY17 -> 0 | Y30: ='MCT Cost Trends'!AZ17 -> 0 | Z30: ='MCT Cost Trends'!BA17 -> 0 | AA30: ='MCT Cost Trends'!BB17 -> 0 | AB30: ='MCT Cost Trends'!BC17 -> 0 | AC30: ='MCT Cost Trends'!BD17 -> 0 | AD30: ='MCT Cost Trends'!BE17 -> 0
A31: 9 | B31: 2G cell site equipment | C31: Microcell: equipment
A32: 10 | B32: Cell sites | C32: Picocell: site acquisition and preparation and lease | D32: S | E32: ='MCT Cost Trends'!AF19 -> 0.02 | F32: ='MCT Cost Trends'!AG19 -> 0.005 | G32: ='MCT Cost Trends'!AH19 -> 0.005 | H32: ='MCT Cost Trends'!AI19 -> 0.005 | I32: ='MCT Cost Trends'!AJ19 -> 0 | J32: ='MCT Cost Trends'!AK19 -> 0 | K32: ='MCT Cost Trends'!AL19 -> 0 | L32: ='MCT Cost Trends'!AM19 -> 0 | M32: ='MCT Cost Trends'!AN19 -> 0 | N32: ='MCT Cost Trends'!AO19 -> 0 | O32: ='MCT Cost Trends'!AP19 -> 0 | P32: ='MCT Cost Trends'!AQ19 -> 0 | Q32: ='MCT Cost Trends'!AR19 -> 0 | R32: ='MCT Cost Trends'!AS19 -> 0 | S32: ='MCT Cost Trends'!AT19 -> 0 | T32: ='MCT Cost Trends'!AU19 -> 0 | U32: ='MCT Cost Trends'!AV19 -> 0 | V32: ='MCT Cost Trends'!AW19 -> 0 | W32: ='MCT Cost Trends'!AX19 -> 0 | X32: ='MCT Cost Trends'!AY19 -> 0 | Y32: ='MCT Cost Trends'!AZ19 -> 0 | Z32: ='MCT Cost Trends'!BA19 -> 0 | AA32: ='MCT Cost Trends'!BB19 -> 0 | AB32: ='MCT Cost Trends'!BC19 -> 0 | AC32: ='MCT Cost Trends'!BD19 -> 0 | AD32: ='MCT Cost Trends'!BE19 -> 0
A33: 11 | B33: 2G cell site equipment | C33: Picocell: equipment
A34: 12 | B34: 2G TRXs | C34: Macrocell: additional TRXs
A35: 13 | B35: 2G TRXs | C35: Microcell: additional TRXs
A36: 14 | B36: 2G TRXs | C36: Picocell: additional TRXs
A37: 15 | B37: 2G BSCs | C37: BSC: base unit
A38: 16 | B38: 2G BSCs | C38: BSC: BS-facing port increment
A39: 17 | B39: 2G BSCs | C39: BSC: Core-facing port increment
A40: 18 | B40: 2G BSCs | C40: Packet control units
A41: 19 | B41: 2G MSCs | C41: MSC: processor
A42: 20 | B42: 2G MSCs | C42: Software
A43: 21 | B43: 2G MSCs | C43: Interconnect interface
A44: 22 | B44: 2G MSCs | C44: Switching Support Plant
A45: 23 | B45: Main switch sites | C45: Buildings (switch building preparation)
A46: 24 | B46: Main switch sites | C46: Site lease
A47: 25 | B47: 2G MSC ports - BSC-facing | C47: MSC: BSC-facing port increment
A48: 26 | B48: 2G MSC ports - Interconnect facing | C48: MSC: interconnect-facing port increment
A49: 27 | B49: 2G MSC ports - Interswitch facing | C49: MSC: switch-facing port increment
A50: 28 | B50: Core transmission | C50: Core transmission in 2Mbit/s circuits
A51: 29 | B51: HLRs | C51: HLR
A52: 30 | B52: Transit switches | C52: Transit switches
A53: 31 | B53: spare | C53: spare
A54: 32 | B54: 2G Licence fees | C54: Annual GSM licence fee
A55: 33 | B55: 2G NMS | C55: Network management
A56: 34 | B56: 2G GSN | C56: 2G SGSN
A57: 35 | B57: 2G GSN | C57: 2G GGSN
A58: 36 | B58: SMSC | C58: SMSC
A59: 37 | B59: Backhaul | C59: 2 Mbit/s microwave link | D59: E | E59: ='MCT Cost Trends'!AF46 -> -0.025 | F59: ='MCT Cost Trends'!AG46 -> -0.025 | G59: ='MCT Cost Trends'!AH46 -> -0.025 | H59: ='MCT Cost Trends'!AI46 -> -0.025 | I59: ='MCT Cost Trends'!AJ46 -> -0.025 | J59: ='MCT Cost Trends'!AK46 -> -0.025 | K59: ='MCT Cost Trends'!AL46 -> -0.01 | L59: ='MCT Cost Trends'!AM46 -> -0.01 | M59: ='MCT Cost Trends'!AN46 -> -0.01 | N59: ='MCT Cost Trends'!AO46 -> -0.01 | O59: ='MCT Cost Trends'!AP46 -> -0.01 | P59: ='MCT Cost Trends'!AQ46 -> -0.01 | Q59: ='MCT Cost Trends'!AR46 -> -0.01 | R59: ='MCT Cost Trends'!AS46 -> 0 | S59: ='MCT Cost Trends'!AT46 -> 0 | T59: ='MCT Cost Trends'!AU46 -> 0 | U59: ='MCT Cost Trends'!AV46 -> 0 | V59: ='MCT Cost Trends'!AW46 -> 0 | W59: ='MCT Cost Trends'!AX46 -> 0 | X59: ='MCT Cost Trends'!AY46 -> 0 | Y59: ='MCT Cost Trends'!AZ46 -> 0 | Z59: ='MCT Cost Trends'!BA46 -> 0 | AA59: ='MCT Cost Trends'!BB46 -> 0 | AB59: ='MCT Cost Trends'!BC46 -> 0 | AC59: ='MCT Cost Trends'!BD46 -> 0 | AD59: ='MCT Cost Trends'!BE46 -> 0
A60: 38 | B60: Backhaul | C60: 8 Mbit/s microwave link | D60: E | E60: ='MCT Cost Trends'!AF47 -> -0.025 | F60: ='MCT Cost Trends'!AG47 -> -0.025 | G60: ='MCT Cost Trends'!AH47 -> -0.025 | H60: ='MCT Cost Trends'!AI47 -> -0.025 | I60: ='MCT Cost Trends'!AJ47 -> -0.025 | J60: ='MCT Cost Trends'!AK47 -> -0.025 | K60: ='MCT Cost Trends'!AL47 -> -0.01 | L60: ='MCT Cost Trends'!AM47 -> -0.01 | M60: ='MCT Cost Trends'!AN47 -> -0.01 | N60: ='MCT Cost Trends'!AO47 -> -0.01 | O60: ='MCT Cost Trends'!AP47 -> -0.01 | P60: ='MCT Cost Trends'!AQ47 -> -0.01 | Q60: ='MCT Cost Trends'!AR47 -> -0.01 | R60: ='MCT Cost Trends'!AS47 -> 0 | S60: ='MCT Cost Trends'!AT47 -> 0 | T60: ='MCT Cost Trends'!AU47 -> 0 | U60: ='MCT Cost Trends'!AV47 -> 0 | V60: ='MCT Cost Trends'!AW47 -> 0 | W60: ='MCT Cost Trends'!AX47 -> 0 | X60: ='MCT Cost Trends'!AY47 -> 0 | Y60: ='MCT Cost Trends'!AZ47 -> 0 | Z60: ='MCT Cost Trends'!BA47 -> 0 | AA60: ='MCT Cost Trends'!BB47 -> 0 | AB60: ='MCT Cost Trends'!BC47 -> 0 | AC60: ='MCT Cost Trends'!BD47 -> 0 | AD60: ='MCT Cost Trends'!BE47 -> 0
A61: 39 | B61: Backhaul | C61: 16 Mbit/s microwave link | D61: E | E61: ='MCT Cost Trends'!AF48 -> -0.025 | F61: ='MCT Cost Trends'!AG48 -> -0.025 | G61: ='MCT Cost Trends'!AH48 -> -0.025 | H61: ='MCT Cost Trends'!AI48 -> -0.025 | I61: ='MCT Cost Trends'!AJ48 -> -0.025 | J61: ='MCT Cost Trends'!AK48 -> -0.025 | K61: ='MCT Cost Trends'!AL48 -> -0.01 | L61: ='MCT Cost Trends'!AM48 -> -0.01 | M61: ='MCT Cost Trends'!AN48 -> -0.01 | N61: ='MCT Cost Trends'!AO48 -> -0.01 | O61: ='MCT Cost Trends'!AP48 -> -0.01 | P61: ='MCT Cost Trends'!AQ48 -> -0.01 | Q61: ='MCT Cost Trends'!AR48 -> -0.01 | R61: ='MCT Cost Trends'!AS48 -> 0 | S61: ='MCT Cost Trends'!AT48 -> 0 | T61: ='MCT Cost Trends'!AU48 -> 0 | U61: ='MCT Cost Trends'!AV48 -> 0 | V61: ='MCT Cost Trends'!AW48 -> 0 | W61: ='MCT Cost Trends'!AX48 -> 0 | X61: ='MCT Cost Trends'!AY48 -> 0 | Y61: ='MCT Cost Trends'!AZ48 -> 0 | Z61: ='MCT Cost Trends'!BA48 -> 0 | AA61: ='MCT Cost Trends'!BB48 -> 0 | AB61: ='MCT Cost Trends'!BC48 -> 0 | AC61: ='MCT Cost Trends'!BD48 -> 0 | AD61: ='MCT Cost Trends'!BE48 -> 0
A62: 40 | B62: Backhaul | C62: 32 Mbit/s microwave link | D62: E | E62: ='MCT Cost Trends'!AF49 -> -0.025 | F62: ='MCT Cost Trends'!AG49 -> -0.025 | G62: ='MCT Cost Trends'!AH49 -> -0.025 | H62: ='MCT Cost Trends'!AI49 -> -0.025 | I62: ='MCT Cost Trends'!AJ49 -> -0.025 | J62: ='MCT Cost Trends'!AK49 -> -0.025 | K62: ='MCT Cost Trends'!AL49 -> -0.01 | L62: ='MCT Cost Trends'!AM49 -> -0.01 | M62: ='MCT Cost Trends'!AN49 -> -0.01 | N62: ='MCT Cost Trends'!AO49 -> -0.01 | O62: ='MCT Cost Trends'!AP49 -> -0.01 | P62: ='MCT Cost Trends'!AQ49 -> -0.01 | Q62: ='MCT Cost Trends'!AR49 -> -0.01 | R62: ='MCT Cost Trends'!AS49 -> 0 | S62: ='MCT Cost Trends'!AT49 -> 0 | T62: ='MCT Cost Trends'!AU49 -> 0 | U62: ='MCT Cost Trends'!AV49 -> 0 | V62: ='MCT Cost Trends'!AW49 -> 0 | W62: ='MCT Cost Trends'!AX49 -> 0 | X62: ='MCT Cost Trends'!AY49 -> 0 | Y62: ='MCT Cost Trends'!AZ49 -> 0 | Z62: ='MCT Cost Trends'!BA49 -> 0 | AA62: ='MCT Cost Trends'!BB49 -> 0 | AB62: ='MCT Cost Trends'!BC49 -> 0 | AC62: ='MCT Cost Trends'!BD49 -> 0 | AD62: ='MCT Cost Trends'!BE49 -> 0
A63: 41 | B63: spare | C63: spare
A64: 42 | B64: 3G cell site equipment | C64: Macrocell equipment
A65: 43 | B65: 3G cell site equipment | C65: Microcell equipment
A66: 44 | B66: 3G cell site equipment | C66: Picocell equipment
A67: 45 | B67: 3G site upgrade | C67: Macro site upgrade
A68: 46 | B68: 3G site upgrade | C68: Micro site upgrade
A69: 47 | B69: 3G site upgrade | C69: Pico site upgrade
A70: 48 | B70: 3G cell site equipment | C70: Macrocell: additional carriers
A71: 49 | B71: 3G cell site equipment | C71: Microcell: additional carriers
A72: 50 | B72: 3G cell site equipment | C72: Picocell: additional carriers
A73: 51 | B73: 3G cell site equipment | C73: Macrocell: additional sectors
A74: 52 | B74: 3G cell site equipment | C74: Microcell: additional sectors
A75: 53 | B75: 3G cell site equipment | C75: Picocell: additional sectors
A76: 54 | B76: 3G RNCs | C76: RNC: base unit
A77: 55 | B77: 3G RNCs | C77: RNC: NodeB-facing port increment
A78: 56 | B78: 3G RNCs | C78: RNC: Core-facing port increment
A79: 57 | B79: 2G/3G layered core nodes | C79: MSC server
A80: 58 | B80: 2G/3G layered core nodes | C80: Media gateway
A81: 59 | B81: 3G MSCs | C81: Interconnect interface
A82: 60 | B82: 3G MSCs | C82: Switching Support Plant
A83: 61 | B83: 3G MSC ports - RNC-facing | C83: MSC: BSC-facing port increment
A84: 62 | B84: 3G MSC ports - Interconnect facing | C84: MSC: interconnect-facing port increment
A85: 63 | B85: 3G MSC ports - Interswitch facing | C85: MSC: switch-facing port increment
A86: 64 | B86: 3G NMS | C86: Network management
A87: 65 | B87: 3G GSN | C87: 3G SGSN
A88: 66 | B88: 3G GSN | C88: 3G GGSN
A89: 67 | B89: spare | C89: spare
A90: 68 | B90: Backhaul | C90: Base unit | D90: E | E90: ='MCT Cost Trends'!AF77 -> -0.025 | F90: ='MCT Cost Trends'!AG77 -> -0.05 | G90: ='MCT Cost Trends'!AH77 -> -0.05 | H90: ='MCT Cost Trends'!AI77 -> -0.05 | I90: ='MCT Cost Trends'!AJ77 -> -0.05 | J90: ='MCT Cost Trends'!AK77 -> -0.03 | K90: ='MCT Cost Trends'!AL77 -> -0.01 | L90: ='MCT Cost Trends'!AM77 -> -0.01 | M90: ='MCT Cost Trends'!AN77 -> -0.01 | N90: ='MCT Cost Trends'!AO77 -> -0.01 | O90: ='MCT Cost Trends'!AP77 -> -0.01 | P90: ='MCT Cost Trends'!AQ77 -> -0.01 | Q90: ='MCT Cost Trends'!AR77 -> -0.01 | R90: ='MCT Cost Trends'!AS77 -> 0 | S90: ='MCT Cost Trends'!AT77 -> 0 | T90: ='MCT Cost Trends'!AU77 -> 0 | U90: ='MCT Cost Trends'!AV77 -> 0 | V90: ='MCT Cost Trends'!AW77 -> 0 | W90: ='MCT Cost Trends'!AX77 -> 0 | X90: ='MCT Cost Trends'!AY77 -> 0 | Y90: ='MCT Cost Trends'!AZ77 -> 0 | Z90: ='MCT Cost Trends'!BA77 -> 0 | AA90: ='MCT Cost Trends'!BB77 -> 0 | AB90: ='MCT Cost Trends'!BC77 -> 0 | AC90: ='MCT Cost Trends'!BD77 -> 0 | AD90: ='MCT Cost Trends'!BE77 -> 0 | AE90: ='MCT Cost Trends'!BF80 -> 0
A91: 69 | B91: Remote switching sites | C91: Remote switching sites (BSC and RNC)
A92: 70 | B92: 3G Licence fees | C92: UMTS licence fee in 2004/05
A93: 71 | B93: 3G Licence fees | C93: UMTS licence fee in 2012/13
A94: 72 | B94: spare | C94: spare
A95: 73 | B95: spare | C95: spare
A96: 74 | B96: Cell sites | C96: Transformation sites
A97: 75 | B97: spare | C97: spare
A98: 76 | B98: HSPA 3.6 upgrade | C98: HSPA 3.6 site upgrade
A99: 77 | B99: HSPA 7.2 upgrade | C99: HSPA 7.2 site upgrade
A100: 78 | B100: HSPA 14.4 upgrade | C100: HSPA 14.4 site upgrade
A101: 79 | B101: HSPA 21 upgrade | C101: HSPA 21 site upgrade
A102: 80 | B102: HSPA 42 upgrade | C102: HSPA 42 site upgrade
A103: 81 | B103: HSPA 84 upgrade | C103: HSPA 84 site upgrade
A104: 82 | B104: 3G cell site equipment | C104: HSPA site upgrade spare
A105: 83 | B105: Backhaul | C105: Leased Ethernet (100Mbit/s)
A106: 84 | B106: Backhaul | C106: Leased Ethernet (300Mbit/s)
A107: 85 | B107: Backhaul | C107: Owned microwave (100Mbit/s) | D107: E | E107: ='MCT Cost Trends'!AF94 -> -0.025 | F107: ='MCT Cost Trends'!AG94 -> -0.025 | G107: ='MCT Cost Trends'!AH94 -> -0.025 | H107: ='MCT Cost Trends'!AI94 -> -0.025 | I107: ='MCT Cost Trends'!AJ94 -> -0.025 | J107: ='MCT Cost Trends'!AK94 -> -0.025 | K107: ='MCT Cost Trends'!AL94 -> -0.01 | L107: ='MCT Cost Trends'!AM94 -> -0.01 | M107: ='MCT Cost Trends'!AN94 -> -0.01 | N107: ='MCT Cost Trends'!AO94 -> -0.01 | O107: ='MCT Cost Trends'!AP94 -> -0.01 | P107: ='MCT Cost Trends'!AQ94 -> -0.01 | Q107: ='MCT Cost Trends'!AR94 -> -0.01 | R107: ='MCT Cost Trends'!AS94 -> 0 | S107: ='MCT Cost Trends'!AT94 -> 0 | T107: ='MCT Cost Trends'!AU94 -> 0 | U107: ='MCT Cost Trends'!AV94 -> 0 | V107: ='MCT Cost Trends'!AW94 -> 0 | W107: ='MCT Cost Trends'!AX94 -> 0 | X107: ='MCT Cost Trends'!AY94 -> 0 | Y107: ='MCT Cost Trends'!AZ94 -> 0 | Z107: ='MCT Cost Trends'!BA94 -> 0 | AA107: ='MCT Cost Trends'!BB94 -> 0 | AB107: ='MCT Cost Trends'!BC94 -> 0 | AC107: ='MCT Cost Trends'!BD94 -> 0 | AD107: ='MCT Cost Trends'!BE94 -> 0
A108: 86 | B108: Backhaul | C108: Owned microwave (300Mbit/s) | D108: E | E108: ='MCT Cost Trends'!AF95 -> -0.025 | F108: ='MCT Cost Trends'!AG95 -> -0.025 | G108: ='MCT Cost Trends'!AH95 -> -0.025 | H108: ='MCT Cost Trends'!AI95 -> -0.025 | I108: ='MCT Cost Trends'!AJ95 -> -0.025 | J108: ='MCT Cost Trends'!AK95 -> -0.025 | K108: ='MCT Cost Trends'!AL95 -> -0.01 | L108: ='MCT Cost Trends'!AM95 -> -0.01 | M108: ='MCT Cost Trends'!AN95 -> -0.01 | N108: ='MCT Cost Trends'!AO95 -> -0.01 | O108: ='MCT Cost Trends'!AP95 -> -0.01 | P108: ='MCT Cost Trends'!AQ95 -> -0.01 | Q108: ='MCT Cost Trends'!AR95 -> -0.01 | R108: ='MCT Cost Trends'!AS95 -> 0 | S108: ='MCT Cost Trends'!AT95 -> 0 | T108: ='MCT Cost Trends'!AU95 -> 0 | U108: ='MCT Cost Trends'!AV95 -> 0 | V108: ='MCT Cost Trends'!AW95 -> 0 | W108: ='MCT Cost Trends'!AX95 -> 0 | X108: ='MCT Cost Trends'!AY95 -> 0 | Y108: ='MCT Cost Trends'!AZ95 -> 0 | Z108: ='MCT Cost Trends'!BA95 -> 0 | AA108: ='MCT Cost Trends'!BB95 -> 0 | AB108: ='MCT Cost Trends'!BC95 -> 0 | AC108: ='MCT Cost Trends'!BD95 -> 0 | AD108: ='MCT Cost Trends'!BE95 -> 0
A109: 87 | B109: Cell sites | C109: Shared sites | D109: S | E109: ='MCT Cost Trends'!AF96 -> 0.02 | F109: ='MCT Cost Trends'!AG96 -> 0.005 | G109: ='MCT Cost Trends'!AH96 -> 0.005 | H109: ='MCT Cost Trends'!AI96 -> 0.005 | I109: ='MCT Cost Trends'!AJ96 -> 0 | J109: ='MCT Cost Trends'!AK96 -> 0 | K109: ='MCT Cost Trends'!AL96 -> 0 | L109: ='MCT Cost Trends'!AM96 -> 0 | M109: ='MCT Cost Trends'!AN96 -> 0 | N109: ='MCT Cost Trends'!AO96 -> 0 | O109: ='MCT Cost Trends'!AP96 -> 0 | P109: ='MCT Cost Trends'!AQ96 -> 0 | Q109: ='MCT Cost Trends'!AR96 -> 0 | R109: ='MCT Cost Trends'!AS96 -> 0 | S109: ='MCT Cost Trends'!AT96 -> 0 | T109: ='MCT Cost Trends'!AU96 -> 0 | U109: ='MCT Cost Trends'!AV96 -> 0 | V109: ='MCT Cost Trends'!AW96 -> 0 | W109: ='MCT Cost Trends'!AX96 -> 0 | X109: ='MCT Cost Trends'!AY96 -> 0 | Y109: ='MCT Cost Trends'!AZ96 -> 0 | Z109: ='MCT Cost Trends'!BA96 -> 0 | AA109: ='MCT Cost Trends'!BB96 -> 0 | AB109: ='MCT Cost Trends'!BC96 -> 0 | AC109: ='MCT Cost Trends'!BD96 -> 0 | AD109: ='MCT Cost Trends'!BE96 -> 0
A110: 88 | B110: spare | C110: spare
A111: 89 | B111: Backhaul | C111: Ethernet microwave link (defunct)
A112: 90 | B112: spare | C112: spare
A113: 91 | B113: VMS | C113: VMS Platform
A114: 92 | B114: Backhaul | C114: High-speed backhaul hub | D114: E | E114: ='MCT Cost Trends'!AF101 -> -0.02 | F114: ='MCT Cost Trends'!AG101 -> -0.02 | G114: ='MCT Cost Trends'!AH101 -> -0.02 | H114: ='MCT Cost Trends'!AI101 -> -0.02 | I114: ='MCT Cost Trends'!AJ101 -> -0.02 | J114: ='MCT Cost Trends'!AK101 -> -0.02 | K114: ='MCT Cost Trends'!AL101 -> -0.02 | L114: ='MCT Cost Trends'!AM101 -> -0.02 | M114: ='MCT Cost Trends'!AN101 -> -0.02 | N114: ='MCT Cost Trends'!AO101 -> -0.02 | O114: ='MCT Cost Trends'!AP101 -> -0.02 | P114: ='MCT Cost Trends'!AQ101 -> -0.02 | Q114: ='MCT Cost Trends'!AR101 -> -0.02 | R114: ='MCT Cost Trends'!AS101 -> 0 | S114: ='MCT Cost Trends'!AT101 -> 0 | T114: ='MCT Cost Trends'!AU101 -> 0 | U114: ='MCT Cost Trends'!AV101 -> 0 | V114: ='MCT Cost Trends'!AW101 -> 0 | W114: ='MCT Cost Trends'!AX101 -> 0 | X114: ='MCT Cost Trends'!AY101 -> 0 | Y114: ='MCT Cost Trends'!AZ101 -> 0 | Z114: ='MCT Cost Trends'!BA101 -> 0 | AA114: ='MCT Cost Trends'!BB101 -> 0 | AB114: ='MCT Cost Trends'!BC101 -> 0 | AC114: ='MCT Cost Trends'!BD101 -> 0 | AD114: ='MCT Cost Trends'!BE101 -> 0
A115: 93 | B115: Backhaul | C115: High-speed leased backhaul link (1000Mbit/s) | D115: E | E115: ='MCT Cost Trends'!AF102 -> -0.02 | F115: ='MCT Cost Trends'!AG102 -> -0.02 | G115: ='MCT Cost Trends'!AH102 -> -0.02 | H115: ='MCT Cost Trends'!AI102 -> -0.02 | I115: ='MCT Cost Trends'!AJ102 -> -0.02 | J115: ='MCT Cost Trends'!AK102 -> -0.02 | K115: ='MCT Cost Trends'!AL102 -> -0.02 | L115: ='MCT Cost Trends'!AM102 -> -0.02 | M115: ='MCT Cost Trends'!AN102 -> -0.02 | N115: ='MCT Cost Trends'!AO102 -> -0.02 | O115: ='MCT Cost Trends'!AP102 -> -0.02 | P115: ='MCT Cost Trends'!AQ102 -> -0.02 | Q115: ='MCT Cost Trends'!AR102 -> -0.02 | R115: ='MCT Cost Trends'!AS102 -> 0 | S115: ='MCT Cost Trends'!AT102 -> 0 | T115: ='MCT Cost Trends'!AU102 -> 0 | U115: ='MCT Cost Trends'!AV102 -> 0 | V115: ='MCT Cost Trends'!AW102 -> 0 | W115: ='MCT Cost Trends'!AX102 -> 0 | X115: ='MCT Cost Trends'!AY102 -> 0 | Y115: ='MCT Cost Trends'!AZ102 -> 0 | Z115: ='MCT Cost Trends'!BA102 -> 0 | AA115: ='MCT Cost Trends'!BB102 -> 0 | AB115: ='MCT Cost Trends'!BC102 -> 0 | AC115: ='MCT Cost Trends'!BD102 -> 0 | AD115: ='MCT Cost Trends'!BE102 -> 0
A116: 94 | B116: spare | C116: spare
A117: 95 | B117: spare | C117: spare
A118: 96 | B118: spare | C118: spare
A119: 97 | B119: Main switch sites (allocated to voice) | C119: Buildings (switch building preparation) - allocated to voice services
A120: 98 | B120: Main switch sites (allocated to voice) | C120: Site lease - allocated to voice services
A121: 99 | B121: Main switch sites (allocated to data) | C121: Buildings (switch building preparation) - allocated to data services
A122: 100 | B122: Main switch sites (allocated to data) | C122: Site lease - allocated to data services
A123: 101 | B123: 4G cell site equipment | C123: Macro eNodeB
A124: 102 | B124: 4G cell site equipment | C124: Micro eNodeB
A125: 103 | B125: 4G cell site equipment | C125: Pico eNodeB
A126: 104 | B126: 4G cell site equipment | C126: 4G Macrocell: additional carriers
A127: 105 | B127: 4G cell site equipment | C127: 4G Microcell: additional carriers
A128: 106 | B128: 4G cell site equipment | C128: 4G Picocell: additional carriers
A129: 107 | B129: 4G site upgrade | C129: Macro site upgrade
A130: 108 | B130: 4G site upgrade | C130: Micro site upgrade
A131: 109 | B131: 4G site upgrade | C131: Pico site upgrade
A132: 110 | B132: Backhaul | C132: Leased Ethernet (500Mbit/s)
A133: 111 | B133: Backhaul | C133: Owned microwave (500Mbit/s) | D133: E | E133: ='MCT Cost Trends'!AF120 -> -0.025 | F133: ='MCT Cost Trends'!AG120 -> -0.025 | G133: ='MCT Cost Trends'!AH120 -> -0.025 | H133: ='MCT Cost Trends'!AI120 -> -0.025 | I133: ='MCT Cost Trends'!AJ120 -> -0.025 | J133: ='MCT Cost Trends'!AK120 -> -0.025 | K133: ='MCT Cost Trends'!AL120 -> -0.01 | L133: ='MCT Cost Trends'!AM120 -> -0.01 | M133: ='MCT Cost Trends'!AN120 -> -0.01 | N133: ='MCT Cost Trends'!AO120 -> -0.01 | O133: ='MCT Cost Trends'!AP120 -> -0.01 | P133: ='MCT Cost Trends'!AQ120 -> -0.01 | Q133: ='MCT Cost Trends'!AR120 -> -0.01 | R133: ='MCT Cost Trends'!AS120 -> 0 | S133: ='MCT Cost Trends'!AT120 -> 0 | T133: ='MCT Cost Trends'!AU120 -> 0 | U133: ='MCT Cost Trends'!AV120 -> 0 | V133: ='MCT Cost Trends'!AW120 -> 0 | W133: ='MCT Cost Trends'!AX120 -> 0 | X133: ='MCT Cost Trends'!AY120 -> 0 | Y133: ='MCT Cost Trends'!AZ120 -> 0 | Z133: ='MCT Cost Trends'!BA120 -> 0 | AA133: ='MCT Cost Trends'!BB120 -> 0 | AB133: ='MCT Cost Trends'!BC120 -> 0 | AC133: ='MCT Cost Trends'!BD120 -> 0 | AD133: ='MCT Cost Trends'!BE120 -> 0
A134: 112 | B134: Cell sites | C134: Infrastructure sharing macro site upgrade
A135: 113 | B135: Cell sites | C135: Infrastructure sharing micro site upgrade
A136: 114 | B136: Cell sites | C136: Infrastructure sharing pico site upgrade
A137: 115 | B137: spare | C137: spare
A138: 116 | B138: spare | C138: spare
A139: 117 | B139: spare | C139: spare
A140: 118 | B140: spare | C140: spare
A141: 119 | B141: spare | C141: spare
A142: 120 | B142: spare | C142: spare
A143: 121 | B143: spare | C143: spare
A144: 122 | B144: spare | C144: spare
A145: 123 | B145: spare | C145: spare
A146: 124 | B146: spare | C146: spare
A147: 125 | B147: spare | C147: spare
A148: 126 | B148: spare | C148: spare
A149: 127 | B149: spare | C149: spare
A150: 128 | B150: spare | C150: spare
A151: 129 | B151: Core transmission | C151: Next-generation backbone links
A152: 130 | B152: Core transmission | C152: Next-generation backbone km
A153: 131 | B153: 4G core network | C153: MME
A154: 132 | B154: 4G core network | C154: Serving Gateway (SGW)
A155: 133 | B155: 4G core network | C155: MME software
A156: 134 | B156: 4G core network | C156: Data traffic manager
A157: 135 | B157: VoLTE network | C157: Call server hardware
A158: 136 | B158: VoLTE network | C158: Call server software
A159: 137 | B159: VoLTE network | C159: TAS
A160: 138 | B160: VoLTE network | C160: SBC hardware
A161: 139 | B161: VoLTE network | C161: SBC software
A162: 140 | B162: VoLTE network | C162: VoLTE upgrades to HLR
A163: 141 | B163: VoLTE network | C163: VoLTE upgrades to MSC-S
A164: 142 | B164: VoLTE network | C164: VoLTE upgrades to NMS
A165: 143 | B165: 4G core network | C165: NMS
A166: 144 | B166: HLRs | C166: HSS
A167: 145 | B167: 4G core network | C167: spare
A168: 146 | B168: 4G core network | C168: spare
A169: 147 | B169: 4G core network | C169: spare
A170: 148 | B170: 4G core network | C170: spare
A171: 149 | B171: 4G Licence fee | C171: 4G spectrum annual payments
A172: 150 | B172: 4G Licence fee | C172: 4G auction payments

Sheet Cost calculations
A1: Cost calculations
B4: OPEX percentages
B6: Installation cost | C6: ='Spectrum cost inputs'!D16 -> 0.5 | D6: per_installation_cost | E6: Of annualised capex
B7: Infrastructure cost | C7: ='Spectrum cost inputs'!D17 -> 0.5 | D7: per_infrastructure_cost | E7: Of annualised capex
B8: Maintenance cost | C8: ='Spectrum cost inputs'!D18 -> 0.12 | D8: per_maintenance_cost | E8: Of capex
B10: Annualised equipment cost (exc, installation) | C10: =-PMT('Discounted cost_7years'!finance_rate,'Discounted cost_7years'!equipment_lifetime,'Discounted cost_7years'!equipment_capital,,1) -> 1173.705641
B12: Cost for additional hop above 20 GHz
C14: Site cost - construction | D14: Site cost - rental | E14: Equipment cost - capital | F14: Equipment cost - Install, infrastructure and maintenance | G14: Total | H14: Equipment lifetime | I14: New equipment purchases required in model | J14: Structures lifetime | K14: New structure purchases required in model
C15: CAPEX | D15: OPEX | E15: CAPEX | F15: OPEX | G15: OPEX | I15: ='Discounted cost_7years'!time_horizon -> 20 | K15: ='Discounted cost_7years'!time_horizon -> 20
B16: Rural | C16: =sitecost_rural -> 100000 | D16: ='Spectrum cost inputs'!D13/'Spectrum cost inputs'!D5 -> 333.3333333 | E16: =Equipment -> 7000 | F16: =per_installation_cost*$C$10+per_infrastructure_cost*+$C$10+per_maintenance_cost*'Cost calculations'!E16 -> 2013.705641 | G16: =SUMIF($C$15:$F$15, $G$15,C16:F16) -> 2347.038974 | H16: ='Discounted cost_7years'!equipment_lifetime -> 7 | I16: =ROUNDUP(I$15/H16, 0) -> 3 | J16: ='Discounted cost_7years'!structure_lifetime -> 20 | K16: =ROUNDUP(K$15/J16, 0) -> 1
B17: Urban | C17: =sitecost_urban -> 10000 | D17: ='Spectrum cost inputs'!D14/'Spectrum cost inputs'!D6 -> 5000 | E17: =Equipment -> 7000 | F17: =per_installation_cost*$C$10+per_infrastructure_cost*+$C$10+per_maintenance_cost*'Cost calculations'!E17 -> 2013.705641 | G17: =SUMIF($C$15:$F$15, $G$15,C17:F17) -> 7013.705641 | H17: ='Discounted cost_7years'!equipment_lifetime -> 7 | I17: =ROUNDUP(I$15/H17, 0) -> 3 | J17: ='Discounted cost_7years'!structure_lifetime -> 20 | K17: =ROUNDUP(K$15/J17, 0) -> 1
B21: Apply cost trend to site costs
C22: CAPEX | D22: OPEX | E22: CAPEX | F22: OPEX | G22: OPEX | I22: ='Discounted cost_7years'!time_horizon -> 20 | K22: ='Discounted cost_7years'!time_horizon -> 20
B23: Rural | C23: =C16*'Cost Trend calc'!$L$16 -> 113398.7507 | D23: =D16*'Cost Trend calc'!$L$16 -> 377.9958355 | E23: =Equipment -> 7000 | F23: =per_installation_cost*$C$10+per_infrastructure_cost*+$C$10+per_maintenance_cost*'Cost calculations'!E23 -> 2013.705641 | G23: =SUMIF($C$22:$F$22, $G$22,C23:F23) -> 2391.701476 | H23: ='Discounted cost_7years'!equipment_lifetime -> 7 | I23: =ROUNDUP(I$15/H23, 0) -> 3 | J23: ='Discounted cost_7years'!structure_lifetime -> 20 | K23: =ROUNDUP(K$15/J23, 0) -> 1
B24: Urban | C24: =C17*'Cost Trend calc'!$L$16 -> 11339.87507 | D24: =D17*'Cost Trend calc'!$L$16 -> 5669.937533 | E24: =Equipment -> 7000 | F24: =per_installation_cost*$C$10+per_infrastructure_cost*+$C$10+per_maintenance_cost*'Cost calculations'!E24 -> 2013.705641 | G24: =SUMIF($C$22:$F$22, $G$22,C24:F24) -> 7683.643173 | H24: ='Discounted cost_7years'!equipment_lifetime -> 7 | I24: =ROUNDUP(I$15/H24, 0) -> 3 | J24: ='Discounted cost_7years'!structure_lifetime -> 20 | K24: =ROUNDUP(K$15/J24, 0) -> 1
B25: Note that opex costs do not change for the 15 year equipment lifetime scenario - They are always calculated from the annualised cost assuming a 7 year lifetime
B27: Exclude equipment installation cost from opex as included in capex
B28: Rural | C28: =C16*'Cost Trend calc'!$L$16 -> 113398.7507 | D28: =D16*'Cost Trend calc'!$L$16 -> 377.9958355 | E28: =Equipment -> 7000 | F28: =+per_infrastructure_cost*+$C$10+per_maintenance_cost*'Cost calculations'!E28 -> 1426.85282 | G28: =SUMIF($C$22:$F$22, $G$22,C28:F28) -> 1804.848656 | H28: ='Discounted cost_7years'!equipment_lifetime -> 7 | I28: =ROUNDUP(I$15/H28, 0) -> 3 | J28: ='Discounted cost_7years'!structure_lifetime -> 20 | K28: =ROUNDUP(K$15/J28, 0) -> 1
B29: Urban | C29: =C17*'Cost Trend calc'!$L$16 -> 11339.87507 | D29: =D17*'Cost Trend calc'!$L$16 -> 5669.937533 | E29: =Equipment -> 7000 | F29: =+per_infrastructure_cost*+$C$10+per_maintenance_cost*'Cost calculations'!E29 -> 1426.85282 | G29: =SUMIF($C$22:$F$22, $G$22,C29:F29) -> 7096.790353 | H29: ='Discounted cost_7years'!equipment_lifetime -> 7 | I29: =ROUNDUP(I$15/H29, 0) -> 3 | J29: ='Discounted cost_7years'!structure_lifetime -> 20 | K29: =ROUNDUP(K$15/J29, 0) -> 1
B34: Cost of replacing equipment
C35: Site cost - construction | D35: Site cost - rental | E35: Equipment cost - capital | F35: Installation cost (% of equipment cost | G35: Total capex
C36: CAPEX | D36: OPEX | E36: CAPEX | F36: CAPEX | G36: CAPEX
E37: =Equipment -> 7000 | F37: =per_installation_cost -> 0.5 | G37: =E37+F37*E37 -> 10500

Sheet Discounted cost_7years
A1: Discounted Cost (7 year lifetime)
B3: Time horizon (years) | C3: 20
B5: Finance rate | C5: 0.057 | D5: finance_rate | F5: Real pre-tax WACC MCT 2021-2026 Statement | I5: https://www.ofcom.org.uk/__data/assets/pdf_file/0029/216794/statement-2021-26-wholesale-voice-markets-review.pdf
B6: Discount rate | C6: 0.035 | D6: discount_rate | F6: STPR - HMT Green Book 2020 | I6: https://assets.publishing.service.gov.uk/government/uploads/system/uploads/attachment_data/file/938046/The_Green_Book_2020.pdf
B8: Capital cost for equipment | C8: =Equipment -> 7000 | D8: equipment_capital
B9: Capital cost (including installation) | C9: ='Cost calculations'!G37 -> 10500 | D9: equipment_capital_ins
B10: Capital cost - rural site | C10: ='Cost calculations'!C23 -> 113398.7507 | D10: rural_site_capital
B11: Capital cost - urban site | C11: ='Cost calculations'!C24 -> 11339.87507 | D11: urban_site_capital
B14: Installation (% of capex) | C14: =per_installation_cost -> 0.5
B17: Lifetime of new equipment | C17: ='Spectrum cost inputs'!D20 -> 7 | D17: equipment_lifetime
B18: Lifetime of structures | C18: ='Spectrum cost inputs'!D21 -> 20 | D18: structure_lifetime
C20: Years
C21: 1 | D21: 2 | E21: 3 | F21: 4 | G21: 5 | H21: 6 | I21: 7 | J21: 8 | K21: 9 | L21: 10 | M21: 11 | N21: 12 | O21: 13 | P21: 14 | Q21: 15 | R21: 16 | S21: 17 | T21: 18 | U21: 19 | V21: 20
B22: Discount factor (WACC) | C22: =1/(1+$C5)^(C$21) -> 0.9460737938 | D22: 0.8950556232 | E22: 0.8467886691 | F22: 0.8011245687 | G22: 0.75792296 | H22: 0.7170510501 | I22: 0.6783832073 | J22: 0.6418005745 | K22: 0.6071907044 | L22: 0.5744472132 | M22: 0.5434694543 | N22: 0.5141622085 | O22: 0.4864353912 | P22: 0.4602037759 | Q22: 0.4353867322 | R22: 0.4119079775 | S22: 0.3896953429 | T22: 0.3686805515 | U22: 0.348799008 | V22: 0.3299896008
B23: Discount factor (STPR) | C23: =1/(1+$C6)^(C$21) -> 0.9661835749 | D23: 0.9335107004 | E23: 0.9019427057 | F23: 0.8714422277 | G23: 0.8419731669 | H23: 0.8135006443 | I23: 0.7859909607 | J23: 0.7594115562 | K23: 0.7337309722 | L23: 0.7089188137 | M23: 0.6849457137 | N23: 0.6617832983 | O23: 0.6394041529 | P23: 0.6177817903 | Q23: 0.5968906186 | R23: 0.5767059117 | S23: 0.5572037794 | T23: 0.5383611396 | U23: 0.5201556904 | V23: 0.5025658844
B24: New equipment required | C24: Yes | D24: No | E24: No | F24: No | G24: No | H24: No | I24: No | J24: Yes | K24: No | L24: No | M24: No | N24: No | O24: No | P24: No | Q24: Yes | R24: No | S24: No | T24: No | U24: No | V24: No
B25: New structures required | C25: Yes | D25: No | E25: No | F25: No | G25: No | H25: No | I25: No | J25: No | K25: No | L25: No | M25: No | N25: No | O25: No | P25: No | Q25: No | R25: No | S25: No | T25: No | U25: No | V25: No
B29: Cost of retiring equipment early
B30: Estimating the capital cost that firms need to write off
B31: Including the installation cost as part of capex for this calculation
C33: Year
C34: 1 | D34: 2 | E34: 3 | F34: 4 | G34: 5 | H34: 6 | I34: 7 | J34: 8 | K34: 9 | L34: 10 | M34: 11 | N34: 12 | O34: 13 | P34: 14 | Q34: 15 | R34: 16 | S34: 17 | T34: 18 | U34: 19 | V34: 20
B35: Annualised capital cost
B36: New | C36: =-PMT(finance_rate,equipment_lifetime,equipment_capital_ins,,1) -> 1760.558461 | D36: 1760.558461 | E36: 1760.558461 | F36: 1760.558461 | G36: 1760.558461 | H36: 1760.558461 | I36: 1760.558461
B38: Cost (Straight line depreciation)
A40: Remaining lifetime | B40: Depreciation
A41: =equipment_lifetime-LEFT(B41,2) -> 7 | B41: 0 year old | C41: =IF(C$34<=$A41,equipment_capital_ins/equipment_lifetime,0) -> 1500 | D41: 1500 | E41: 1500 | F41: 1500 | G41: 1500 | H41: 1500 | I41: 1500
A42: 6 | B42: 1 year old | C42: 1500 | D42: 1500 | E42: 1500 | F42: 1500 | G42: 1500 | H42: 1500 | I42: 0
A43: 5 | B43: 2 year old | C43: 1500 | D43: 1500 | E43: 1500 | F43: 1500 | G43: 1500 | H43: 0 | I43: 0
A44: 4 | B44: 3 year old | C44: 1500 | D44: 1500 | E44: 1500 | F44: 1500 | G44: 0 | H44: 0 | I44: 0
A45: 3 | B45: 4 year old | C45: 1500 | D45: 1500 | E45: 1500 | F45: 0 | G45: 0 | H45: 0 | I45: 0
A46: 2 | B46: 5 year old | C46: 1500 | D46: 1500 | E46: 0 | F46: 0 | G46: 0 | H46: 0 | I46: 0
A47: 1 | B47: 6 year old | C47: 1500 | D47: 0 | E47: 0 | F47: 0 | G47: 0 | H47: 0 | I47: 0
A48: 0 | B48: 7 year old | C48: 0 | D48: 0 | E48: 0 | F48: 0 | G48: 0 | H48: 0 | I48: 0
B50: Financing cost
B51: 0 year old | C51: =SUM(C41:$I41)*finance_rate -> 598.5 | D51: =SUM(D41:$I41)*finance_rate -> 513 | E51: =SUM(E41:$I41)*finance_rate -> 427.5 | F51: =SUM(F41:$I41)*finance_rate -> 342 | G51: =SUM(G41:$I41)*finance_rate -> 256.5 | H51: =SUM(H41:$I41)*finance_rate -> 171 | I51: =SUM(I41:$I41)*finance_rate -> 85.5
B52: 1 year old | C52: =SUM(C42:$I42)*finance_rate -> 513 | D52: =SUM(D42:$I42)*finance_rate -> 427.5 | E52: =SUM(E42:$I42)*finance_rate -> 342 | F52: =SUM(F42:$I42)*finance_rate -> 256.5 | G52: =SUM(G42:$I42)*finance_rate -> 171 | H52: =SUM(H42:$I42)*finance_rate -> 85.5 | I52: =SUM(I42:$I42)*finance_rate -> 0
B53: 2 year old | C53: =SUM(C43:$I43)*finance_rate -> 427.5 | D53: =SUM(D43:$I43)*finance_rate -> 342 | E53: =SUM(E43:$I43)*finance_rate -> 256.5 | F53: =SUM(F43:$I43)*finance_rate -> 171 | G53: =SUM(G43:$I43)*finance_rate -> 85.5 | H53: =SUM(H43:$I43)*finance_rate -> 0 | I53: =SUM(I43:$I43)*finance_rate -> 0
B54: 3 year old | C54: =SUM(C44:$I44)*finance_rate -> 342 | D54: =SUM(D44:$I44)*finance_rate -> 256.5 | E54: =SUM(E44:$I44)*finance_rate -> 171 | F54: =SUM(F44:$I44)*finance_rate -> 85.5 | G54: =SUM(G44:$I44)*finance_rate -> 0 | H54: =SUM(H44:$I44)*finance_rate -> 0 | I54: =SUM(I44:$I44)*finance_rate -> 0
B55: 4 year old | C55: =SUM(C45:$I45)*finance_rate -> 256.5 | D55: =SUM(D45:$I45)*finance_rate -> 171 | E55: =SUM(E45:$I45)*finance_rate -> 85.5 | F55: =SUM(F45:$I45)*finance_rate -> 0 | G55: =SUM(G45:$I45)*finance_rate -> 0 | H55: =SUM(H45:$I45)*finance_rate -> 0 | I55: =SUM(I45:$I45)*finance_rate -> 0
B56: 5 year old | C56: =SUM(C46:$I46)*finance_rate -> 171 | D56: =SUM(D46:$I46)*finance_rate -> 85.5 | E56: =SUM(E46:$I46)*finance_rate -> 0 | F56: =SUM(F46:$I46)*finance_rate -> 0 | G56: =SUM(G46:$I46)*finance_rate -> 0 | H56: =SUM(H46:$I46)*finance_rate -> 0 | I56: =SUM(I46:$I46)*finance_rate -> 0
B57: 6 year old | C57: =SUM(C47:$I47)*finance_rate -> 85.5 | D57: =SUM(D47:$I47)*finance_rate -> 0 | E57: =SUM(E47:$I47)*finance_rate -> 0 | F57: =SUM(F47:$I47)*finance_rate -> 0 | G57: =SUM(G47:$I47)*finance_rate -> 0 | H57: =SUM(H47:$I47)*finance_rate -> 0 | I57: =SUM(I47:$I47)*finance_rate -> 0
B58: 7 year old | C58: =SUM(C48:$I48)*finance_rate -> 0 | D58: =SUM(D48:$I48)*finance_rate -> 0 | E58: =SUM(E48:$I48)*finance_rate -> 0 | F58: =SUM(F48:$I48)*finance_rate -> 0 | G58: =SUM(G48:$I48)*finance_rate -> 0 | H58: =SUM(H48:$I48)*finance_rate -> 0 | I58: =SUM(I48:$I48)*finance_rate -> 0
B60: Depreciaton + financing cost
B61: 0 year old | C61: =C41+C51 -> 2098.5 | D61: 2013 | E61: 1927.5 | F61: 1842 | G61: 1756.5 | H61: 1671 | I61: 1585.5
B62: 1 year old | C62: 2013 | D62: 1927.5 | E62: 1842 | F62: 1756.5 | G62: 1671 | H62: 1585.5 | I62: 0
B63: 2 year old | C63: 1927.5 | D63: 1842 | E63: 1756.5 | F63: 1671 | G63: 1585.5 | H63: 0 | I63: 0
B64: 3 year old | C64: 1842 | D64: 1756.5 | E64: 1671 | F64: 1585.5 | G64: 0 | H64: 0 | I64: 0
B65: 4 year old | C65: 1756.5 | D65: 1671 | E65: 1585.5 | F65: 0 | G65: 0 | H65: 0 | I65: 0
B66: 5 year old | C66: 1671 | D66: 1585.5 | E66: 0 | F66: 0 | G66: 0 | H66: 0 | I66: 0
B67: 6 year old | C67: 1585.5 | D67: 0 | E67: 0 | F67: 0 | G67: 0 | H67: 0 | I67: 0
B68: 7 year old | C68: 0 | D68: 0 | E68: 0 | F68: 0 | G68: 0 | H68: 0 | I68: 0 | W68: No revocation period | X68: 5 year revocation
B70: Discounted cost
B71: 0 year old | C71: =C61*INDEX($C$23:$V$23, 1, MATCH(C$34,$C$21:$V$21,0)) -> 2027.536232 | D71: =D61*INDEX($C$23:$V$23, 1, MATCH(D$34,$C$21:$V$21,0)) -> 1879.15704 | E71: 1738.494565 | F71: 1605.196583 | G71: 1478.925868 | H71: 1359.359577 | I71: 1246.188668 | W71: =SUM(C71:V71) -> 11334.85853 | X71: =SUM(H71:V71) -> 2605.548245
B72: 1 year old | C72: 1944.927536 | D72: 1799.341875 | E72: 1661.378464 | F72: 1530.688273 | G72: 1406.937162 | H72: 1289.805272 | I72: 0 | W72: =SUM(C72:V72) -> 9633.078581 | X72: =SUM(H72:V72) -> 1289.805272
B73: 2 year old | C73: 1862.318841 | D73: 1719.52671 | E73: 1584.262363 | F73: 1456.179962 | G73: 1334.948456 | H73: 0 | I73: 0 | W73: =SUM(C73:V73) -> 7957.236332 | X73: 0
B74: 3 year old | C74: 1779.710145 | D74: 1639.711545 | E74: 1507.146261 | F74: 1381.671652 | G74: 0 | H74: 0 | I74: 0 | W74: 6308.239603 | X74: 0
B75: 4 year old | C75: 1697.101449 | D75: 1559.89638 | E75: 1430.03016 | F75: 0 | G75: 0 | H75: 0 | I75: 0 | W75: 4687.027989 | X75: 0
B76: 5 year old | C76: 1614.492754 | D76: 1480.081215 | E76: 0 | F76: 0 | G76: 0 | H76: 0 | I76: 0 | W76: 3094.573969 | X76: 0
B77: 6 year old | C77: 1531.884058 | D77: 0 | E77: 0 | F77: 0 | G77: 0 | H77: 0 | I77: 0 | W77: 1531.884058 | X77: 0
B78: 7 year old | C78: 0 | D78: 0 | E78: 0 | F78: 0 | G78: 0 | H78: 0 | I78: 0
B80: Final outputs in Columns W & X ----> | W80: Average cost per link
W81: =AVERAGE(W71:W77) -> 6363.842724 | X81: =AVERAGE(X71:X77) -> 556.4790738
B84: Cost additional hop
C86: 1 | D86: 2 | E86: 3 | F86: 4 | G86: 5 | H86: 6 | I86: 7 | J86: 8 | K86: 9 | L86: 10 | M86: 11 | N86: 12 | O86: 13 | P86: 14 | Q86: 15 | R86: 16 | S86: 17 | T86: 18 | U86: 19 | V86: 20
A87: Rural | B87: Annualised equipment cost | C87: =C61 -> 2098.5 | D87: =D61 -> 2013 | E87: 1927.5 | F87: 1842 | G87: 1756.5 | H87: 1671 | I87: 1585.5 | J87: =C87 -> 2098.5 | K87: =D87 -> 2013 | L87: 1927.5 | M87: 1842 | N87: 1756.5 | O87: 1671 | P87: 1585.5 | Q87: 2098.5 | R87: 2013 | S87: 1927.5 | T87: 1842 | U87: 1756.5 | V87: 1671 | W87: =SUM(C87:V87) -> 37096.5
B88: Annualised site cost | C88: =Cost_SiteRural!C41 -> 12133.66632 | D88: =Cost_SiteRural!D41 -> 11810.47988 | E88: =Cost_SiteRural!E41 -> 11487.29344 | F88: =Cost_SiteRural!F41 -> 11164.107 | G88: =Cost_SiteRural!G41 -> 10840.92056 | H88: =Cost_SiteRural!H41 -> 10517.73412 | I88: =Cost_SiteRural!I41 -> 10194.54768 | J88: =Cost_SiteRural!J41 -> 9871.361244 | K88: =Cost_SiteRural!K41 -> 9548.174805 | L88: =Cost_SiteRural!L41 -> 9224.988365 | M88: =Cost_SiteRural!M41 -> 8901.801926 | N88: =Cost_SiteRural!N41 -> 8578.615487 | O88: =Cost_SiteRural!O41 -> 8255.429047 | P88: =Cost_SiteRural!P41 -> 7932.242608 | Q88: =Cost_SiteRural!Q41 -> 7609.056169 | R88: =Cost_SiteRural!R41 -> 7285.869729 | S88: =Cost_SiteRural!S41 -> 6962.68329 | T88: =Cost_SiteRural!T41 -> 6639.496851 | U88: =Cost_SiteRural!U41 -> 6316.310411 | V88: =Cost_SiteRural!V41 -> 5993.123972 | W88: =SUM(C88:V88) -> 181267.9029
B89: Opex | C89: ='Cost calculations'!$G$28 -> 1804.848656 | D89: ='Cost calculations'!$G$28 -> 1804.848656 | E89: ='Cost calculations'!$G$28 -> 1804.848656 | F89: ='Cost calculations'!$G$28 -> 1804.848656 | G89: ='Cost calculations'!$G$28 -> 1804.848656 | H89: ='Cost calculations'!$G$28 -> 1804.848656 | I89: ='Cost calculations'!$G$28 -> 1804.848656 | J89: ='Cost calculations'!$G$28 -> 1804.848656 | K89: ='Cost calculations'!$G$28 -> 1804.848656 | L89: ='Cost calculations'!$G$28 -> 1804.848656 | M89: ='Cost calculations'!$G$28 -> 1804.848656 | N89: ='Cost calculations'!$G$28 -> 1804.848656 | O89: ='Cost calculations'!$G$28 -> 1804.848656 | P89: ='Cost calculations'!$G$28 -> 1804.848656 | Q89: ='Cost calculations'!$G$28 -> 1804.848656 | R89: ='Cost calculations'!$G$28 -> 1804.848656 | S89: ='Cost calculations'!$G$28 -> 1804.848656 | T89: ='Cost calculations'!$G$28 -> 1804.848656 | U89: ='Cost calculations'!$G$28 -> 1804.848656 | V89: ='Cost calculations'!$G$28 -> 1804.848656 | W89: =SUM(C89:V89) -> 36096.97312
B91: Total | C91: =SUM(C87,C88:C89) -> 16037.01498 | D91: =SUM(D87,D88:D89) -> 15628.32854 | E91: 15219.6421 | F91: 14810.95566 | G91: 14402.26922 | H91: 13993.58278 | I91: 13584.89634 | J91: 13774.7099 | K91: 13366.02346 | L91: 12957.33702 | M91: 12548.65058 | N91: 12139.96414 | O91: 11731.2777 | P91: 11322.59126 | Q91: 11512.40482 | R91: 11103.71839 | S91: 10695.03195 | T91: 10286.34551 | U91: 9877.659067 | V91: 9468.972628 | W91: =SUM(C91:V91) -> 254461.376
B92: Discounted cash flow | C92: =C91*INDEX($C$23:$V$23, 1, MATCH(C21,$C$21:$V$21,0)) -> 15494.70046 | D92: 14589.21192 | E92: 13727.24517 | F92: 12906.89219 | G92: 12126.32422 | H92: 11383.78861 | I92: 10677.60572 | J92: 10460.67388 | K92: 9807.065388 | L92: 9185.69999 | M92: 8595.144429 | N92: 8034.025511 | O92: 7501.027683 | P92: 6994.890702 | Q92: 6871.646438 | R92: 6403.580035 | S92: 5959.312221 | T92: 5537.768689 | U92: 5137.920571 | V92: 4758.782603
V94: Cost rural hop | W94: =SUM(C92:V92) -> 186153.3064
A97: Urban | B97: Annualised equipment cost | C97: =C61 -> 2098.5 | D97: =D61 -> 2013 | E97: 1927.5 | F97: 1842 | G97: 1756.5 | H97: 1671 | I97: 1585.5 | J97: =C97 -> 2098.5 | K97: =D97 -> 2013 | L97: =E97 -> 1927.5 | M97: =F97 -> 1842 | N97: =G97 -> 1756.5 | O97: =H97 -> 1671 | P97: =I97 -> 1585.5 | Q97: =J97 -> 2098.5 | R97: =K97 -> 2013 | S97: =L97 -> 1927.5 | T97: =M97 -> 1842 | U97: =N97 -> 1756.5 | V97: =O97 -> 1671 | W97: =SUM(C97:V97) -> 37096.5
B98: Annualised site cost | C98: =Cost_SiteUrban!C41 -> 1213.366632 | D98: =Cost_SiteUrban!D41 -> 1181.047988 | E98: =Cost_SiteUrban!E41 -> 1148.729344 | F98: =Cost_SiteUrban!F41 -> 1116.4107 | G98: =Cost_SiteUrban!G41 -> 1084.092056 | H98: =Cost_SiteUrban!H41 -> 1051.773412 | I98: =Cost_SiteUrban!I41 -> 1019.454768 | J98: =Cost_SiteUrban!J41 -> 987.1361244 | K98: =Cost_SiteUrban!K41 -> 954.8174805 | L98: =Cost_SiteUrban!L41 -> 922.4988365 | M98: =Cost_SiteUrban!M41 -> 890.1801926 | N98: =Cost_SiteUrban!N41 -> 857.8615487 | O98: =Cost_SiteUrban!O41 -> 825.5429047 | P98: =Cost_SiteUrban!P41 -> 793.2242608 | Q98: =Cost_SiteUrban!Q41 -> 760.9056169 | R98: =Cost_SiteUrban!R41 -> 728.5869729 | S98: =Cost_SiteUrban!S41 -> 696.268329 | T98: =Cost_SiteUrban!T41 -> 663.9496851 | U98: =Cost_SiteUrban!U41 -> 631.6310411 | V98: =Cost_SiteUrban!V41 -> 599.3123972 | W98: 18126.79029
B99: Ongoing cost | C99: ='Cost calculations'!$G$29 -> 7096.790353 | D99: ='Cost calculations'!$G$29 -> 7096.790353 | E99: ='Cost calculations'!$G$29 -> 7096.790353 | F99: ='Cost calculations'!$G$29 -> 7096.790353 | G99: ='Cost calculations'!$G$29 -> 7096.790353 | H99: ='Cost calculations'!$G$29 -> 7096.790353 | I99: ='Cost calculations'!$G$29 -> 7096.790353 | J99: ='Cost calculations'!$G$29 -> 7096.790353 | K99: ='Cost calculations'!$G$29 -> 7096.790353 | L99: ='Cost calculations'!$G$29 -> 7096.790353 | M99: ='Cost calculations'!$G$29 -> 7096.790353 | N99: ='Cost calculations'!$G$29 -> 7096.790353 | O99: ='Cost calculations'!$G$29 -> 7096.790353 | P99: ='Cost calculations'!$G$29 -> 7096.790353 | Q99: ='Cost calculations'!$G$29 -> 7096.790353 | R99: ='Cost calculations'!$G$29 -> 7096.790353 | S99: ='Cost calculations'!$G$29 -> 7096.790353 | T99: ='Cost calculations'!$G$29 -> 7096.790353 | U99: ='Cost calculations'!$G$29 -> 7096.790353 | V99: ='Cost calculations'!$G$29 -> 7096.790353 | W99: 141935.8071
B101: Total | C101: =SUM(C97,C98:C99) -> 10408.65698 | D101: =SUM(D97,D98:D99) -> 10290.83834 | E101: 10173.0197 | F101: 10055.20105 | G101: 9937.382409 | H101: 9819.563765 | I101: 9701.745121 | J101: 10182.42648 | K101: 10064.60783 | L101: 9946.789189 | M101: 9828.970545 | N101: 9711.151901 | O101: 9593.333258 | P101: 9475.514614 | Q101: 9956.19597 | R101: 9838.377326 | S101: 9720.558682 | T101: 9602.740038 | U101: 9484.921394 | V101: 9367.10275 | W101: 197159.0973
B102: Discounted cash flow | C102: =C101*INDEX($C$23:$V$23, 1, MATCH(C86,$C$21:$V$21,0)) -> 10056.67342 | D102: 9606.607707 | E102: 9175.48091 | F102: 8762.526806 | G102: 8367.009337 | H102: 7988.22145 | I102: 7625.483968 | J102: 7732.652337 | K102: 7384.71449 | L102: 7051.465992 | M102: 6732.311245 | N102: 6426.678136 | O102: 6134.017125 | P102: 5853.800382 | Q102: 5942.759971 | R102: 5673.850365 | S102: 5416.332036 | T102: 5169.74207 | U102: 4933.635836 | V102: 4707.586278
V104: Cost urban hop | W104: =SUM(C102:V102) -> 140741.5499

Sheet Discounted cost_15years
A1: Discounted Cost (15 year lifetime)
B3: Time horizon (years) | C3: 20
B5: Finance rate | C5: 0.057 | D5: finance_rate | F5: Real pre-tax WACC MCT 2021-2026 Statement | I5: https://www.ofcom.org.uk/__data/assets/pdf_file/0029/216794/statement-2021-26-wholesale-voice-markets-review.pdf
B6: Discount rate | C6: 0.035 | D6: discount_rate | F6: STPR - HMT Green Book 2020 | I6: https://assets.publishing.service.gov.uk/government/uploads/system/uploads/attachment_data/file/938046/The_Green_Book_2020.pdf
B8: Capital cost for equipment | C8: =Equipment -> 7000 | D8: equipment_capital
B9: Capital cost (including installation) | C9: ='Cost calculations'!G37 -> 10500 | D9: equipment_capital_ins
B10: Capital cost - rural site | C10: ='Cost calculations'!C23 -> 113398.7507 | D10: rural_site_capital
B11: Capital cost - urban site | C11: ='Cost calculations'!C24 -> 11339.87507 | D11: urban_site_capital
B14: Installation (% of capex) | C14: 0.5
B17: Lifetime of new equipment | C17: 15 | D17: equipment_lifetime
B18: Lifetime of structures | C18: ='Spectrum cost inputs'!D21 -> 20 | D18: structure_lifetime
C20: Years
C21: 1 | D21: 2 | E21: 3 | F21: 4 | G21: 5 | H21: 6 | I21: 7 | J21: 8 | K21: 9 | L21: 10 | M21: 11 | N21: 12 | O21: 13 | P21: 14 | Q21: 15 | R21: 16 | S21: 17 | T21: 18 | U21: 19 | V21: 20
B22: Discount factor (WACC) | C22: =1/(1+$C5)^(C$21) -> 0.9460737938 | D22: 0.8950556232 | E22: 0.8467886691 | F22: 0.8011245687 | G22: 0.75792296 | H22: 0.7170510501 | I22: 0.6783832073 | J22: 0.6418005745 | K22: 0.6071907044 | L22: 0.5744472132 | M22: 0.5434694543 | N22: 0.5141622085 | O22: 0.4864353912 | P22: 0.4602037759 | Q22: 0.4353867322 | R22: 0.4119079775 | S22: 0.3896953429 | T22: 0.3686805515 | U22: 0.348799008 | V22: 0.3299896008
B23: Discount factor (STPR) | C23: =1/(1+$C6)^(C$21) -> 0.9661835749 | D23: 0.9335107004 | E23: 0.9019427057 | F23: 0.8714422277 | G23: 0.8419731669 | H23: 0.8135006443 | I23: 0.7859909607 | J23: 0.7594115562 | K23: 0.7337309722 | L23: 0.7089188137 | M23: 0.6849457137 | N23: 0.6617832983 | O23: 0.6394041529 | P23: 0.6177817903 | Q23: 0.5968906186 | R23: 0.5767059117 | S23: 0.5572037794 | T23: 0.5383611396 | U23: 0.5201556904 | V23: 0.5025658844
B24: New equipment required | C24: Yes | D24: No | E24: No | F24: No | G24: No | H24: No | I24: No | J24: Yes | K24: No | L24: No | M24: No | N24: No | O24: No | P24: No | Q24: Yes | R24: No | S24: No | T24: No | U24: No | V24: No
B25: New structures required | C25: Yes | D25: No | E25: No | F25: No | G25: No | H25: No | I25: No | J25: No | K25: No | L25: No | M25: No | N25: No | O25: No | P25: No | Q25: No | R25: No | S25: No | T25: No | U25: No | V25: No
B29: Cost of retiring equipment early
B30: Estimating the capital cost that firms need to write off
B31: Including the installation cost as part of capex for this calculation
C33: Year
C34: 1 | D34: 2 | E34: 3 | F34: 4 | G34: 5 | H34: 6 | I34: 7 | J34: 8 | K34: 9 | L34: 10 | M34: 11 | N34: 12 | O34: 13 | P34: 14 | Q34: 15 | R34: 16 | S34: 17 | T34: 18 | U34: 19 | V34: 20
B35: Annualised capital cost
B36: New | C36: =-PMT(finance_rate,equipment_lifetime_15,equipment_capital_ins,,1) -> 1002.85487 | D36: 1002.85487 | E36: 1002.85487 | F36: 1002.85487 | G36: 1002.85487 | H36: 1002.85487 | I36: 1002.85487 | J36: 1002.85487 | K36: 1002.85487 | L36: 1002.85487 | M36: 1002.85487 | N36: 1002.85487 | O36: 1002.85487 | P36: 1002.85487 | Q36: 1002.85487
B38: Cost (Straight line depreciation)
A40: Remaining lifetime | B40: Depreciation
A41: =equipment_lifetime_15-LEFT(B41,2) -> 15 | B41: 0 year old | C41: =IF(C$34<=$A41,equipment_capital_ins/equipment_lifetime,0) -> 700 | D41: 700 | E41: 700 | F41: 700 | G41: 700 | H41: 700 | I41: 700 | J41: 700 | K41: 700 | L41: 700 | M41: 700 | N41: 700 | O41: 700 | P41: 700 | Q41: 700
A42: 14 | B42: 1 year old | C42: 700 | D42: 700 | E42: 700 | F42: 700 | G42: 700 | H42: 700 | I42: 700 | J42: 700 | K42: 700 | L42: 700 | M42: 700 | N42: 700 | O42: 700 | P42: 700 | Q42: 0
A43: 13 | B43: 2 year old | C43: 700 | D43: 700 | E43: 700 | F43: 700 | G43: 700 | H43: 700 | I43: 700 | J43: 700 | K43: 700 | L43: 700 | M43: 700 | N43: 700 | O43: 700 | P43: 0 | Q43: 0
A44: 12 | B44: 3 year old | C44: 700 | D44: 700 | E44: 700 | F44: 700 | G44: 700 | H44: 700 | I44: 700 | J44: 700 | K44: 700 | L44: 700 | M44: 700 | N44: 700 | O44: 0 | P44: 0 | Q44: 0
A45: 11 | B45: 4 year old | C45: 700 | D45: 700 | E45: 700 | F45: 700 | G45: 700 | H45: 700 | I45: 700 | J45: 700 | K45: 700 | L45: 700 | M45: 700 | N45: 0 | O45: 0 | P45: 0 | Q45: 0
A46: 10 | B46: 5 year old | C46: 700 | D46: 700 | E46: 700 | F46: 700 | G46: 700 | H46: 700 | I46: 700 | J46: 700 | K46: 700 | L46: 700 | M46: 0 | N46: 0 | O46: 0 | P46: 0 | Q46: 0
A47: 9 | B47: 6 year old | C47: 700 | D47: 700 | E47: 700 | F47: 700 | G47: 700 | H47: 700 | I47: 700 | J47: 700 | K47: 700 | L47: 0 | M47: 0 | N47: 0 | O47: 0 | P47: 0 | Q47: 0
A48: 8 | B48: 7 year old | C48: 700 | D48: 700 | E48: 700 | F48: 700 | G48: 700 | H48: 700 | I48: 700 | J48: 700 | K48: 0 | L48: 0 | M48: 0 | N48: 0 | O48: 0 | P48: 0 | Q48: 0
A49: 7 | B49: 8 year old | C49: 700 | D49: 700 | E49: 700 | F49: 700 | G49: 700 | H49: 700 | I49: 700 | J49: 0 | K49: 0 | L49: 0 | M49: 0 | N49: 0 | O49: 0 | P49: 0 | Q49: 0
A50: 6 | B50: 9 year old | C50: 700 | D50: 700 | E50: 700 | F50: 700 | G50: 700 | H50: 700 | I50: 0 | J50: 0 | K50: 0 | L50: 0 | M50: 0 | N50: 0 | O50: 0 | P50: 0 | Q50: 0
A51: 5 | B51: 10 year old | C51: =IF(C$34<=$A51,equipment_capital_ins/equipment_lifetime,0) -> 700 | D51: 700 | E51: 700 | F51: 700 | G51: 700 | H51: 0 | I51: 0 | J51: 0 | K51: 0 | L51: 0 | M51: 0 | N51: 0 | O51: 0 | P51: 0 | Q51: 0
A52: 4 | B52: 11 year old | C52: 700 | D52: 700 | E52: 700 | F52: 700 | G52: 0 | H52: 0 | I52: 0 | J52: 0 | K52: 0 | L52: 0 | M52: 0 | N52: 0 | O52: 0 | P52: 0 | Q52: 0
A53: 3 | B53: 12 year old | C53: 700 | D53: 700 | E53: 700 | F53: 0 | G53: 0 | H53: 0 | I53: 0 | J53: 0 | K53: 0 | L53: 0 | M53: 0 | N53: 0 | O53: 0 | P53: 0 | Q53: 0
A54: 2 | B54: 13 year old | C54: 700 | D54: 700 | E54: 0 | F54: 0 | G54: 0 | H54: 0 | I54: 0 | J54: 0 | K54: 0 | L54: 0 | M54: 0 | N54: 0 | O54: 0 | P54: 0 | Q54: 0
A55: 1 | B55: 14 year old | C55: 700 | D55: 0 | E55: 0 | F55: 0 | G55: 0 | H55: 0 | I55: 0 | J55: 0 | K55: 0 | L55: 0 | M55: 0 | N55: 0 | O55: 0 | P55: 0 | Q55: 0
A56: 0 | B56: 15 year old | C56: 0 | D56: 0 | E56: 0 | F56: 0 | G56: 0 | H56: 0 | I56: 0 | J56: 0 | K56: 0 | L56: 0 | M56: 0 | N56: 0 | O56: 0 | P56: 0 | Q56: 0
B58: Financing cost
B59: 0 year old | C59: =SUM(C41:$Q41)*finance_rate -> 598.5 | D59: =SUM(D41:$Q41)*finance_rate -> 558.6 | E59: =SUM(E41:$Q41)*finance_rate -> 518.7 | F59: =SUM(F41:$Q41)*finance_rate -> 478.8 | G59: =SUM(G41:$Q41)*finance_rate -> 438.9 | H59: =SUM(H41:$Q41)*finance_rate -> 399 | I59: =SUM(I41:$Q41)*finance_rate -> 359.1 | J59: =SUM(J41:$Q41)*finance_rate -> 319.2 | K59: =SUM(K41:$Q41)*finance_rate -> 279.3 | L59: =SUM(L41:$Q41)*finance_rate -> 239.4 | M59: =SUM(M41:$Q41)*finance_rate -> 199.5 | N59: =SUM(N41:$Q41)*finance_rate -> 159.6 | O59: =SUM(O41:$Q41)*finance_rate -> 119.7 | P59: =SUM(P41:$Q41)*finance_rate -> 79.8 | Q59: =SUM(Q41:$Q41)*finance_rate -> 39.9
B60: 1 year old | C60: =SUM(C42:$Q42)*finance_rate -> 558.6 | D60: =SUM(D42:$Q42)*finance_rate -> 518.7 | E60: =SUM(E42:$Q42)*finance_rate -> 478.8 | F60: =SUM(F42:$Q42)*finance_rate -> 438.9 | G60: =SUM(G42:$Q42)*finance_rate -> 399 | H60: =SUM(H42:$Q42)*finance_rate -> 359.1 | I60: =SUM(I42:$Q42)*finance_rate -> 319.2 | J60: =SUM(J42:$Q42)*finance_rate -> 279.3 | K60: =SUM(K42:$Q42)*finance_rate -> 239.4 | L60: =SUM(L42:$Q42)*finance_rate -> 199.5 | M60: =SUM(M42:$Q42)*finance_rate -> 159.6 | N60: =SUM(N42:$Q42)*finance_rate -> 119.7 | O60: =SUM(O42:$Q42)*finance_rate -> 79.8 | P60: =SUM(P42:$Q42)*finance_rate -> 39.9 | Q60: =SUM(Q42:$Q42)*finance_rate -> 0
B61: 2 year old | C61: =SUM(C43:$Q43)*finance_rate -> 518.7 | D61: =SUM(D43:$Q43)*finance_rate -> 478.8 | E61: =SUM(E43:$Q43)*finance_rate -> 438.9 | F61: =SUM(F43:$Q43)*finance_rate -> 399 | G61: =SUM(G43:$Q43)*finance_rate -> 359.1 | H61: =SUM(H43:$Q43)*finance_rate -> 319.2 | I61: =SUM(I43:$Q43)*finance_rate -> 279.3 | J61: =SUM(J43:$Q43)*finance_rate -> 239.4 | K61: =SUM(K43:$Q43)*finance_rate -> 199.5 | L61: =SUM(L43:$Q43)*finance_rate -> 159.6 | M61: =SUM(M43:$Q43)*finance_rate -> 119.7 | N61: =SUM(N43:$Q43)*finance_rate -> 79.8 | O61: =SUM(O43:$Q43)*finance_rate -> 39.9 | P61: =SUM(P43:$Q43)*finance_rate -> 0 | Q61: =SUM(Q43:$Q43)*finance_rate -> 0
B62: 3 year old | C62: =SUM(C44:$Q44)*finance_rate -> 478.8 | D62: =SUM(D44:$Q44)*finance_rate -> 438.9 | E62: =SUM(E44:$Q44)*finance_rate -> 399 | F62: =SUM(F44:$Q44)*finance_rate -> 359.1 | G62: =SUM(G44:$Q44)*finance_rate -> 319.2 | H62: =SUM(H44:$Q44)*finance_rate -> 279.3 | I62: =SUM(I44:$Q44)*finance_rate -> 239.4 | J62: =SUM(J44:$Q44)*finance_rate -> 199.5 | K62: =SUM(K44:$Q44)*finance_rate -> 159.6 | L62: =SUM(L44:$Q44)*finance_rate -> 119.7 | M62: =SUM(M44:$Q44)*finance_rate -> 79.8 | N62: =SUM(N44:$Q44)*finance_rate -> 39.9 | O62: =SUM(O44:$Q44)*finance_rate -> 0 | P62: =SUM(P44:$Q44)*finance_rate -> 0 | Q62: =SUM(Q44:$Q44)*finance_rate -> 0
B63: 4 year old | C63: =SUM(C45:$Q45)*finance_rate -> 438.9 | D63: =SUM(D45:$Q45)*finance_rate -> 399 | E63: =SUM(E45:$Q45)*finance_rate -> 359.1 | F63: =SUM(F45:$Q45)*finance_rate -> 319.2 | G63: =SUM(G45:$Q45)*finance_rate -> 279.3 | H63: =SUM(H45:$Q45)*finance_rate -> 239.4 | I63: =SUM(I45:$Q45)*finance_rate -> 199.5 | J63: =SUM(J45:$Q45)*finance_rate -> 159.6 | K63: =SUM(K45:$Q45)*finance_rate -> 119.7 | L63: =SUM(L45:$Q45)*finance_rate -> 79.8 | M63: =SUM(M45:$Q45)*finance_rate -> 39.9 | N63: =SUM(N45:$Q45)*finance_rate -> 0 | O63: =SUM(O45:$Q45)*finance_rate -> 0 | P63: =SUM(P45:$Q45)*finance_rate -> 0 | Q63: =SUM(Q45:$Q45)*finance_rate -> 0
B64: 5 year old | C64: =SUM(C46:$Q46)*finance_rate -> 399 | D64: =SUM(D46:$Q46)*finance_rate -> 359.1 | E64: =SUM(E46:$Q46)*finance_rate -> 319.2 | F64: =SUM(F46:$Q46)*finance_rate -> 279.3 | G64: =SUM(G46:$Q46)*finance_rate -> 239.4 | H64: =SUM(H46:$Q46)*finance_rate -> 199.5 | I64: =SUM(I46:$Q46)*finance_rate -> 159.6 | J64: =SUM(J46:$Q46)*finance_rate -> 119.7 | K64: =SUM(K46:$Q46)*finance_rate -> 79.8 | L64: =SUM(L46:$Q46)*finance_rate -> 39.9 | M64: =SUM(M46:$Q46)*finance_rate -> 0 | N64: =SUM(N46:$Q46)*finance_rate -> 0 | O64: =SUM(O46:$Q46)*finance_rate -> 0 | P64: =SUM(P46:$Q46)*finance_rate -> 0 | Q64: =SUM(Q46:$Q46)*finance_rate -> 0
B65: 6 year old | C65: =SUM(C47:$Q47)*finance_rate -> 359.1 | D65: =SUM(D47:$Q47)*finance_rate -> 319.2 | E65: =SUM(E47:$Q47)*finance_rate -> 279.3 | F65: =SUM(F47:$Q47)*finance_rate -> 239.4 | G65: =SUM(G47:$Q47)*finance_rate -> 199.5 | H65: =SUM(H47:$Q47)*finance_rate -> 159.6 | I65: =SUM(I47:$Q47)*finance_rate -> 119.7 | J65: =SUM(J47:$Q47)*finance_rate -> 79.8 | K65: =SUM(K47:$Q47)*finance_rate -> 39.9 | L65: =SUM(L47:$Q47)*finance_rate -> 0 | M65: =SUM(M47:$Q47)*finance_rate -> 0 | N65: =SUM(N47:$Q47)*finance_rate -> 0 | O65: =SUM(O47:$Q47)*finance_rate -> 0 | P65: =SUM(P47:$Q47)*finance_rate -> 0 | Q65: =SUM(Q47:$Q47)*finance_rate -> 0
B66: 7 year old | C66: =SUM(C48:$Q48)*finance_rate -> 319.2 | D66: =SUM(D48:$Q48)*finance_rate -> 279.3 | E66: =SUM(E48:$Q48)*finance_rate -> 239.4 | F66: =SUM(F48:$Q48)*finance_rate -> 199.5 | G66: =SUM(G48:$Q48)*finance_rate -> 159.6 | H66: =SUM(H48:$Q48)*finance_rate -> 119.7 | I66: =SUM(I48:$Q48)*finance_rate -> 79.8 | J66: =SUM(J48:$Q48)*finance_rate -> 39.9 | K66: =SUM(K48:$Q48)*finance_rate -> 0 | L66: =SUM(L48:$Q48)*finance_rate -> 0 | M66: =SUM(M48:$Q48)*finance_rate -> 0 | N66: =SUM(N48:$Q48)*finance_rate -> 0 | O66: =SUM(O48:$Q48)*finance_rate -> 0 | P66: =SUM(P48:$Q48)*finance_rate -> 0 | Q66: =SUM(Q48:$Q48)*finance_rate -> 0
B67: 8 year old | C67: =SUM(C49:$Q49)*finance_rate -> 279.3 | D67: =SUM(D49:$Q49)*finance_rate -> 239.4 | E67: =SUM(E49:$Q49)*finance_rate -> 199.5 | F67: =SUM(F49:$Q49)*finance_rate -> 159.6 | G67: =SUM(G49:$Q49)*finance_rate -> 119.7 | H67: =SUM(H49:$Q49)*finance_rate -> 79.8 | I67: =SUM(I49:$Q49)*finance_rate -> 39.9 | J67: =SUM(J49:$Q49)*finance_rate -> 0 | K67: =SUM(K49:$Q49)*finance_rate -> 0 | L67: =SUM(L49:$Q49)*finance_rate -> 0 | M67: =SUM(M49:$Q49)*finance_rate -> 0 | N67: =SUM(N49:$Q49)*finance_rate -> 0 | O67: =SUM(O49:$Q49)*finance_rate -> 0 | P67: =SUM(P49:$Q49)*finance_rate -> 0 | Q67: =SUM(Q49:$Q49)*finance_rate -> 0
B68: 9 year old | C68: =SUM(C50:$Q50)*finance_rate -> 239.4 | D68: =SUM(D50:$Q50)*finance_rate -> 199.5 | E68: =SUM(E50:$Q50)*finance_rate -> 159.6 | F68: =SUM(F50:$Q50)*finance_rate -> 119.7 | G68: =SUM(G50:$Q50)*finance_rate -> 79.8 | H68: =SUM(H50:$Q50)*finance_rate -> 39.9 | I68: =SUM(I50:$Q50)*finance_rate -> 0 | J68: =SUM(J50:$Q50)*finance_rate -> 0 | K68: =SUM(K50:$Q50)*finance_rate -> 0 | L68: =SUM(L50:$Q50)*finance_rate -> 0 | M68: =SUM(M50:$Q50)*finance_rate -> 0 | N68: =SUM(N50:$Q50)*finance_rate -> 0 | O68: =SUM(O50:$Q50)*finance_rate -> 0 | P68: =SUM(P50:$Q50)*finance_rate -> 0 | Q68: =SUM(Q50:$Q50)*finance_rate -> 0
B69: 10 year old | C69: =SUM(C51:$Q51)*finance_rate -> 199.5 | D69: =SUM(D51:$Q51)*finance_rate -> 159.6 | E69: =SUM(E51:$Q51)*finance_rate -> 119.7 | F69: =SUM(F51:$Q51)*finance_rate -> 79.8 | G69: =SUM(G51:$Q51)*finance_rate -> 39.9 | H69: =SUM(H51:$Q51)*finance_rate -> 0 | I69: =SUM(I51:$Q51)*finance_rate -> 0 | J69: =SUM(J51:$Q51)*finance_rate -> 0 | K69: =SUM(K51:$Q51)*finance_rate -> 0 | L69: =SUM(L51:$Q51)*finance_rate -> 0 | M69: =SUM(M51:$Q51)*finance_rate -> 0 | N69: =SUM(N51:$Q51)*finance_rate -> 0 | O69: =SUM(O51:$Q51)*finance_rate -> 0 | P69: =SUM(P51:$Q51)*finance_rate -> 0 | Q69: =SUM(Q51:$Q51)*finance_rate -> 0
B70: 11 year old | C70: =SUM(C52:$Q52)*finance_rate -> 159.6 | D70: =SUM(D52:$Q52)*finance_rate -> 119.7 | E70: =SUM(E52:$Q52)*finance_rate -> 79.8 | F70: =SUM(F52:$Q52)*finance_rate -> 39.9 | G70: =SUM(G52:$Q52)*finance_rate -> 0 | H70: =SUM(H52:$Q52)*finance_rate -> 0 | I70: =SUM(I52:$Q52)*finance_rate -> 0 | J70: =SUM(J52:$Q52)*finance_rate -> 0 | K70: =SUM(K52:$Q52)*finance_rate -> 0 | L70: =SUM(L52:$Q52)*finance_rate -> 0 | M70: =SUM(M52:$Q52)*finance_rate -> 0 | N70: =SUM(N52:$Q52)*finance_rate -> 0 | O70: =SUM(O52:$Q52)*finance_rate -> 0 | P70: =SUM(P52:$Q52)*finance_rate -> 0 | Q70: =SUM(Q52:$Q52)*finance_rate -> 0
B71: 12 year old | C71: =SUM(C53:$Q53)*finance_rate -> 119.7 | D71: =SUM(D53:$Q53)*finance_rate -> 79.8 | E71: =SUM(E53:$Q53)*finance_rate -> 39.9 | F71: =SUM(F53:$Q53)*finance_rate -> 0 | G71: =SUM(G53:$Q53)*finance_rate -> 0 | H71: =SUM(H53:$Q53)*finance_rate -> 0 | I71: =SUM(I53:$Q53)*finance_rate -> 0 | J71: =SUM(J53:$Q53)*finance_rate -> 0 | K71: =SUM(K53:$Q53)*finance_rate -> 0 | L71: =SUM(L53:$Q53)*finance_rate -> 0 | M71: =SUM(M53:$Q53)*finance_rate -> 0 | N71: =SUM(N53:$Q53)*finance_rate -> 0 | O71: =SUM(O53:$Q53)*finance_rate -> 0 | P71: =SUM(P53:$Q53)*finance_rate -> 0 | Q71: =SUM(Q53:$Q53)*finance_rate -> 0
B72: 13 year old | C72: =SUM(C54:$Q54)*finance_rate -> 79.8 | D72: =SUM(D54:$Q54)*finance_rate -> 39.9 | E72: =SUM(E54:$Q54)*finance_rate -> 0 | F72: =SUM(F54:$Q54)*finance_rate -> 0 | G72: =SUM(G54:$Q54)*finance_rate -> 0 | H72: =SUM(H54:$Q54)*finance_rate -> 0 | I72: =SUM(I54:$Q54)*finance_rate -> 0 | J72: =SUM(J54:$Q54)*finance_rate -> 0 | K72: =SUM(K54:$Q54)*finance_rate -> 0 | L72: =SUM(L54:$Q54)*finance_rate -> 0 | M72: =SUM(M54:$Q54)*finance_rate -> 0 | N72: =SUM(N54:$Q54)*finance_rate -> 0 | O72: =SUM(O54:$Q54)*finance_rate -> 0 | P72: =SUM(P54:$Q54)*finance_rate -> 0 | Q72: =SUM(Q54:$Q54)*finance_rate -> 0
B73: 14 year old | C73: =SUM(C55:$Q55)*finance_rate -> 39.9 | D73: =SUM(D55:$Q55)*finance_rate -> 0 | E73: =SUM(E55:$Q55)*finance_rate -> 0 | F73: =SUM(F55:$Q55)*finance_rate -> 0 | G73: =SUM(G55:$Q55)*finance_rate -> 0 | H73: =SUM(H55:$Q55)*finance_rate -> 0 | I73: =SUM(I55:$Q55)*finance_rate -> 0 | J73: =SUM(J55:$Q55)*finance_rate -> 0 | K73: =SUM(K55:$Q55)*finance_rate -> 0 | L73: =SUM(L55:$Q55)*finance_rate -> 0 | M73: =SUM(M55:$Q55)*finance_rate -> 0 | N73: =SUM(N55:$Q55)*finance_rate -> 0 | O73: =SUM(O55:$Q55)*finance_rate -> 0 | P73: =SUM(P55:$Q55)*finance_rate -> 0 | Q73: =SUM(Q55:$Q55)*finance_rate -> 0
B74: 15 year old | C74: =SUM(C56:$Q56)*finance_rate -> 0 | D74: =SUM(D56:$Q56)*finance_rate -> 0 | E74: =SUM(E56:$Q56)*finance_rate -> 0 | F74: =SUM(F56:$Q56)*finance_rate -> 0 | G74: =SUM(G56:$Q56)*finance_rate -> 0 | H74: =SUM(H56:$Q56)*finance_rate -> 0 | I74: =SUM(I56:$Q56)*finance_rate -> 0 | J74: =SUM(J56:$Q56)*finance_rate -> 0 | K74: =SUM(K56:$Q56)*finance_rate -> 0 | L74: =SUM(L56:$Q56)*finance_rate -> 0 | M74: =SUM(M56:$Q56)*finance_rate -> 0 | N74: =SUM(N56:$Q56)*finance_rate -> 0 | O74: =SUM(O56:$Q56)*finance_rate -> 0 | P74: =SUM(P56:$Q56)*finance_rate -> 0 | Q74: =SUM(Q56:$Q56)*finance_rate -> 0
B76: Depreciaton + financing cost
B77: 0 year old | C77: =C41+C59 -> 1298.5 | D77: =D41+D59 -> 1258.6 | E77: 1218.7 | F77: 1178.8 | G77: 1138.9 | H77: 1099 | I77: 1059.1 | J77: 1019.2 | K77: 979.3 | L77: 939.4 | M77: 899.5 | N77: 859.6 | O77: 819.7 | P77: 779.8 | Q77: 739.9
B78: 1 year old | C78: 1258.6 | D78: =D42+D60 -> 1218.7 | E78: 1178.8 | F78: 1138.9 | G78: 1099 | H78: 1059.1 | I78: 1019.2 | J78: 979.3 | K78: 939.4 | L78: 899.5 | M78: 859.6 | N78: 819.7 | O78: 779.8 | P78: 739.9 | Q78: 0
B79: 2 year old | C79: 1218.7 | D79: =D43+D61 -> 1178.8 | E79: 1138.9 | F79: 1099 | G79: 1059.1 | H79: 1019.2 | I79: 979.3 | J79: 939.4 | K79: 899.5 | L79: 859.6 | M79: 819.7 | N79: 779.8 | O79: 739.9 | P79: 0 | Q79: 0
B80: 3 year old | C80: 1178.8 | D80: =D44+D62 -> 1138.9 | E80: 1099 | F80: 1059.1 | G80: 1019.2 | H80: 979.3 | I80: 939.4 | J80: 899.5 | K80: 859.6 | L80: 819.7 | M80: 779.8 | N80: 739.9 | O80: 0 | P80: 0 | Q80: 0
B81: 4 year old | C81: 1138.9 | D81: =D45+D63 -> 1099 | E81: 1059.1 | F81: 1019.2 | G81: 979.3 | H81: 939.4 | I81: 899.5 | J81: 859.6 | K81: 819.7 | L81: 779.8 | M81: 739.9 | N81: 0 | O81: 0 | P81: 0 | Q81: 0
B82: 5 year old | C82: 1099 | D82: =D46+D64 -> 1059.1 | E82: 1019.2 | F82: 979.3 | G82: 939.4 | H82: 899.5 | I82: 859.6 | J82: 819.7 | K82: 779.8 | L82: 739.9 | M82: 0 | N82: 0 | O82: 0 | P82: 0 | Q82: 0
B83: 6 year old | C83: 1059.1 | D83: =D47+D65 -> 1019.2 | E83: 979.3 | F83: 939.4 | G83: 899.5 | H83: 859.6 | I83: 819.7 | J83: 779.8 | K83: 739.9 | L83: 0 | M83: 0 | N83: 0 | O83: 0 | P83: 0 | Q83: 0
B84: 7 year old | C84: 1019.2 | D84: =D48+D66 -> 979.3 | E84: 939.4 | F84: 899.5 | G84: 859.6 | H84: 819.7 | I84: 779.8 | J84: 739.9 | K84: 0 | L84: 0 | M84: 0 | N84: 0 | O84: 0 | P84: 0 | Q84: 0
B85: 8 year old | C85: 979.3 | D85: =D49+D67 -> 939.4 | E85: 899.5 | F85: 859.6 | G85: 819.7 | H85: 779.8 | I85: 739.9 | J85: 0 | K85: 0 | L85: 0 | M85: 0 | N85: 0 | O85: 0 | P85: 0 | Q85: 0
B86: 9 year old | C86: 939.4 | D86: =D50+D68 -> 899.5 | E86: 859.6 | F86: 819.7 | G86: 779.8 | H86: 739.9 | I86: 0 | J86: 0 | K86: 0 | L86: 0 | M86: 0 | N86: 0 | O86: 0 | P86: 0 | Q86: 0
B87: 10 year old | C87: 899.5 | D87: =D51+D69 -> 859.6 | E87: 819.7 | F87: 779.8 | G87: 739.9 | H87: 0 | I87: 0 | J87: 0 | K87: 0 | L87: 0 | M87: 0 | N87: 0 | O87: 0 | P87: 0 | Q87: 0
B88: 11 year old | C88: 859.6 | D88: =D52+D70 -> 819.7 | E88: 779.8 | F88: 739.9 | G88: 0 | H88: 0 | I88: 0 | J88: 0 | K88: 0 | L88: 0 | M88: 0 | N88: 0 | O88: 0 | P88: 0 | Q88: 0
B89: 12 year old | C89: 819.7 | D89: =D53+D71 -> 779.8 | E89: 739.9 | F89: 0 | G89: 0 | H89: 0 | I89: 0 | J89: 0 | K89: 0 | L89: 0 | M89: 0 | N89: 0 | O89: 0 | P89: 0 | Q89: 0
B90: 13 year old | C90: 779.8 | D90: =D54+D72 -> 739.9 | E90: 0 | F90: 0 | G90: 0 | H90: 0 | I90: 0 | J90: 0 | K90: 0 | L90: 0 | M90: 0 | N90: 0 | O90: 0 | P90: 0 | Q90: 0
B91: 14 year old | C91: 739.9 | D91: =D55+D73 -> 0 | E91: 0 | F91: 0 | G91: 0 | H91: 0 | I91: 0 | J91: 0 | K91: 0 | L91: 0 | M91: 0 | N91: 0 | O91: 0 | P91: 0 | Q91: 0
B92: 15 year old | C92: 0 | D92: =D56+D74 -> 0 | E92: 0 | F92: 0 | G92: 0 | H92: 0 | I92: 0 | J92: 0 | K92: 0 | L92: 0 | M92: 0 | N92: 0 | O92: 0 | P92: 0 | Q92: 0
B94: Discounted cost | W94: No revocation period | X94: 5 year revocation
B95: 0 year old | C95: =C77*INDEX($C$23:$V$23, 1, MATCH(C$34,$C$21:$V$21,0)) -> 1254.589372 | D95: =D77*INDEX($C$23:$V$23, 1, MATCH(D$34,$C$21:$V$21,0)) -> 1174.916567 | E95: 1099.197575 | F95: 1027.256098 | G95: 958.9232397 | H95: 894.0372081 | I95: 832.4430265 | J95: 773.9922581 | K95: 718.5427411 | L95: 665.9583336 | M95: 616.1086695 | N95: 568.8689232 | O95: 524.1195842 | P95: 481.7462401 | Q95: 441.6393687 | W95: =SUM(C95:V95) -> 12032.33921 | X95: =SUM(H95:V95) -> 6517.456353
B96: 1 year old | C96: =C78*INDEX($C$23:$V$23, 1, MATCH(C$34,$C$21:$V$21,0)) -> 1216.038647 | D96: 1137.669491 | E96: 1063.210061 | F96: 992.4855531 | G96: 925.3285104 | H96: 861.5785324 | I96: 801.0819871 | J96: 743.691737 | K96: 689.2668753 | L96: 637.6724729 | M96: 588.7793355 | N96: 542.4637696 | O96: 498.6073585 | P96: 457.0967466 | Q96: 0 | W96: =SUM(C96:V96) -> 11154.97108 | X96: =SUM(H96:V96) -> 5820.238815
B97: 2 year old | C97: 1177.487923 | D97: 1100.422414 | E97: 1027.222547 | F97: 957.7150082 | G97: 891.733781 | H97: 829.1198567 | I97: 769.7209478 | J97: 713.3912159 | K97: 659.9910095 | L97: 609.3866123 | M97: 561.4500015 | N97: 516.058616 | O97: 473.0951328 | P97: 0 | Q97: 0 | W97: 10286.79507 | X97: 5132.213392
B98: 3 year old | C98: 1138.937198 | D98: 1063.175337 | E98: 991.2350335 | F98: 922.9444634 | G98: 858.1390517 | H98: 796.661181 | I98: 738.3599085 | J98: 683.0906948 | K98: 630.7151437 | L98: 581.1007516 | M98: 534.1206676 | N98: 489.6534624 | O98: 0 | P98: 0 | Q98: 0 | W98: 9428.132893 | X98: 4453.70181
B99: 4 year old | C99: 1100.386473 | D99: 1025.92826 | E99: 955.2475196 | F99: 888.1739185 | G99: 824.5443223 | H99: 764.2025053 | I99: 706.9988691 | J99: 652.7901737 | K99: 601.4392779 | L99: 552.8148909 | M99: 506.7913336 | N99: 0 | O99: 0 | P99: 0 | Q99: 0 | W99: 8579.317544 | X99: 3785.037051
B100: 5 year old | C100: 1061.835749 | D100: 988.6811828 | E100: 919.2600056 | F100: 853.4033736 | G100: 790.9495929 | H100: 731.7438296 | I100: 675.6378298 | J100: 622.4896526 | K100: 572.1634121 | L100: 524.5290303 | M100: 0 | N100: 0 | O100: 0 | P100: 0 | Q100: 0 | W100: 7740.693658 | X100: 3126.563754
B101: 6 year old | C101: 1023.285024 | D101: 951.4341058 | E101: 883.2724917 | F101: 818.6328287 | G101: 757.3548636 | H101: 699.2851538 | I101: 644.2767905 | J101: 592.1891315 | K101: 542.8875463 | L101: 0 | M101: 0 | N101: 0 | O101: 0 | P101: 0 | Q101: 0 | W101: 6912.617936 | X101: 2478.638622
B102: 7 year old | C102: 984.7342995 | D102: 914.1870289 | E102: 847.2849777 | F102: 783.8622838 | G102: 723.7601342 | H102: 666.8264781 | I102: 612.9157511 | J102: 561.8886104 | K102: 0 | L102: 0 | M102: 0 | N102: 0 | O102: 0 | P102: 0 | Q102: 0 | W102: 6095.459564 | X102: 1841.63084
B103: 8 year old | C103: 946.1835749 | D103: 876.9399519 | E103: 811.2974637 | F103: 749.0917389 | G103: 690.1654049 | H103: 634.3678024 | I103: 581.5547118 | J103: 0 | K103: 0 | L103: 0 | M103: 0 | N103: 0 | O103: 0 | P103: 0 | Q103: 0 | W103: 5289.600649 | X103: 1215.922514
B104: 9 year old | C104: 907.6328502 | D104: 839.692875 | E104: 775.3099498 | F104: 714.321194 | G104: 656.5706755 | H104: 601.9091267 | I104: 0 | J104: 0 | K104: 0 | L104: 0 | M104: 0 | N104: 0 | O104: 0 | P104: 0 | Q104: 0 | W104: 4495.436671 | X104: 601.9091267
B105: 10 year old | C105: 869.0821256 | D105: 802.445798 | E105: 739.3224358 | F105: 679.5506492 | G105: 622.9759462 | H105: 0 | I105: 0 | J105: 0 | K105: 0 | L105: 0 | M105: 0 | N105: 0 | O105: 0 | P105: 0 | Q105: 0 | W105: 3713.376955 | X105: 0
B106: 11 year old | C106: 830.531401 | D106: 765.1987211 | E106: 703.3349219 | F106: 644.7801043 | G106: 0 | H106: 0 | I106: 0 | J106: 0 | K106: 0 | L106: 0 | M106: 0 | N106: 0 | O106: 0 | P106: 0 | Q106: 0 | W106: 2943.845148 | X106: 0
B107: 12 year old | C107: 791.9806763 | D107: 727.9516441 | E107: 667.3474079 | F107: 0 | G107: 0 | H107: 0 | I107: 0 | J107: 0 | K107: 0 | L107: 0 | M107: 0 | N107: 0 | O107: 0 | P107: 0 | Q107: 0 | W107: 2187.279728 | X107: 0
B108: 13 year old | C108: 753.4299517 | D108: 690.7045672 | E108: 0 | F108: 0 | G108: 0 | H108: 0 | I108: 0 | J108: 0 | K108: 0 | L108: 0 | M108: 0 | N108: 0 | O108: 0 | P108: 0 | Q108: 0 | W108: 1444.134519 | X108: 0
B109: 14 year old | C109: 714.8792271 | D109: 0 | E109: 0 | F109: 0 | G109: 0 | H109: 0 | I109: 0 | J109: 0 | K109: 0 | L109: 0 | M109: 0 | N109: 0 | O109: 0 | P109: 0 | Q109: 0 | W109: 714.8792271 | X109: 0
B110: 15 year old | C110: 0 | D110: 0 | E110: 0 | F110: 0 | G110: 0 | H110: 0 | I110: 0 | J110: 0 | K110: 0 | L110: 0 | M110: 0 | N110: 0 | O110: 0 | P110: 0 | Q110: 0
B112: Final outputs in Columns W & X ----> | W112: Average cost per link | X112: Average cost per link
W113: =AVERAGE(W95:W109) -> 6201.258656 | X113: =AVERAGE(X95:X109) -> 2331.554152
B115: Cost additional hop | W115: Total 20 yr NPC
C117: 1 | D117: 2 | E117: 3 | F117: 4 | G117: 5 | H117: 6 | I117: 7 | J117: 8 | K117: 9 | L117: 10 | M117: 11 | N117: 12 | O117: 13 | P117: 14 | Q117: 15 | R117: 16 | S117: 17 | T117: 18 | U117: 19 | V117: 20
A118: Rural | B118: Annualised equipment cost | C118: =C77 -> 1298.5 | D118: =D77 -> 1258.6 | E118: 1218.7 | F118: 1178.8 | G118: 1138.9 | H118: 1099 | I118: 1059.1 | J118: 1019.2 | K118: 979.3 | L118: 939.4 | M118: 899.5 | N118: 859.6 | O118: 819.7 | P118: 779.8 | Q118: 739.9 | R118: =C118 -> 1298.5 | S118: =D118 -> 1258.6 | T118: 1218.7 | U118: 1178.8 | V118: 1138.9 | W118: =SUM(C118:V118) -> 21381.5
B119: Annualised site cost | C119: =Cost_SiteRural!C41 -> 12133.66632 | D119: =Cost_SiteRural!D41 -> 11810.47988 | E119: =Cost_SiteRural!E41 -> 11487.29344 | F119: =Cost_SiteRural!F41 -> 11164.107 | G119: =Cost_SiteRural!G41 -> 10840.92056 | H119: =Cost_SiteRural!H41 -> 10517.73412 | I119: =Cost_SiteRural!I41 -> 10194.54768 | J119: =Cost_SiteRural!J41 -> 9871.361244 | K119: =Cost_SiteRural!K41 -> 9548.174805 | L119: =Cost_SiteRural!L41 -> 9224.988365 | M119: =Cost_SiteRural!M41 -> 8901.801926 | N119: =Cost_SiteRural!N41 -> 8578.615487 | O119: =Cost_SiteRural!O41 -> 8255.429047 | P119: =Cost_SiteRural!P41 -> 7932.242608 | Q119: =Cost_SiteRural!Q41 -> 7609.056169 | R119: =Cost_SiteRural!R41 -> 7285.869729 | S119: =Cost_SiteRural!S41 -> 6962.68329 | T119: =Cost_SiteRural!T41 -> 6639.496851 | U119: =Cost_SiteRural!U41 -> 6316.310411 | V119: =Cost_SiteRural!V41 -> 5993.123972 | W119: =SUM(C119:V119) -> 181267.9029
B120: Opex | C120: ='Cost calculations'!$G$28 -> 1804.848656 | D120: ='Cost calculations'!$G$28 -> 1804.848656 | E120: ='Cost calculations'!$G$28 -> 1804.848656 | F120: ='Cost calculations'!$G$28 -> 1804.848656 | G120: ='Cost calculations'!$G$28 -> 1804.848656 | H120: ='Cost calculations'!$G$28 -> 1804.848656 | I120: ='Cost calculations'!$G$28 -> 1804.848656 | J120: ='Cost calculations'!$G$28 -> 1804.848656 | K120: ='Cost calculations'!$G$28 -> 1804.848656 | L120: ='Cost calculations'!$G$28 -> 1804.848656 | M120: ='Cost calculations'!$G$28 -> 1804.848656 | N120: ='Cost calculations'!$G$28 -> 1804.848656 | O120: ='Cost calculations'!$G$28 -> 1804.848656 | P120: ='Cost calculations'!$G$28 -> 1804.848656 | Q120: ='Cost calculations'!$G$28 -> 1804.848656 | R120: ='Cost calculations'!$G$28 -> 1804.848656 | S120: ='Cost calculations'!$G$28 -> 1804.848656 | T120: ='Cost calculations'!$G$28 -> 1804.848656 | U120: ='Cost calculations'!$G$28 -> 1804.848656 | V120: ='Cost calculations'!$G$28 -> 1804.848656 | W120: =SUM(C120:V120) -> 36096.97312
B122: Total | C122: =SUM(C118,C119:C120) -> 15237.01498 | D122: =SUM(D118,D119:D120) -> 14873.92854 | E122: 14510.8421 | F122: 14147.75566 | G122: 13784.66922 | H122: 13421.58278 | I122: 13058.49634 | J122: 12695.4099 | K122: 12332.32346 | L122: 11969.23702 | M122: 11606.15058 | N122: 11243.06414 | O122: 10879.9777 | P122: 10516.89126 | Q122: 10153.80482 | R122: 10389.21839 | S122: 10026.13195 | T122: 9663.045506 | U122: 9299.959067 | V122: 8936.872628 | W122: =SUM(C122:V122) -> 238746.376
B123: Discounted cash flow | C123: =C122*INDEX($C$23:$V$23, 1, MATCH(C21,$C$21:$V$21,0)) -> 14721.7536 | D123: 13884.97144 | E123: 13087.94818 | F123: 12328.95171 | G123: 11606.3216 | H123: 10918.46624 | I123: 10263.86008 | J123: 9641.040989 | K123: 9048.607682 | L123: 8485.21731 | M123: 7949.583094 | N123: 7440.472071 | O123: 6956.702927 | P123: 6497.143913 | Q123: 6060.710843 | R123: 5991.523661 | S123: 5586.598613 | T123: 5202.20819 | U123: 4837.426629 | V123: 4491.367296
V125: NPC rural hop | W125: =SUM(C123:V123) -> 175000.8761
A128: Urban | B128: Annualised equipment cost | C128: =C77 -> 1298.5 | D128: =D77 -> 1258.6 | E128: 1218.7 | F128: 1178.8 | G128: 1138.9 | H128: 1099 | I128: 1059.1 | J128: 1019.2 | K128: 979.3 | L128: 939.4 | M128: 899.5 | N128: 859.6 | O128: 819.7 | P128: 779.8 | Q128: 739.9 | R128: =C128 -> 1298.5 | S128: =D128 -> 1258.6 | T128: 1218.7 | U128: 1178.8 | V128: 1138.9 | W128: =SUM(C128:V128) -> 21381.5
B129: Annualised site cost | C129: =Cost_SiteUrban!C41 -> 1213.366632 | D129: =Cost_SiteUrban!D41 -> 1181.047988 | E129: =Cost_SiteUrban!E41 -> 1148.729344 | F129: =Cost_SiteUrban!F41 -> 1116.4107 | G129: =Cost_SiteUrban!G41 -> 1084.092056 | H129: =Cost_SiteUrban!H41 -> 1051.773412 | I129: =Cost_SiteUrban!I41 -> 1019.454768 | J129: =Cost_SiteUrban!J41 -> 987.1361244 | K129: =Cost_SiteUrban!K41 -> 954.8174805 | L129: =Cost_SiteUrban!L41 -> 922.4988365 | M129: =Cost_SiteUrban!M41 -> 890.1801926 | N129: =Cost_SiteUrban!N41 -> 857.8615487 | O129: =Cost_SiteUrban!O41 -> 825.5429047 | P129: =Cost_SiteUrban!P41 -> 793.2242608 | Q129: =Cost_SiteUrban!Q41 -> 760.9056169 | R129: =Cost_SiteUrban!R41 -> 728.5869729 | S129: =Cost_SiteUrban!S41 -> 696.268329 | T129: =Cost_SiteUrban!T41 -> 663.9496851 | U129: =Cost_SiteUrban!U41 -> 631.6310411 | V129: =Cost_SiteUrban!V41 -> 599.3123972 | W129: 18126.79029
B130: Ongoing cost | C130: ='Cost calculations'!$G$29 -> 7096.790353 | D130: ='Cost calculations'!$G$29 -> 7096.790353 | E130: ='Cost calculations'!$G$29 -> 7096.790353 | F130: ='Cost calculations'!$G$29 -> 7096.790353 | G130: ='Cost calculations'!$G$29 -> 7096.790353 | H130: ='Cost calculations'!$G$29 -> 7096.790353 | I130: ='Cost calculations'!$G$29 -> 7096.790353 | J130: ='Cost calculations'!$G$29 -> 7096.790353 | K130: ='Cost calculations'!$G$29 -> 7096.790353 | L130: ='Cost calculations'!$G$29 -> 7096.790353 | M130: ='Cost calculations'!$G$29 -> 7096.790353 | N130: ='Cost calculations'!$G$29 -> 7096.790353 | O130: ='Cost calculations'!$G$29 -> 7096.790353 | P130: ='Cost calculations'!$G$29 -> 7096.790353 | Q130: ='Cost calculations'!$G$29 -> 7096.790353 | R130: ='Cost calculations'!$G$29 -> 7096.790353 | S130: ='Cost calculations'!$G$29 -> 7096.790353 | T130: ='Cost calculations'!$G$29 -> 7096.790353 | U130: ='Cost calculations'!$G$29 -> 7096.790353 | V130: ='Cost calculations'!$G$29 -> 7096.790353 | W130: 141935.8071
B132: Total | C132: =SUM(C128,C129:C130) -> 9608.656985 | D132: =SUM(D128,D129:D130) -> 9536.438341 | E132: 9464.219697 | F132: 9392.001053 | G132: 9319.782409 | H132: 9247.563765 | I132: 9175.345121 | J132: 9103.126477 | K132: 9030.907833 | L132: 8958.689189 | M132: 8886.470545 | N132: 8814.251901 | O132: 8742.033258 | P132: 8669.814614 | Q132: 8597.59597 | R132: 9123.877326 | S132: 9051.658682 | T132: 8979.440038 | U132: 8907.221394 | V132: 8835.00275 | W132: 181444.0973
B133: Discounted cash flow | C133: =C132*INDEX($C$23:$V$23, 1, MATCH(C117,$C$21:$V$21,0)) -> 9283.726555 | D133: 8902.367235 | E133: 8536.18392 | F133: 8184.58632 | G133: 7847.006709 | H133: 7522.899081 | I133: 7211.738326 | J133: 6913.019445 | K133: 6626.256784 | L133: 6350.983313 | M133: 6086.74991 | N133: 5833.124695 | O133: 5589.69237 | P133: 5356.053593 | Q133: 5131.824377 | R133: 5261.793992 | S133: 5043.618428 | T133: 4834.181571 | U133: 4633.141894 | V133: 4440.170971
V135: NPC urban hop | W135: =SUM(C133:V133) -> 129589.1195

Sheet Cost_SiteRural
A1: Cost of a rural site
B3: Time horizon (years) | C3: 20
B5: Finance rate | C5: 0.057 | D5: finance_rate | E5: Real pre-tax WACC MCT 2021-2026 Statement
B6: Discount rate | C6: 0.035 | D6: discount_rate | E6: STPR - HMT Green Book 2020
B8: Capital cost for equipment | C8: =Equipment -> 7000 | D8: equipment_capital
B9: Capital cost (including installation) | C9: ='Cost calculations'!G37 -> 10500 | D9: equipment_capital_ins
B10: Capital cost - rural site | C10: ='Cost calculations'!C23 -> 113398.7507 | D10: rural_site_capital
B11: Capital cost - urban site | C11: ='Cost calculations'!C24 -> 11339.87507 | D11: urban_site_capital
B14: Installation (% of capex) | C14: 0.5
B17: Lifetime of structures | C17: ='Spectrum cost inputs'!D21 -> 20 | D17: structure_lifetime
C19: Years
C20: 1 | D20: 2 | E20: 3 | F20: 4 | G20: 5 | H20: 6 | I20: 7 | J20: 8 | K20: 9 | L20: 10 | M20: 11 | N20: 12 | O20: 13 | P20: 14 | Q20: 15 | R20: 16 | S20: 17 | T20: 18 | U20: 19 | V20: 20
B21: Discount factor (WACC) | C21: =1/(1+$C5)^(C$20) -> 0.9460737938 | D21: 0.8950556232 | E21: 0.8467886691 | F21: 0.8011245687 | G21: 0.75792296 | H21: 0.7170510501 | I21: 0.6783832073 | J21: 0.6418005745 | K21: 0.6071907044 | L21: 0.5744472132 | M21: 0.5434694543 | N21: 0.5141622085 | O21: 0.4864353912 | P21: 0.4602037759 | Q21: 0.4353867322 | R21: 0.4119079775 | S21: 0.3896953429 | T21: 0.3686805515 | U21: 0.348799008 | V21: 0.3299896008
B22: Discount factor (STPR) | C22: =1/(1+$C6)^(C$20) -> 0.9661835749 | D22: 0.9335107004 | E22: 0.9019427057 | F22: 0.8714422277 | G22: 0.8419731669 | H22: 0.8135006443 | I22: 0.7859909607 | J22: 0.7594115562 | K22: 0.7337309722 | L22: 0.7089188137 | M22: 0.6849457137 | N22: 0.6617832983 | O22: 0.6394041529 | P22: 0.6177817903 | Q22: 0.5968906186 | R22: 0.5767059117 | S22: 0.5572037794 | T22: 0.5383611396 | U22: 0.5201556904 | V22: 0.5025658844
B23: New equipment required | C23: Yes | D23: No | E23: No | F23: No | G23: No | H23: No | I23: No | J23: Yes | K23: No | L23: No | M23: No | N23: No | O23: No | P23: No | Q23: Yes | R23: No | S23: No | T23: No | U23: No | V23: No
B24: New structures required | C24: Yes | D24: No | E24: No | F24: No | G24: No | H24: No | I24: No | J24: No | K24: No | L24: No | M24: No | N24: No | O24: No | P24: No | Q24: No | R24: No | S24: No | T24: No | U24: No | V24: No
B28: Estimating costs for a new site
C30: Year
C31: 1 | D31: 2 | E31: 3 | F31: 4 | G31: 5 | H31: 6 | I31: 7 | J31: 8 | K31: 9 | L31: 10 | M31: 11 | N31: 12 | O31: 13 | P31: 14 | Q31: 15 | R31: 16 | S31: 17 | T31: 18 | U31: 19 | V31: 20
B32: Annualised capital cost
A34: Remaining lifetime | B34: Depreciation
A35: =structure_lifetime-LEFT(B35,2) -> 20 | B35: 0 year old | C35: =IF(C$31<=$A35,rural_site_capital/structure_lifetime,0) -> 5669.937533 | D35: 5669.937533 | E35: 5669.937533 | F35: 5669.937533 | G35: 5669.937533 | H35: 5669.937533 | I35: 5669.937533 | J35: 5669.937533 | K35: 5669.937533 | L35: 5669.937533 | M35: 5669.937533 | N35: 5669.937533 | O35: 5669.937533 | P35: 5669.937533 | Q35: 5669.937533 | R35: 5669.937533 | S35: 5669.937533 | T35: 5669.937533 | U35: 5669.937533 | V35: 5669.937533
B37: Financing cost
A38: =structure_lifetime-LEFT(B38,2) -> 20 | B38: 0 year old | C38: =SUM(C35:$V35)*finance_rate -> 6463.728787 | D38: =SUM(D35:$V35)*finance_rate -> 6140.542348 | E38: =SUM(E35:$V35)*finance_rate -> 5817.355908 | F38: =SUM(F35:$V35)*finance_rate -> 5494.169469 | G38: =SUM(G35:$V35)*finance_rate -> 5170.98303 | H38: =SUM(H35:$V35)*finance_rate -> 4847.79659 | I38: =SUM(I35:$V35)*finance_rate -> 4524.610151 | J38: =SUM(J35:$V35)*finance_rate -> 4201.423712 | K38: =SUM(K35:$V35)*finance_rate -> 3878.237272 | L38: =SUM(L35:$V35)*finance_rate -> 3555.050833 | M38: =SUM(M35:$V35)*finance_rate -> 3231.864394 | N38: =SUM(N35:$V35)*finance_rate -> 2908.677954 | O38: =SUM(O35:$V35)*finance_rate -> 2585.491515 | P38: =SUM(P35:$V35)*finance_rate -> 2262.305075 | Q38: =SUM(Q35:$V35)*finance_rate -> 1939.118636 | R38: =SUM(R35:$V35)*finance_rate -> 1615.932197 | S38: =SUM(S35:$V35)*finance_rate -> 1292.745757 | T38: =SUM(T35:$V35)*finance_rate -> 969.5593181 | U38: =SUM(U35:$V35)*finance_rate -> 646.3728787 | V38: =SUM(V35:$V35)*finance_rate -> 323.1864394
B40: Depreciaton + financing cost
A41: =structure_lifetime-LEFT(B41,2) -> 20 | B41: 0 year old | C41: =C35+C38 -> 12133.66632 | D41: 11810.47988 | E41: 11487.29344 | F41: 11164.107 | G41: 10840.92056 | H41: 10517.73412 | I41: 10194.54768 | J41: 9871.361244 | K41: 9548.174805 | L41: 9224.988365 | M41: 8901.801926 | N41: 8578.615487 | O41: 8255.429047 | P41: 7932.242608 | Q41: 7609.056169 | R41: 7285.869729 | S41: 6962.68329 | T41: 6639.496851 | U41: 6316.310411 | V41: 5993.123972

Sheet Cost_SiteUrban
A1: Cost of a rural site
B3: Time horizon (years) | C3: 20
B5: Finance rate | C5: 0.057 | D5: finance_rate | E5: Real pre-tax WACC MCT 2021-2026 Statement
B6: Discount rate | C6: 0.035 | D6: discount_rate | E6: STPR - HMT Green Book 2020
B8: Capital cost for equipment | C8: =Equipment -> 7000 | D8: equipment_capital
B9: Capital cost (including installation) | C9: ='Cost calculations'!G37 -> 10500 | D9: equipment_capital_ins
B10: Capital cost - rural site | C10: ='Cost calculations'!C23 -> 113398.7507 | D10: rural_site_capital
B11: Capital cost - urban site | C11: ='Cost calculations'!C24 -> 11339.87507 | D11: urban_site_capital
B14: Installation (% of capex) | C14: 0.5
B17: Lifetime of structures | C17: ='Spectrum cost inputs'!D21 -> 20 | D17: structure_lifetime
C19: Years
C20: 1 | D20: 2 | E20: 3 | F20: 4 | G20: 5 | H20: 6 | I20: 7 | J20: 8 | K20: 9 | L20: 10 | M20: 11 | N20: 12 | O20: 13 | P20: 14 | Q20: 15 | R20: 16 | S20: 17 | T20: 18 | U20: 19 | V20: 20
B21: Discount factor (WACC) | C21: =1/(1+$C5)^(C$20) -> 0.9460737938 | D21: 0.8950556232 | E21: 0.8467886691 | F21: 0.8011245687 | G21: 0.75792296 | H21: 0.7170510501 | I21: 0.6783832073 | J21: 0.6418005745 | K21: 0.6071907044 | L21: 0.5744472132 | M21: 0.5434694543 | N21: 0.5141622085 | O21: 0.4864353912 | P21: 0.4602037759 | Q21: 0.4353867322 | R21: 0.4119079775 | S21: 0.3896953429 | T21: 0.3686805515 | U21: 0.348799008 | V21: 0.3299896008
B22: Discount factor (STPR) | C22: =1/(1+$C6)^(C$20) -> 0.9661835749 | D22: 0.9335107004 | E22: 0.9019427057 | F22: 0.8714422277 | G22: 0.8419731669 | H22: 0.8135006443 | I22: 0.7859909607 | J22: 0.7594115562 | K22: 0.7337309722 | L22: 0.7089188137 | M22: 0.6849457137 | N22: 0.6617832983 | O22: 0.6394041529 | P22: 0.6177817903 | Q22: 0.5968906186 | R22: 0.5767059117 | S22: 0.5572037794 | T22: 0.5383611396 | U22: 0.5201556904 | V22: 0.5025658844
B23: New equipment required | C23: Yes | D23: No | E23: No | F23: No | G23: No | H23: No | I23: No | J23: Yes | K23: No | L23: No | M23: No | N23: No | O23: No | P23: No | Q23: Yes | R23: No | S23: No | T23: No | U23: No | V23: No
B24: New structures required | C24: Yes | D24: No | E24: No | F24: No | G24: No | H24: No | I24: No | J24: No | K24: No | L24: No | M24: No | N24: No | O24: No | P24: No | Q24: No | R24: No | S24: No | T24: No | U24: No | V24: No
B28: Estimating costs for a new site
C30: Year
C31: 1 | D31: 2 | E31: 3 | F31: 4 | G31: 5 | H31: 6 | I31: 7 | J31: 8 | K31: 9 | L31: 10 | M31: 11 | N31: 12 | O31: 13 | P31: 14 | Q31: 15 | R31: 16 | S31: 17 | T31: 18 | U31: 19 | V31: 20
B32: Annualised capital cost
A34: Remaining lifetime | B34: Depreciation
A35: =structure_lifetime-LEFT(B35,2) -> 20 | B35: 0 year old | C35: =IF(C$31<=$A35,urban_site_capital/structure_lifetime,0) -> 566.9937533 | D35: 566.9937533 | E35: 566.9937533 | F35: 566.9937533 | G35: 566.9937533 | H35: 566.9937533 | I35: 566.9937533 | J35: 566.9937533 | K35: 566.9937533 | L35: 566.9937533 | M35: 566.9937533 | N35: 566.9937533 | O35: 566.9937533 | P35: 566.9937533 | Q35: 566.9937533 | R35: 566.9937533 | S35: 566.9937533 | T35: 566.9937533 | U35: 566.9937533 | V35: 566.9937533
B37: Financing cost
A38: =structure_lifetime-LEFT(B38,2) -> 20 | B38: 0 year old | C38: =SUM(C35:$V35)*finance_rate -> 646.3728787 | D38: =SUM(D35:$V35)*finance_rate -> 614.0542348 | E38: =SUM(E35:$V35)*finance_rate -> 581.7355908 | F38: =SUM(F35:$V35)*finance_rate -> 549.4169469 | G38: =SUM(G35:$V35)*finance_rate -> 517.098303 | H38: =SUM(H35:$V35)*finance_rate -> 484.779659 | I38: =SUM(I35:$V35)*finance_rate -> 452.4610151 | J38: =SUM(J35:$V35)*finance_rate -> 420.1423712 | K38: =SUM(K35:$V35)*finance_rate -> 387.8237272 | L38: =SUM(L35:$V35)*finance_rate -> 355.5050833 | M38: =SUM(M35:$V35)*finance_rate -> 323.1864394 | N38: =SUM(N35:$V35)*finance_rate -> 290.8677954 | O38: =SUM(O35:$V35)*finance_rate -> 258.5491515 | P38: =SUM(P35:$V35)*finance_rate -> 226.2305075 | Q38: =SUM(Q35:$V35)*finance_rate -> 193.9118636 | R38: =SUM(R35:$V35)*finance_rate -> 161.5932197 | S38: =SUM(S35:$V35)*finance_rate -> 129.2745757 | T38: =SUM(T35:$V35)*finance_rate -> 96.95593181 | U38: =SUM(U35:$V35)*finance_rate -> 64.63728787 | V38: =SUM(V35:$V35)*finance_rate -> 32.31864394
B40: Depreciaton + financing cost
A41: =structure_lifetime-LEFT(B41,2) -> 20 | B41: 0 year old | C41: =C35+C38 -> 1213.366632 | D41: 1181.047988 | E41: 1148.729344 | F41: 1116.4107 | G41: 1084.092056 | H41: 1051.773412 | I41: 1019.454768 | J41: 987.1361244 | K41: 954.8174805 | L41: 922.4988365 | M41: 890.1801926 | N41: 857.8615487 | O41: 825.5429047 | P41: 793.2242608 | Q41: 760.9056169 | R41: 728.5869729 | S41: 696.268329 | T41: 663.9496851 | U41: 631.6310411 | V41: 599.3123972

Sheet Composite cost scenarios
A1: Composite cost scenarios
B3: Summary costs
D5: 20 year NPC per link | E5: Inc. equipment change
B7: No additional hop (7 years) | D7: ='Discounted cost_7years'!X81 -> 556.4790738 | E7: 1000 | F7: Manual adjustment to £1000 due to unquantified factors (efficient use of revocation period, etc)
B8: No additional hop (15 years) | D8: ='Discounted cost_15years'!X113 -> 2331.554152 | E8: 3000 | F8: Manual adjustment to £3000 due to unquantified factors (efficient use of revocation period, etc)
B9: Additional hop, 7 years | C9: Average | D9: =AVERAGE(D12:D13) -> 163447.4281 | E9: =D9+$E$7 -> 164447.4281
B10: Additional hop, 15 years | C10: Average | D10: =AVERAGE(D14:D15) -> 152294.9978 | E10: =D10+$E$8 -> 155294.9978
B12: Additional hop, 7 years | C12: Rural | D12: ='Discounted cost_7years'!npc_rural_hop -> 186153.3064
B13: Additional hop, 7 years | C13: Urban | D13: ='Discounted cost_7years'!npc_urban_hop -> 140741.5499
B14: Additional hop, 15 years | C14: Rural | D14: ='Discounted cost_15years'!npc_rural_hop -> 175000.8761
B15: Additional hop, 15 years | C15: Urban | D15: ='Discounted cost_15years'!npc_urban_hop -> 129589.1195
B17: Calcuate average cost based on different % without additional hops (different mixes of no hop and additional hop costs)
B18: Assume that only 2% of links in the Higher Ongoing Costs scenario will need an additonal hop
D20: Baseline Scenario | E20: Higher ongoing Costs | F20: Baseline Scenario (15 equipment lifetime) | G20: Higher Ongoing Costs Scenario (15 equipment lifetime)
B21: Spectrum scenario | D21: 1 | E21: 2 | F21: 3 | G21: 4 | H21: 5 | I21: 6 | J21: 7
B23: No additional hop (7 years) | D23: 1 | E23: 0.98 | F23: 0 | G23: 0
B24: No additional hop (15 years) | D24: 0 | E24: 0 | F24: 1 | G24: 0.98
B25: Additional hop, 7 years equipment | D25: 0 | E25: 0.02 | F25: 0 | G25: 0
B26: Additional hop, 15 years equipment | D26: 0 | E26: 0 | F26: 0 | G26: 0.02
B28: Composite average cost | D28: =SUMPRODUCT($E7:$E10,D23:D26) -> 1000 | E28: =SUMPRODUCT($E7:$E10,E23:E26) -> 4268.948563 | F28: 3000 | G28: 6045.899956 | H28: =SUMPRODUCT($D9:$D10,H25:H26) -> 0 | I28: =SUMPRODUCT($D9:$D10,I25:I26) -> 0 | J28: =SUMPRODUCT($D9:$D10,J25:J26) -> 0
D29: =SUM(D23:D26)=1 -> TRUE | E29: =SUM(E23:E26)=1 -> TRUE | F29: TRUE | G29: TRUE

Sheet Costs By HDA grouping
A1: Costs by HDA grouping
B2: Source: | C2: Fixed link area data
B3: Use 25km buffer zone number to estimate costs
B5: 26 GHz areas | F5: Total Costs
F6: Scenario 1 | G6: Scenario 2 | H6: Scenario 3 | I6: Scenario 4
B7: Which areas? | C7: FLs revoked (likely maximum, based on 25km buffer zone) | E7: Which areas? | F7: ='Composite cost scenarios'!D20 -> Baseline Scenario | G7: ='Composite cost scenarios'!E20 -> Higher ongoing Costs | H7: ='Composite cost scenarios'!F20 -> Baseline Scenario (15 equipment lifetime) | I7: ='Composite cost scenarios'!G20 -> Higher Ongoing Costs Scenario (15 equipment lifetime)
B8: Top 20 | C8: 698 | E8: Top 20 | F8: =($C8*'Composite cost scenarios'!D$28)/1000000 -> 0.698 | G8: =($C8*'Composite cost scenarios'!E$28)/1000000 -> 2.979726097 | H8: =($C8*'Composite cost scenarios'!F$28)/1000000 -> 2.094 | I8: =($C8*'Composite cost scenarios'!G$28)/1000000 -> 4.220038169
B9: Top 40 | C9: 815 | E9: Top 40 | F9: =($C9*'Composite cost scenarios'!D$28)/1000000 -> 0.815 | G9: =($C9*'Composite cost scenarios'!E$28)/1000000 -> 3.479193079 | H9: =($C9*'Composite cost scenarios'!F$28)/1000000 -> 2.445 | I9: =($C9*'Composite cost scenarios'!G$28)/1000000 -> 4.927408464
B10: Top 80 | C10: 969 | E10: Top 80 | F10: =($C10*'Composite cost scenarios'!D$28)/1000000 -> 0.969 | G10: =($C10*'Composite cost scenarios'!E$28)/1000000 -> 4.136611157 | H10: =($C10*'Composite cost scenarios'!F$28)/1000000 -> 2.907 | I10: =($C10*'Composite cost scenarios'!G$28)/1000000 -> 5.858477057
B11: Total UK | C11: 1334 | E11: Total UK | F11: =($C11*'Composite cost scenarios'!D$28)/1000000 -> 1.334 | G11: =($C11*'Composite cost scenarios'!E$28)/1000000 -> 5.694777383 | H11: =($C11*'Composite cost scenarios'!F$28)/1000000 -> 4.002 | I11: =($C11*'Composite cost scenarios'!G$28)/1000000 -> 8.065230541
B13: 40 GHz areas (MBNL)
B15: Which areas? | C15: FLs revoked (likely maximum, based on 25km buffer zone) | E15: Which areas? | F15: ='Composite cost scenarios'!D20 -> Baseline Scenario | G15: ='Composite cost scenarios'!E20 -> Higher ongoing Costs | H15: ='Composite cost scenarios'!F20 -> Baseline Scenario (15 equipment lifetime) | I15: ='Composite cost scenarios'!G20 -> Higher Ongoing Costs Scenario (15 equipment lifetime)
B16: Top 20 | C16: 2936 | E16: Top 20 | F16: =($C16*'Composite cost scenarios'!D$28)/1000000 -> 2.936 | G16: =($C16*'Composite cost scenarios'!E$28)/1000000 -> 12.53363298 | H16: =($C16*'Composite cost scenarios'!F$28)/1000000 -> 8.808 | I16: =($C16*'Composite cost scenarios'!G$28)/1000000 -> 17.75076227
B17: Top 40 | C17: 3426 | E17: Top 40 | F17: =($C17*'Composite cost scenarios'!D$28)/1000000 -> 3.426 | G17: =($C17*'Composite cost scenarios'!E$28)/1000000 -> 14.62541778 | H17: =($C17*'Composite cost scenarios'!F$28)/1000000 -> 10.278 | I17: =($C17*'Composite cost scenarios'!G$28)/1000000 -> 20.71325325
B18: Top 80 | C18: 3956 | E18: Top 80 | F18: =($C18*'Composite cost scenarios'!D$28)/1000000 -> 3.956 | G18: =($C18*'Composite cost scenarios'!E$28)/1000000 -> 16.88796051 | H18: =($C18*'Composite cost scenarios'!F$28)/1000000 -> 11.868 | I18: =($C18*'Composite cost scenarios'!G$28)/1000000 -> 23.91758022
B19: Total UK | C19: 4417 | E19: Total UK | F19: =($C19*'Composite cost scenarios'!D$28)/1000000 -> 4.417 | G19: =($C19*'Composite cost scenarios'!E$28)/1000000 -> 18.8559458 | H19: =($C19*'Composite cost scenarios'!F$28)/1000000 -> 13.251 | I19: =($C19*'Composite cost scenarios'!G$28)/1000000 -> 26.7047401
B22: 40 GHz areas (H3G)
B24: Which areas? | C24: FLs revoked (likely maximum, based on 25km buffer zone) | E24: Which areas? | F24: ='Composite cost scenarios'!D20 -> Baseline Scenario | G24: ='Composite cost scenarios'!E20 -> Higher ongoing Costs | H24: ='Composite cost scenarios'!F20 -> Baseline Scenario (15 equipment lifetime) | I24: ='Composite cost scenarios'!G20 -> Higher Ongoing Costs Scenario (15 equipment lifetime)
B25: Top 20 | C25: 45 | E25: Top 20 | F25: =($C25*'Composite cost scenarios'!D$28)/1000000 -> 0.045 | G25: =($C25*'Composite cost scenarios'!E$28)/1000000 -> 0.1921026853 | H25: =($C25*'Composite cost scenarios'!F$28)/1000000 -> 0.135 | I25: =($C25*'Composite cost scenarios'!G$28)/1000000 -> 0.272065498
B26: Top 40 | C26: 48 | E26: Top 40 | F26: =($C26*'Composite cost scenarios'!D$28)/1000000 -> 0.048 | G26: =($C26*'Composite cost scenarios'!E$28)/1000000 -> 0.204909531 | H26: =($C26*'Composite cost scenarios'!F$28)/1000000 -> 0.144 | I26: =($C26*'Composite cost scenarios'!G$28)/1000000 -> 0.2902031979
B27: Top 80 | C27: 63 | E27: Top 80 | F27: =($C27*'Composite cost scenarios'!D$28)/1000000 -> 0.063 | G27: =($C27*'Composite cost scenarios'!E$28)/1000000 -> 0.2689437595 | H27: =($C27*'Composite cost scenarios'!F$28)/1000000 -> 0.189 | I27: =($C27*'Composite cost scenarios'!G$28)/1000000 -> 0.3808916972
B28: Total UK | C28: 63 | E28: Total UK | F28: =($C28*'Composite cost scenarios'!D$28)/1000000 -> 0.063 | G28: =($C28*'Composite cost scenarios'!E$28)/1000000 -> 0.2689437595 | H28: =($C28*'Composite cost scenarios'!F$28)/1000000 -> 0.189 | I28: =($C28*'Composite cost scenarios'!G$28)/1000000 -> 0.3808916972

Sheet Final OutputCosts --->

Sheet FinalOutputTables
A1: Costs by HDA grouping
B2: 26 GHz | H2: 40 GHz (MBNL) | N2: 40 GHz (H3G)
B4: Number of High Density Areas | C4: Baseline Scenario (£m) | D4: Higher Ongoing Costs Scenario (£m) | E4: Baseline – 15 year equipment lifetime (£m) | F4: Higher Ongoing Costs– 15 year equipment lifetime (£m) | H4: Number of High Density Areas | I4: Baseline Scenario (£m) | J4: Higher Ongoing Costs Scenario (£m) | K4: Baseline – 15 year equipment lifetime (£m) | L4: Higher Ongoing Costs– 15 year equipment lifetime (£m) | N4: Number of High Density Areas | O4: Baseline Scenario (£m) | P4: Higher Ongoing Costs Scenario (£m) | Q4: Baseline – 15 year equipment lifetime (£m) | R4: Higher Ongoing Costs– 15 year equipment lifetime (£m)
B5: 20 | C5: ='Costs By HDA grouping'!F8 -> 0.698 | D5: ='Costs By HDA grouping'!G8 -> 2.979726097 | E5: ='Costs By HDA grouping'!H8 -> 2.094 | F5: ='Costs By HDA grouping'!I8 -> 4.220038169 | H5: 20 | I5: ='Costs By HDA grouping'!F16 -> 2.936 | J5: ='Costs By HDA grouping'!G16 -> 12.53363298 | K5: ='Costs By HDA grouping'!H16 -> 8.808 | L5: ='Costs By HDA grouping'!I16 -> 17.75076227 | N5: 20 | O5: ='Costs By HDA grouping'!F25 -> 0.045 | P5: ='Costs By HDA grouping'!G25 -> 0.1921026853 | Q5: ='Costs By HDA grouping'!H25 -> 0.135 | R5: ='Costs By HDA grouping'!I25 -> 0.272065498
B6: 40 | C6: ='Costs By HDA grouping'!F9 -> 0.815 | D6: ='Costs By HDA grouping'!G9 -> 3.479193079 | E6: ='Costs By HDA grouping'!H9 -> 2.445 | F6: ='Costs By HDA grouping'!I9 -> 4.927408464 | H6: 40 | I6: ='Costs By HDA grouping'!F17 -> 3.426 | J6: ='Costs By HDA grouping'!G17 -> 14.62541778 | K6: ='Costs By HDA grouping'!H17 -> 10.278 | L6: ='Costs By HDA grouping'!I17 -> 20.71325325 | N6: 40 | O6: ='Costs By HDA grouping'!F26 -> 0.048 | P6: ='Costs By HDA grouping'!G26 -> 0.204909531 | Q6: ='Costs By HDA grouping'!H26 -> 0.144 | R6: ='Costs By HDA grouping'!I26 -> 0.2902031979
B7: 80 | C7: ='Costs By HDA grouping'!F10 -> 0.969 | D7: ='Costs By HDA grouping'!G10 -> 4.136611157 | E7: ='Costs By HDA grouping'!H10 -> 2.907 | F7: ='Costs By HDA grouping'!I10 -> 5.858477057 | H7: 80 | I7: ='Costs By HDA grouping'!F18 -> 3.956 | J7: ='Costs By HDA grouping'!G18 -> 16.88796051 | K7: ='Costs By HDA grouping'!H18 -> 11.868 | L7: ='Costs By HDA grouping'!I18 -> 23.91758022 | N7: 80 | O7: ='Costs By HDA grouping'!F27 -> 0.063 | P7: ='Costs By HDA grouping'!G27 -> 0.2689437595 | Q7: ='Costs By HDA grouping'!H27 -> 0.189 | R7: ='Costs By HDA grouping'!I27 -> 0.3808916972
B8: All UK | C8: ='Costs By HDA grouping'!F11 -> 1.334 | D8: ='Costs By HDA grouping'!G11 -> 5.694777383 | E8: ='Costs By HDA grouping'!H11 -> 4.002 | F8: ='Costs By HDA grouping'!I11 -> 8.065230541 | H8: All UK | I8: ='Costs By HDA grouping'!F19 -> 4.417 | J8: ='Costs By HDA grouping'!G19 -> 18.8559458 | K8: ='Costs By HDA grouping'!H19 -> 13.251 | L8: ='Costs By HDA grouping'!I19 -> 26.7047401 | N8: All UK | O8: ='Costs By HDA grouping'!F28 -> 0.063 | P8: ='Costs By HDA grouping'!G28 -> 0.2689437595 | Q8: ='Costs By HDA grouping'!H28 -> 0.189 | R8: ='Costs By HDA grouping'!I28 -> 0.3808916972
B11: Remaining life of equipment at the start of the revocation period. | C11: Value to be written off if revocation period = 5 years
B12: 7 years | C12: ='Discounted cost_7years'!X71 -> 2605.548245
B13: 6 years | C13: ='Discounted cost_7years'!X72 -> 1289.805272
B14: 5 years | C14: ='Discounted cost_7years'!X73 -> 0
B15: 4 years | C15: ='Discounted cost_7years'!X74 -> 0
B16: 3 years | C16: ='Discounted cost_7years'!X75 -> 0
B17: 2 years | C17: ='Discounted cost_7years'!X76 -> 0
B18: 1 year | C18: ='Discounted cost_7years'!X77 -> 0
B19: Average | C19: ='Discounted cost_7years'!X81 -> 556.4790738
B22: 26 GHz - Baseline | H22: 40 GHz - Baseline (MBNL) | N22: 40 GHz - Baseline (H3G)
B24: Number of high density areas | C24: Number of fixed links revoked | D24: Estimated cost of revocation (£m) | H24: Number of high density areas | I24: Number of fixed links revoked | J24: Estimated cost of revocation (£m) | N24: Number of high density areas | O24: Number of fixed links revoked | P24: Estimated cost of revocation (£m)
B25: 20 | C25: ='Costs By HDA grouping'!C8 -> 698 | D25: ='Costs By HDA grouping'!F8 -> 0.698 | H25: 20 | I25: ='Costs By HDA grouping'!C16 -> 2936 | J25: ='Costs By HDA grouping'!F16 -> 2.936 | N25: 20 | O25: ='Costs By HDA grouping'!C25 -> 45 | P25: ='Costs By HDA grouping'!F25 -> 0.045
B26: 40 | C26: ='Costs By HDA grouping'!C9 -> 815 | D26: ='Costs By HDA grouping'!F9 -> 0.815 | H26: 40 | I26: ='Costs By HDA grouping'!C17 -> 3426 | J26: ='Costs By HDA grouping'!F17 -> 3.426 | N26: 40 | O26: ='Costs By HDA grouping'!C26 -> 48 | P26: ='Costs By HDA grouping'!F26 -> 0.048
B27: 80 | C27: ='Costs By HDA grouping'!C10 -> 969 | D27: ='Costs By HDA grouping'!F10 -> 0.969 | H27: 80 | I27: ='Costs By HDA grouping'!C18 -> 3956 | J27: ='Costs By HDA grouping'!F18 -> 3.956 | N27: 80 | O27: ='Costs By HDA grouping'!C27 -> 63 | P27: ='Costs By HDA grouping'!F27 -> 0.063
B28: All UK | C28: ='Costs By HDA grouping'!C11 -> 1334 | D28: ='Costs By HDA grouping'!F11 -> 1.334 | H28: All UK | I28: ='Costs By HDA grouping'!C19 -> 4417 | J28: ='Costs By HDA grouping'!F19 -> 4.417 | N28: All UK | O28: ='Costs By HDA grouping'!C28 -> 63 | P28: ='Costs By HDA grouping'!F28 -> 0.063
B30: 26 GHz - Higher Costs | H30: 40 GHz - Higher Costs (MBNL) | N30: 40 GHz - Higher Costs (H3G)
B32: Number of high density areas | C32: Number of fixed links revoked | D32: Estimated cost of revocation (£m) | H32: Number of high density areas | I32: Number of fixed links revoked | J32: Estimated cost of revocation (£m) | N32: Number of high density areas | O32: Number of fixed links revoked | P32: Estimated cost of revocation (£m)
B33: 20 | C33: ='Costs By HDA grouping'!C8 -> 698 | D33: ='Costs By HDA grouping'!G8 -> 2.979726097 | H33: 20 | I33: ='Costs By HDA grouping'!C16 -> 2936 | J33: ='Costs By HDA grouping'!G16 -> 12.53363298 | N33: 20 | O33: ='Costs By HDA grouping'!C25 -> 45 | P33: ='Costs By HDA grouping'!G25 -> 0.1921026853
B34: 40 | C34: ='Costs By HDA grouping'!C9 -> 815 | D34: ='Costs By HDA grouping'!G9 -> 3.479193079 | H34: 40 | I34: ='Costs By HDA grouping'!C17 -> 3426 | J34: ='Costs By HDA grouping'!G17 -> 14.62541778 | N34: 40 | O34: ='Costs By HDA grouping'!C26 -> 48 | P34: ='Costs By HDA grouping'!G26 -> 0.204909531
B35: 80 | C35: ='Costs By HDA grouping'!C10 -> 969 | D35: ='Costs By HDA grouping'!G10 -> 4.136611157 | H35: 80 | I35: ='Costs By HDA grouping'!C18 -> 3956 | J35: ='Costs By HDA grouping'!G18 -> 16.88796051 | N35: 80 | O35: ='Costs By HDA grouping'!C27 -> 63 | P35: ='Costs By HDA grouping'!G27 -> 0.2689437595
B36: All UK | C36: ='Costs By HDA grouping'!C11 -> 1334 | D36: ='Costs By HDA grouping'!G11 -> 5.694777383 | H36: All UK | I36: ='Costs By HDA grouping'!C19 -> 4417 | J36: ='Costs By HDA grouping'!G19 -> 18.8559458 | N36: All UK | O36: ='Costs By HDA grouping'!C28 -> 63 | P36: ='Costs By HDA grouping'!G28 -> 0.2689437595
B39: Number of High density areas | C39: Number of fixed links revoked | D39: Estimated cost of revocation – modified baseline Scenario (£m) | E39: Estimated cost of revocation – modified Higher Ongoing Costs Scenario (£m) | H39: Number of High density areas | I39: Number of fixed links revoked | J39: Estimated cost of revocation – modified baseline Scenario (£m) | K39: Estimated cost of revocation – modified Higher Ongoing Costs Scenario (£m) | N39: Number of High density areas | O39: Number of fixed links revoked | P39: Estimated cost of revocation – modified baseline Scenario (£m) | Q39: Estimated cost of revocation – modified Higher Ongoing Costs Scenario (£m)
B40: 20 | C40: ='Costs By HDA grouping'!C8 -> 698 | D40: ='Costs By HDA grouping'!H8 -> 2.094 | E40: ='Costs By HDA grouping'!I8 -> 4.220038169 | H40: 20 | I40: ='Costs By HDA grouping'!C16 -> 2936 | J40: ='Costs By HDA grouping'!H16 -> 8.808 | K40: ='Costs By HDA grouping'!I16 -> 17.75076227 | N40: 20 | O40: ='Costs By HDA grouping'!C25 -> 45 | P40: ='Costs By HDA grouping'!H25 -> 0.135 | Q40: ='Costs By HDA grouping'!I25 -> 0.272065498
B41: 40 | C41: ='Costs By HDA grouping'!C9 -> 815 | D41: ='Costs By HDA grouping'!H9 -> 2.445 | E41: ='Costs By HDA grouping'!I9 -> 4.927408464 | H41: 40 | I41: ='Costs By HDA grouping'!C17 -> 3426 | J41: ='Costs By HDA grouping'!H17 -> 10.278 | K41: ='Costs By HDA grouping'!I17 -> 20.71325325 | N41: 40 | O41: ='Costs By HDA grouping'!C26 -> 48 | P41: ='Costs By HDA grouping'!H26 -> 0.144 | Q41: ='Costs By HDA grouping'!I26 -> 0.2902031979
B42: 80 | C42: ='Costs By HDA grouping'!C10 -> 969 | D42: ='Costs By HDA grouping'!H10 -> 2.907 | E42: ='Costs By HDA grouping'!I10 -> 5.858477057 | H42: 80 | I42: ='Costs By HDA grouping'!C18 -> 3956 | J42: ='Costs By HDA grouping'!H18 -> 11.868 | K42: ='Costs By HDA grouping'!I18 -> 23.91758022 | N42: 80 | O42: ='Costs By HDA grouping'!C27 -> 63 | P42: ='Costs By HDA grouping'!H27 -> 0.189 | Q42: ='Costs By HDA grouping'!I27 -> 0.3808916972
B43: All UK | C43: ='Costs By HDA grouping'!C11 -> 1334 | D43: ='Costs By HDA grouping'!H11 -> 4.002 | E43: ='Costs By HDA grouping'!I11 -> 8.065230541 | H43: All UK | I43: ='Costs By HDA grouping'!C19 -> 4417 | J43: ='Costs By HDA grouping'!H19 -> 13.251 | K43: ='Costs By HDA grouping'!I19 -> 26.7047401 | N43: All UK | O43: ='Costs By HDA grouping'!C28 -> 63 | P43: ='Costs By HDA grouping'!H28 -> 0.189 | Q43: ='Costs By HDA grouping'!I28 -> 0.3808916972
